Organisation Name,Directorate,Supplier Name,Supplier ID,Expense type,Best Value Accounting Code of Practice,Document/Invoice number,Clearing/Payment date,Invoice Amount
Buckinghamshire Council,Adults and Health,Corporate Document Services Ltd,1000000,Printing & Stationery,Supplies and Services,3300481734,09/11/2022,2340
Buckinghamshire Council,"Planning, Growth & Sustainability",COMBINED OFFICE INTERIORS LTD,1000001,Furniture,Supplies and Services,4101015554,09/11/2022,995
Buckinghamshire Council,"Planning, Growth & Sustainability",COMBINED OFFICE INTERIORS LTD,1000001,Cleaning & Domestic Equipment,Supplies and Services,4101015554,09/11/2022,127
Buckinghamshire Council,"Planning, Growth & Sustainability",LYRECO UK LTD,1000008,Printing & Stationery,Supplies and Services,4800086151,10/11/2022,108
Buckinghamshire Council,"Planning, Growth & Sustainability",LYRECO UK LTD,1000008,Printing & Stationery,Supplies and Services,4800086151,10/11/2022,775
Buckinghamshire Council,Communities,LYRECO UK LTD,1000008,Stationery & Office Supplies,Supplies and Services,4800086205,10/11/2022,770.8
Buckinghamshire Council,Adults and Health,LYRECO UK LTD,1000008,Stationery & Office Supplies,Supplies and Services,4800086524,10/11/2022,18
Buckinghamshire Council,Adults and Health,LYRECO UK LTD,1000008,Stationery & Office Supplies,Supplies and Services,4800086524,10/11/2022,219
Buckinghamshire Council,Adults and Health,LYRECO UK LTD,1000008,Stationery & Office Supplies,Supplies and Services,4800086524,10/11/2022,328.8
Buckinghamshire Council,Adults and Health,LYRECO UK LTD,1000008,Stationery & Office Supplies,Supplies and Services,4800086524,10/11/2022,181.85
Buckinghamshire Council,Communities,LYRECO UK LTD,1000008,Stationery & Office Supplies,Supplies and Services,4800087116,10/11/2022,997.83
Buckinghamshire Council,Communities,LYRECO UK LTD,1000008,Stationery & Office Supplies,Supplies and Services,4800087116,10/11/2022,1235.16
Buckinghamshire Council,Communities,Arriva The Shires Ltd,1000010,Bus Stops and Infrastructure,Supplies and Services,4101018628,16/11/2022,3625.5
Buckinghamshire Council,Communities,Arriva The Shires Ltd,1000010,Subsidised Bus Services - Core,Agency (third party payments) & Contribs,4101017603,09/11/2022,17010.48
Buckinghamshire Council,Communities,Arriva The Shires Ltd,1000010,Travel Choice Scheme,Transfer Payments (Grants & Assistance),4101019874,25/11/2022,1232.35
Buckinghamshire Council,Communities,Arriva The Shires Ltd,1000010,Subsidised Bus Services - Core,Agency (third party payments) & Contribs,4101018192,11/11/2022,4404.35
Buckinghamshire Council,Resources,Annodata Business Comms Ltd,1000012,Photocopiers,Supplies and Services,4101016091,02/11/2022,509.08
Buckinghamshire Council,Resources,Annodata Business Comms Ltd,1000012,Photocopiers,Supplies and Services,4101016092,02/11/2022,1277.4
Buckinghamshire Council,Resources,Annodata Business Comms Ltd,1000012,Photocopiers,Supplies and Services,4101016093,02/11/2022,509.08
Buckinghamshire Council,Resources,Annodata Business Comms Ltd,1000012,Photocopiers,Supplies and Services,4101016411,02/11/2022,572.4
Buckinghamshire Council,Children's Services,Foster Care Associates Ltd,1000015,External Fostering Payments,Agency (third party payments) & Contribs,7002957975,23/11/2022,3956.4
Buckinghamshire Council,Children's Services,Foster Care Associates Ltd,1000015,External Fostering Payments,Agency (third party payments) & Contribs,7002957975,23/11/2022,3440.64
Buckinghamshire Council,Children's Services,Foster Care Associates Ltd,1000015,External Fostering Payments,Agency (third party payments) & Contribs,7002957975,23/11/2022,3378.6
Buckinghamshire Council,Children's Services,Foster Care Associates Ltd,1000015,External Fostering Payments,Agency (third party payments) & Contribs,7002957975,23/11/2022,3378.6
Buckinghamshire Council,Children's Services,Foster Care Associates Ltd,1000015,External Fostering Payments,Agency (third party payments) & Contribs,7002957975,23/11/2022,3956
Buckinghamshire Council,Children's Services,Foster Care Associates Ltd,1000015,External Fostering Payments,Agency (third party payments) & Contribs,7002957975,23/11/2022,3440.64
Buckinghamshire Council,Children's Services,Foster Care Associates Ltd,1000015,External Fostering Payments,Agency (third party payments) & Contribs,7002957975,23/11/2022,3275.72
Buckinghamshire Council,Children's Services,Foster Care Associates Ltd,1000015,External Fostering Payments,Agency (third party payments) & Contribs,7002957975,23/11/2022,3600.52
Buckinghamshire Council,Children's Services,Foster Care Associates Ltd,1000015,External Fostering Payments,Agency (third party payments) & Contribs,7002957975,23/11/2022,3211.88
Buckinghamshire Council,Children's Services,Foster Care Associates Ltd,1000015,External Fostering Payments,Agency (third party payments) & Contribs,7002957975,23/11/2022,3378.2
Buckinghamshire Council,Children's Services,Foster Care Associates Ltd,1000015,External Fostering Payments,Agency (third party payments) & Contribs,7002957975,23/11/2022,5688.76
Buckinghamshire Council,Children's Services,Foster Care Associates Ltd,1000015,External Fostering Payments,Agency (third party payments) & Contribs,7002957975,23/11/2022,-545
Buckinghamshire Council,"Planning, Growth & Sustainability",TENCER LIMITED,1000023,Urgent Repairs & Maintenance,Controllable Premises,7002953190,16/11/2022,507.76
Buckinghamshire Council,Communities,TENCER LIMITED,1000023,Maintenance of Cremators Plant & Equip,Controllable Premises,7002953191,16/11/2022,892.5
Buckinghamshire Council,"Planning, Growth & Sustainability",TENCER LIMITED,1000023,General Repairs & Maintenance,Controllable Premises,7002953193,16/11/2022,937.82
Buckinghamshire Council,"Planning, Growth & Sustainability",TENCER LIMITED,1000023,Urgent Repairs & Maintenance,Controllable Premises,7002955686,16/11/2022,2458.3
Buckinghamshire Council,"Planning, Growth & Sustainability",TENCER LIMITED,1000023,Buy Back BCC,Controllable Premises,7002947011,04/11/2022,1639.11
Buckinghamshire Council,"Planning, Growth & Sustainability",TENCER LIMITED,1000023,Urgent Repairs & Maintenance,Controllable Premises,7002947037,04/11/2022,1648.44
Buckinghamshire Council,"Planning, Growth & Sustainability",TENCER LIMITED,1000023,Urgent Repairs & Maintenance,Controllable Premises,7002947047,04/11/2022,1318.32
Buckinghamshire Council,"Planning, Growth & Sustainability",TENCER LIMITED,1000023,Urgent Repairs & Maintenance,Controllable Premises,7002949109,04/11/2022,1758.75
Buckinghamshire Council,Children's Services,TENCER LIMITED,1000023,Construction - Building Work,Capital - Expenditure -Controllable,7002949121,09/11/2022,2477.55
Buckinghamshire Council,"Planning, Growth & Sustainability",TENCER LIMITED,1000023,General Repairs & Maintenance,Controllable Premises,7002952051,09/11/2022,3342.68
Buckinghamshire Council,"Planning, Growth & Sustainability",TENCER LIMITED,1000023,Urgent Repairs & Maintenance,Controllable Premises,7002952056,09/11/2022,516.32
Buckinghamshire Council,"Planning, Growth & Sustainability",TENCER LIMITED,1000023,Urgent Repairs & Maintenance,Controllable Premises,7002952064,09/11/2022,680.88
Buckinghamshire Council,"Planning, Growth & Sustainability",TENCER LIMITED,1000023,Urgent Repairs & Maintenance,Controllable Premises,7002952072,09/11/2022,1590.25
Buckinghamshire Council,"Planning, Growth & Sustainability",TENCER LIMITED,1000023,General Repairs & Maintenance,Controllable Premises,7002952073,09/11/2022,556.88
Buckinghamshire Council,"Planning, Growth & Sustainability",TENCER LIMITED,1000023,Urgent Repairs & Maintenance,Controllable Premises,7002952081,09/11/2022,548.76
Buckinghamshire Council,"Planning, Growth & Sustainability",TENCER LIMITED,1000023,Urgent Repairs & Maintenance,Controllable Premises,7002952084,09/11/2022,1730.57
Buckinghamshire Council,Communities,TENCER LIMITED,1000023,General Repairs & Maintenance,Controllable Premises,7002952088,09/11/2022,537.94
Buckinghamshire Council,"Planning, Growth & Sustainability",TENCER LIMITED,1000023,Urgent Repairs & Maintenance,Controllable Premises,7002952090,09/11/2022,921.85
Buckinghamshire Council,"Planning, Growth & Sustainability",TENCER LIMITED,1000023,General Repairs & Maintenance,Controllable Premises,7002952110,09/11/2022,9753.67
Buckinghamshire Council,"Planning, Growth & Sustainability",TENCER LIMITED,1000023,Genesis Temporary Postings Holding Accou,Controllable Recharges,7002945858,02/11/2022,3637.44
Buckinghamshire Council,"Planning, Growth & Sustainability",TENCER LIMITED,1000023,Urgent Repairs & Maintenance,Controllable Premises,7002945874,02/11/2022,928.19
Buckinghamshire Council,"Planning, Growth & Sustainability",TENCER LIMITED,1000023,Urgent Repairs & Maintenance,Controllable Premises,7002945876,02/11/2022,1702.99
Buckinghamshire Council,"Planning, Growth & Sustainability",TENCER LIMITED,1000023,Genesis Temporary Postings Holding Accou,Controllable Recharges,7002945877,02/11/2022,1991.88
Buckinghamshire Council,"Planning, Growth & Sustainability",TENCER LIMITED,1000023,General Repairs & Maintenance,Controllable Premises,7002946262,02/11/2022,4650
Buckinghamshire Council,"Planning, Growth & Sustainability",TENCER LIMITED,1000023,Genesis Temporary Postings Holding Accou,Controllable Recharges,7002946704,02/11/2022,855
Buckinghamshire Council,"Planning, Growth & Sustainability",TENCER LIMITED,1000023,Urgent Repairs & Maintenance,Controllable Premises,4101019216,23/11/2022,2132.8
Buckinghamshire Council,"Planning, Growth & Sustainability",TENCER LIMITED,1000023,Urgent Repairs & Maintenance,Controllable Premises,7002954060,18/11/2022,2882.83
Buckinghamshire Council,"Planning, Growth & Sustainability",TENCER LIMITED,1000023,Urgent Repairs & Maintenance,Controllable Premises,7002954068,18/11/2022,829.24
Buckinghamshire Council,"Planning, Growth & Sustainability",TENCER LIMITED,1000023,Urgent Repairs & Maintenance,Controllable Premises,7002956374,25/11/2022,2661.66
Buckinghamshire Council,"Planning, Growth & Sustainability",TENCER LIMITED,1000023,Urgent Repairs & Maintenance,Controllable Premises,7002956408,25/11/2022,2133.85
Buckinghamshire Council,"Planning, Growth & Sustainability",TENCER LIMITED,1000023,Urgent Repairs & Maintenance,Controllable Premises,7002958215,25/11/2022,1897.91
Buckinghamshire Council,"Planning, Growth & Sustainability",TENCER LIMITED,1000023,Urgent Repairs & Maintenance,Controllable Premises,7002958219,25/11/2022,598.06
Buckinghamshire Council,"Planning, Growth & Sustainability",TENCER LIMITED,1000023,Urgent Repairs & Maintenance,Controllable Premises,7002958314,30/11/2022,1906.57
Buckinghamshire Council,Children's Services,TENCER LIMITED,1000023,General Repairs & Maintenance,Controllable Premises,7002958322,30/11/2022,618.75
Buckinghamshire Council,"Planning, Growth & Sustainability",TENCER LIMITED,1000023,General Repairs & Maintenance,Controllable Premises,7002961884,30/11/2022,777.5
Buckinghamshire Council,Adults and Health,MANDEVILLE CARE SERVICES LTD,1000027,Nursing care-permanent -other,Agency (third party payments) & Contribs,7002957448,23/11/2022,4600
Buckinghamshire Council,Adults and Health,MANDEVILLE CARE SERVICES LTD,1000027,Nurs-Perm EMI Other - Exp,Agency (third party payments) & Contribs,7002957448,23/11/2022,4600
Buckinghamshire Council,Adults and Health,MANDEVILLE CARE SERVICES LTD,1000027,Nursing care-permanent -other,Agency (third party payments) & Contribs,7002957448,23/11/2022,4600
Buckinghamshire Council,Adults and Health,MANDEVILLE CARE SERVICES LTD,1000027,Nursing care-permanent -other,Agency (third party payments) & Contribs,7002957448,23/11/2022,4600
Buckinghamshire Council,Adults and Health,MANDEVILLE CARE SERVICES LTD,1000027,Nursing care-permanent -other,Agency (third party payments) & Contribs,7002957448,23/11/2022,4600
Buckinghamshire Council,Adults and Health,MANDEVILLE CARE SERVICES LTD,1000027,Res care-permanent - other,Agency (third party payments) & Contribs,7002957448,23/11/2022,4600
Buckinghamshire Council,Adults and Health,MANDEVILLE CARE SERVICES LTD,1000027,Nursing care-permanent -other,Agency (third party payments) & Contribs,7002957448,23/11/2022,59.24
Buckinghamshire Council,Adults and Health,MANDEVILLE CARE SERVICES LTD,1000027,Nurs-Perm EMI Other - Exp,Agency (third party payments) & Contribs,7002957448,23/11/2022,800
Buckinghamshire Council,Adults and Health,MANDEVILLE CARE SERVICES LTD,1000027,Nurs-Perm EMI Other - Exp,Agency (third party payments) & Contribs,7002957448,23/11/2022,5600
Buckinghamshire Council,Adults and Health,MANDEVILLE CARE SERVICES LTD,1000027,Nursing care-permanent -other,Controllable Customer & Client Receipts,7002957448,23/11/2022,-1508.8
Buckinghamshire Council,Adults and Health,MANDEVILLE CARE SERVICES LTD,1000027,Nursing care-permanent -other,Controllable Customer & Client Receipts,7002957448,23/11/2022,-730.36
Buckinghamshire Council,Adults and Health,MANDEVILLE CARE SERVICES LTD,1000027,Nursing care-permanent -other,Controllable Customer & Client Receipts,7002957448,23/11/2022,-1883
Buckinghamshire Council,Adults and Health,MANDEVILLE CARE SERVICES LTD,1000027,Nursing care-permanent -other,Controllable Customer & Client Receipts,7002957448,23/11/2022,-1368.44
Buckinghamshire Council,Adults and Health,MANDEVILLE CARE SERVICES LTD,1000027,Res care-permanent - other,Controllable Customer & Client Receipts,7002957448,23/11/2022,-1312.68
Buckinghamshire Council,Adults and Health,MANDEVILLE CARE SERVICES LTD,1000027,Nursing care-permanent -other,Controllable Customer & Client Receipts,7002957448,23/11/2022,-62.69
Buckinghamshire Council,Adults and Health,MANDEVILLE CARE SERVICES LTD,1000027,Nursing care-permanent -other,Controllable Customer & Client Receipts,7002957448,23/11/2022,-438.8
Buckinghamshire Council,Resources,Socitm LTD,1000098,"Courses, Conference and Seminar Fees",Supplies and Services,4101020394,30/11/2022,2495
Buckinghamshire Council,Deputy Chief Executive,REDACTED,1000114,Legal Fees,Supplies and Services,4101020112,25/11/2022,10600
Buckinghamshire Council,Deputy Chief Executive,REDACTED,1000114,Legal Fees,Supplies and Services,4101020112,25/11/2022,275
Buckinghamshire Council,Deputy Chief Executive,REDACTED,1000114,Legal Fees,Supplies and Services,4101020113,25/11/2022,4000
Buckinghamshire Council,Deputy Chief Executive,REDACTED,1000114,Legal Fees,Supplies and Services,4101020120,25/11/2022,6780.8
Buckinghamshire Council,Deputy Chief Executive,REDACTED,1000114,Legal Fees,Supplies and Services,4101020121,25/11/2022,12221.2
Buckinghamshire Council,Deputy Chief Executive,REDACTED,1000114,Legal Fees,Supplies and Services,4101020122,25/11/2022,6966
Buckinghamshire Council,Deputy Chief Executive,REDACTED,1000114,Legal Fees,Supplies and Services,4101018643,16/11/2022,750
Buckinghamshire Council,Deputy Chief Executive,REDACTED,1000114,Legal Fees,Supplies and Services,4101020737,30/11/2022,756
Buckinghamshire Council,Deputy Chief Executive,REDACTED,1000114,Legal Fees,Supplies and Services,4101020780,30/11/2022,618
Buckinghamshire Council,Children's Services,FOSTERPLUS LTD,1000125,External Fostering Payments,Agency (third party payments) & Contribs,7002957976,23/11/2022,-3840
Buckinghamshire Council,Children's Services,FOSTERPLUS LTD,1000125,External Fostering Payments,Agency (third party payments) & Contribs,7002957976,23/11/2022,-1371.43
Buckinghamshire Council,Children's Services,FOSTERPLUS LTD,1000125,External Fostering Payments,Agency (third party payments) & Contribs,7002957976,23/11/2022,-2766.86
Buckinghamshire Council,Children's Services,FOSTERPLUS LTD,1000125,External Fostering Payments,Agency (third party payments) & Contribs,7002957976,23/11/2022,-4304
Buckinghamshire Council,Children's Services,FOSTERPLUS LTD,1000125,External Fostering Payments,Agency (third party payments) & Contribs,7002957976,23/11/2022,-4304
Buckinghamshire Council,Children's Services,FOSTERPLUS LTD,1000125,External Fostering Payments,Agency (third party payments) & Contribs,7002957976,23/11/2022,-4304
Buckinghamshire Council,Children's Services,FOSTERPLUS LTD,1000125,External Fostering Payments,Agency (third party payments) & Contribs,7002957976,23/11/2022,-4304
Buckinghamshire Council,Children's Services,FOSTERPLUS LTD,1000125,External Fostering Payments,Agency (third party payments) & Contribs,7002957976,23/11/2022,-4304
Buckinghamshire Council,Children's Services,FOSTERPLUS LTD,1000125,External Fostering Payments,Agency (third party payments) & Contribs,7002957976,23/11/2022,-4304
Buckinghamshire Council,Children's Services,FOSTERPLUS LTD,1000125,External Fostering Payments,Agency (third party payments) & Contribs,7002957976,23/11/2022,-1690.86
Buckinghamshire Council,Children's Services,FOSTERPLUS LTD,1000125,External Fostering Payments,Agency (third party payments) & Contribs,7002957976,23/11/2022,-2613.14
Buckinghamshire Council,Children's Services,FOSTERPLUS LTD,1000125,External Fostering Payments,Agency (third party payments) & Contribs,7002957976,23/11/2022,-4304
Buckinghamshire Council,Children's Services,FOSTERPLUS LTD,1000125,External Fostering Payments,Agency (third party payments) & Contribs,7002957976,23/11/2022,-4304
Buckinghamshire Council,Children's Services,FOSTERPLUS LTD,1000125,External Fostering Payments,Agency (third party payments) & Contribs,7002957976,23/11/2022,-4304
Buckinghamshire Council,Children's Services,FOSTERPLUS LTD,1000125,External Fostering Payments,Agency (third party payments) & Contribs,7002957976,23/11/2022,-4304
Buckinghamshire Council,Children's Services,FOSTERPLUS LTD,1000125,External Fostering Payments,Agency (third party payments) & Contribs,7002957976,23/11/2022,-4304
Buckinghamshire Council,Children's Services,FOSTERPLUS LTD,1000125,External Fostering Payments,Agency (third party payments) & Contribs,7002957976,23/11/2022,-4304
Buckinghamshire Council,Children's Services,FOSTERPLUS LTD,1000125,External Fostering Payments,Agency (third party payments) & Contribs,7002957976,23/11/2022,-1690.86
Buckinghamshire Council,Children's Services,FOSTERPLUS LTD,1000125,External Fostering Payments,Agency (third party payments) & Contribs,7002957976,23/11/2022,-567.28
Buckinghamshire Council,Children's Services,FOSTERPLUS LTD,1000125,External Fostering Payments,Agency (third party payments) & Contribs,7002957976,23/11/2022,589.1
Buckinghamshire Council,Children's Services,FOSTERPLUS LTD,1000125,External Fostering Payments,Agency (third party payments) & Contribs,7002957976,23/11/2022,1690.86
Buckinghamshire Council,Children's Services,FOSTERPLUS LTD,1000125,External Fostering Payments,Agency (third party payments) & Contribs,7002957976,23/11/2022,2613.14
Buckinghamshire Council,Children's Services,FOSTERPLUS LTD,1000125,External Fostering Payments,Agency (third party payments) & Contribs,7002957976,23/11/2022,4304
Buckinghamshire Council,Children's Services,FOSTERPLUS LTD,1000125,External Fostering Payments,Agency (third party payments) & Contribs,7002957976,23/11/2022,4304
Buckinghamshire Council,Children's Services,FOSTERPLUS LTD,1000125,External Fostering Payments,Agency (third party payments) & Contribs,7002957976,23/11/2022,4304
Buckinghamshire Council,Children's Services,FOSTERPLUS LTD,1000125,External Fostering Payments,Agency (third party payments) & Contribs,7002957976,23/11/2022,4304
Buckinghamshire Council,Children's Services,FOSTERPLUS LTD,1000125,External Fostering Payments,Agency (third party payments) & Contribs,7002957976,23/11/2022,4304
Buckinghamshire Council,Children's Services,FOSTERPLUS LTD,1000125,External Fostering Payments,Agency (third party payments) & Contribs,7002957976,23/11/2022,4304
Buckinghamshire Council,Children's Services,FOSTERPLUS LTD,1000125,External Fostering Payments,Agency (third party payments) & Contribs,7002957976,23/11/2022,3345.44
Buckinghamshire Council,Children's Services,FOSTERPLUS LTD,1000125,External Fostering Payments,Agency (third party payments) & Contribs,7002957976,23/11/2022,3609.44
Buckinghamshire Council,Children's Services,FOSTERPLUS LTD,1000125,External Fostering Payments,Agency (third party payments) & Contribs,7002957976,23/11/2022,3609.44
Buckinghamshire Council,Children's Services,FOSTERPLUS LTD,1000125,External Fostering Payments,Agency (third party payments) & Contribs,7002957976,23/11/2022,3840
Buckinghamshire Council,Children's Services,FOSTERPLUS LTD,1000125,External Fostering Payments,Agency (third party payments) & Contribs,7002957976,23/11/2022,1234.29
Buckinghamshire Council,Children's Services,FOSTERPLUS LTD,1000125,External Fostering Payments,Agency (third party payments) & Contribs,7002957976,23/11/2022,2766.86
Buckinghamshire Council,Children's Services,FOSTERPLUS LTD,1000125,External Fostering Payments,Agency (third party payments) & Contribs,7002957976,23/11/2022,4304
Buckinghamshire Council,Children's Services,FOSTERPLUS LTD,1000125,External Fostering Payments,Agency (third party payments) & Contribs,7002957976,23/11/2022,4304
Buckinghamshire Council,Children's Services,FOSTERPLUS LTD,1000125,External Fostering Payments,Agency (third party payments) & Contribs,7002957976,23/11/2022,4304
Buckinghamshire Council,Children's Services,FOSTERPLUS LTD,1000125,External Fostering Payments,Agency (third party payments) & Contribs,7002957976,23/11/2022,4304
Buckinghamshire Council,Children's Services,FOSTERPLUS LTD,1000125,External Fostering Payments,Agency (third party payments) & Contribs,7002957976,23/11/2022,4304
Buckinghamshire Council,Children's Services,FOSTERPLUS LTD,1000125,External Fostering Payments,Agency (third party payments) & Contribs,7002957976,23/11/2022,4304
Buckinghamshire Council,Children's Services,FOSTERPLUS LTD,1000125,External Fostering Payments,Agency (third party payments) & Contribs,7002957976,23/11/2022,1690.86
Buckinghamshire Council,Children's Services,FOSTERPLUS LTD,1000125,External Fostering Payments,Agency (third party payments) & Contribs,7002957976,23/11/2022,-21.82
Buckinghamshire Council,Children's Services,FOSTERPLUS LTD,1000125,External Fostering Payments,Agency (third party payments) & Contribs,7002957976,23/11/2022,137.14
Buckinghamshire Council,Children's Services,FOSTERPLUS LTD,1000125,External Fostering Payments,Agency (third party payments) & Contribs,7002957976,23/11/2022,152.73
Buckinghamshire Council,Adults and Health,ABBEYFIELD BEACONSFIELD SOCIETY,1000144,Res care-permanent - other,Agency (third party payments) & Contribs,7002957449,23/11/2022,1209.52
Buckinghamshire Council,Adults and Health,ABBEYFIELD BEACONSFIELD SOCIETY,1000144,Res care-permanent - other,Agency (third party payments) & Contribs,7002957449,23/11/2022,3048.8
Buckinghamshire Council,Adults and Health,ABBEYFIELD BEACONSFIELD SOCIETY,1000144,Res care-permanent - other,Agency (third party payments) & Contribs,7002957449,23/11/2022,4982.04
Buckinghamshire Council,Adults and Health,ABBEYFIELD BEACONSFIELD SOCIETY,1000144,Res care-permanent - other,Controllable Customer & Client Receipts,7002957449,23/11/2022,-2319.56
Buckinghamshire Council,Adults and Health,ABBEYFIELD BEACONSFIELD SOCIETY,1000144,Res care-permanent - other,Controllable Customer & Client Receipts,7002957449,23/11/2022,-914.68
Buckinghamshire Council,Adults and Health,ABBEYFIELD BEACONSFIELD SOCIETY,1000144,Res care-permanent - other,Controllable Customer & Client Receipts,7002957449,23/11/2022,-1209.52
Buckinghamshire Council,Adults and Health,ABBEYFIELD BEACONSFIELD SOCIETY,1000144,Res care-permanent - other,Controllable Customer & Client Receipts,7002957449,23/11/2022,-1876.92
Buckinghamshire Council,Adults and Health,AGE CONCERN (BUCKS),1000148,Grants to External Bodies,Supplies and Services,4101016790,04/11/2022,35529.25
Buckinghamshire Council,Adults and Health,AGE CONCERN (BUCKS),1000148,Grants to External Bodies,Supplies and Services,4101016791,04/11/2022,29470.75
Buckinghamshire Council,Adults and Health,BURNHAM LODGE CARE LTD,1000159,Nurs-Perm EMI Other - Exp,Agency (third party payments) & Contribs,7002957450,23/11/2022,5042.88
Buckinghamshire Council,Adults and Health,BURNHAM LODGE CARE LTD,1000159,Nurs-Perm EMI Other - Exp,Agency (third party payments) & Contribs,7002957450,23/11/2022,4944
Buckinghamshire Council,Adults and Health,BURNHAM LODGE CARE LTD,1000159,Nursing care-permanent -other,Agency (third party payments) & Contribs,7002957450,23/11/2022,5200
Buckinghamshire Council,Adults and Health,BURNHAM LODGE CARE LTD,1000159,Nursing care-permanent -other,Agency (third party payments) & Contribs,7002957450,23/11/2022,4944
Buckinghamshire Council,Adults and Health,BURNHAM LODGE CARE LTD,1000159,Nursing care-permanent -other,Agency (third party payments) & Contribs,7002957450,23/11/2022,5042.88
Buckinghamshire Council,Adults and Health,BURNHAM LODGE CARE LTD,1000159,Nursing care-permanent -other,Agency (third party payments) & Contribs,7002957450,23/11/2022,5042.88
Buckinghamshire Council,Adults and Health,BURNHAM LODGE CARE LTD,1000159,Nursing care-permanent -other,Agency (third party payments) & Contribs,7002957450,23/11/2022,4202.4
Buckinghamshire Council,Adults and Health,BURNHAM LODGE CARE LTD,1000159,Res-Perm EMI-Other - Exp,Agency (third party payments) & Contribs,7002957450,23/11/2022,5356
Buckinghamshire Council,Adults and Health,BURNHAM LODGE CARE LTD,1000159,Res-Perm EMI-Other - Exp,Agency (third party payments) & Contribs,7002957450,23/11/2022,5150
Buckinghamshire Council,Adults and Health,BURNHAM LODGE CARE LTD,1000159,Res-Perm EMI-Other - Exp,Agency (third party payments) & Contribs,7002957450,23/11/2022,4622.64
Buckinghamshire Council,Adults and Health,BURNHAM LODGE CARE LTD,1000159,Res care-permanent - other,Controllable Customer & Client Receipts,7002957450,23/11/2022,-627.8
Buckinghamshire Council,Adults and Health,BURNHAM LODGE CARE LTD,1000159,Res care-permanent - other,Controllable Customer & Client Receipts,7002957450,23/11/2022,-139.48
Buckinghamshire Council,Adults and Health,BURNHAM LODGE CARE LTD,1000159,Nursing care-permanent -other,Controllable Customer & Client Receipts,7002957450,23/11/2022,-627.8
Buckinghamshire Council,Adults and Health,BURNHAM LODGE CARE LTD,1000159,Nursing care-permanent -other,Controllable Customer & Client Receipts,7002957450,23/11/2022,-1039.92
Buckinghamshire Council,Adults and Health,BURNHAM LODGE CARE LTD,1000159,Nursing care-permanent -other,Controllable Customer & Client Receipts,7002957450,23/11/2022,-653
Buckinghamshire Council,Adults and Health,BURNHAM LODGE CARE LTD,1000159,Nursing care-permanent -other,Controllable Customer & Client Receipts,7002957450,23/11/2022,-799.28
Buckinghamshire Council,Adults and Health,BURNHAM LODGE CARE LTD,1000159,Nursing care-permanent -other,Controllable Customer & Client Receipts,7002957450,23/11/2022,-1200
Buckinghamshire Council,Adults and Health,Wesgate Healthcare Ltd,1000160,Nurs-Perm EMI Other - Exp,Agency (third party payments) & Contribs,7002957451,23/11/2022,4265.04
Buckinghamshire Council,Adults and Health,Wesgate Healthcare Ltd,1000160,Nursing care-permanent -other,Agency (third party payments) & Contribs,7002957451,23/11/2022,4804.24
Buckinghamshire Council,Adults and Health,Wesgate Healthcare Ltd,1000160,Nursing care-permanent -other,Agency (third party payments) & Contribs,7002957451,23/11/2022,6000
Buckinghamshire Council,Adults and Health,Wesgate Healthcare Ltd,1000160,Nurs-Perm EMI Other - Exp,Agency (third party payments) & Contribs,7002957451,23/11/2022,4532
Buckinghamshire Council,Adults and Health,Wesgate Healthcare Ltd,1000160,Nurs-Perm EMI Other - Exp,Agency (third party payments) & Contribs,7002957451,23/11/2022,4465.8
Buckinghamshire Council,Adults and Health,Wesgate Healthcare Ltd,1000160,Nursing care-permanent -other,Agency (third party payments) & Contribs,7002957451,23/11/2022,49.6
Buckinghamshire Council,Adults and Health,Wesgate Healthcare Ltd,1000160,Nursing care-permanent -other,Agency (third party payments) & Contribs,7002957451,23/11/2022,5356
Buckinghamshire Council,Adults and Health,Wesgate Healthcare Ltd,1000160,Nursing care-permanent -other,Agency (third party payments) & Contribs,7002957451,23/11/2022,5253
Buckinghamshire Council,Adults and Health,Wesgate Healthcare Ltd,1000160,Nursing care-permanent -other,Agency (third party payments) & Contribs,7002957451,23/11/2022,4479.16
Buckinghamshire Council,Adults and Health,Wesgate Healthcare Ltd,1000160,Nursing care-permanent -other,Agency (third party payments) & Contribs,7002957451,23/11/2022,5600
Buckinghamshire Council,Adults and Health,Wesgate Healthcare Ltd,1000160,Nurs-Perm EMI Other - Exp,Agency (third party payments) & Contribs,7002957451,23/11/2022,4785.84
Buckinghamshire Council,Adults and Health,Wesgate Healthcare Ltd,1000160,Nurs-Perm EMI Other - Exp,Agency (third party payments) & Contribs,7002957451,23/11/2022,3433.24
Buckinghamshire Council,Adults and Health,Wesgate Healthcare Ltd,1000160,Nursing care-permanent -other,Agency (third party payments) & Contribs,7002957451,23/11/2022,5003.36
Buckinghamshire Council,Adults and Health,Wesgate Healthcare Ltd,1000160,Res-Perm EMI-Other - Exp,Agency (third party payments) & Contribs,7002957451,23/11/2022,4227.6
Buckinghamshire Council,Adults and Health,Wesgate Healthcare Ltd,1000160,Nurs-Perm EMI Other - Exp,Agency (third party payments) & Contribs,7002957451,23/11/2022,3377.68
Buckinghamshire Council,Adults and Health,Wesgate Healthcare Ltd,1000160,Nursing care-permanent -other,Controllable Customer & Client Receipts,7002957451,23/11/2022,-359.8
Buckinghamshire Council,Adults and Health,Wesgate Healthcare Ltd,1000160,Nursing care-permanent -other,Controllable Customer & Client Receipts,7002957451,23/11/2022,-41.4
Buckinghamshire Council,Adults and Health,Wesgate Healthcare Ltd,1000160,Nursing care-permanent -other,Controllable Customer & Client Receipts,7002957451,23/11/2022,-777.96
Buckinghamshire Council,Adults and Health,Wesgate Healthcare Ltd,1000160,Nursing care-permanent -other,Controllable Customer & Client Receipts,7002957451,23/11/2022,-645.68
Buckinghamshire Council,Adults and Health,Wesgate Healthcare Ltd,1000160,Nursing care-permanent -other,Controllable Customer & Client Receipts,7002957451,23/11/2022,-735.48
Buckinghamshire Council,Adults and Health,Wesgate Healthcare Ltd,1000160,Nursing care-permanent -other,Controllable Customer & Client Receipts,7002957451,23/11/2022,-966.24
Buckinghamshire Council,Adults and Health,Wesgate Healthcare Ltd,1000160,Nursing care-permanent -other,Controllable Customer & Client Receipts,7002957451,23/11/2022,-1000
Buckinghamshire Council,Adults and Health,Wesgate Healthcare Ltd,1000160,Res care-permanent - other,Controllable Customer & Client Receipts,7002957451,23/11/2022,-627.8
Buckinghamshire Council,Adults and Health,Wesgate Healthcare Ltd,1000160,Nursing care-permanent -other,Controllable Customer & Client Receipts,7002957451,23/11/2022,-49.6
Buckinghamshire Council,Adults and Health,CHALFONT LODGE NURSING HOME,1000164,Nurs-Perm EMI Other - Exp,Agency (third party payments) & Contribs,7002957452,23/11/2022,5400
Buckinghamshire Council,Adults and Health,CHALFONT LODGE NURSING HOME,1000164,Nursing care-permanent -other,Agency (third party payments) & Contribs,7002957452,23/11/2022,5562
Buckinghamshire Council,Adults and Health,CHALFONT LODGE NURSING HOME,1000164,Nursing care-permanent -other,Agency (third party payments) & Contribs,7002957452,23/11/2022,5201.08
Buckinghamshire Council,Adults and Health,CHALFONT LODGE NURSING HOME,1000164,Nursing care-permanent -other,Agency (third party payments) & Contribs,7002957452,23/11/2022,5201.08
Buckinghamshire Council,Adults and Health,CHALFONT LODGE NURSING HOME,1000164,Res-Perm EMI-Other - Exp,Agency (third party payments) & Contribs,7002957452,23/11/2022,5562
Buckinghamshire Council,Adults and Health,CHALFONT LODGE NURSING HOME,1000164,Res-Perm EMI-Other - Exp,Agency (third party payments) & Contribs,7002957452,23/11/2022,5800
Buckinghamshire Council,Adults and Health,CHALFONT LODGE NURSING HOME,1000164,Nurs-Perm EMI Other - Exp,Agency (third party payments) & Contribs,7002957452,23/11/2022,6429.68
Buckinghamshire Council,Adults and Health,CHALFONT LODGE NURSING HOME,1000164,Nursing care-permanent -other,Agency (third party payments) & Contribs,7002957452,23/11/2022,5719.96
Buckinghamshire Council,Adults and Health,CHALFONT LODGE NURSING HOME,1000164,Nursing care-permanent -other,Agency (third party payments) & Contribs,7002957452,23/11/2022,5652.04
Buckinghamshire Council,Adults and Health,CHALFONT LODGE NURSING HOME,1000164,Nursing care-permanent -other,Agency (third party payments) & Contribs,7002957452,23/11/2022,6854.04
Buckinghamshire Council,Adults and Health,CHALFONT LODGE NURSING HOME,1000164,Nurs-Perm EMI Other - Exp,Agency (third party payments) & Contribs,7002957452,23/11/2022,4791.56
Buckinghamshire Council,Adults and Health,CHALFONT LODGE NURSING HOME,1000164,Nurs-Perm EMI Other - Exp,Agency (third party payments) & Contribs,7002957452,23/11/2022,5165.6
Buckinghamshire Council,Adults and Health,CHALFONT LODGE NURSING HOME,1000164,Nursing care-permanent -other,Agency (third party payments) & Contribs,7002957452,23/11/2022,3299.92
Buckinghamshire Council,Adults and Health,CHALFONT LODGE NURSING HOME,1000164,Nursing care-permanent -other,Agency (third party payments) & Contribs,7002957452,23/11/2022,6723.84
Buckinghamshire Council,Adults and Health,CHALFONT LODGE NURSING HOME,1000164,Nursing care-permanent -other,Agency (third party payments) & Contribs,7002957452,23/11/2022,2206.36
Buckinghamshire Council,Adults and Health,CHALFONT LODGE NURSING HOME,1000164,Res-Perm EMI-Other - Exp,Agency (third party payments) & Contribs,7002957452,23/11/2022,4202.4
Buckinghamshire Council,Adults and Health,CHALFONT LODGE NURSING HOME,1000164,Nursing care-permanent -other,Agency (third party payments) & Contribs,7002957452,23/11/2022,5364
Buckinghamshire Council,Adults and Health,CHALFONT LODGE NURSING HOME,1000164,Nurs-Perm EMI Other - Exp,Agency (third party payments) & Contribs,7002957452,23/11/2022,4944
Buckinghamshire Council,Adults and Health,CHALFONT LODGE NURSING HOME,1000164,Nursing care-permanent -other,Agency (third party payments) & Contribs,7002957452,23/11/2022,1262.4
Buckinghamshire Council,Adults and Health,CHALFONT LODGE NURSING HOME,1000164,Res care-permanent - other,Agency (third party payments) & Contribs,7002957452,23/11/2022,5400
Buckinghamshire Council,Adults and Health,CHALFONT LODGE NURSING HOME,1000164,Nurs-Perm EMI Other - Exp,Agency (third party payments) & Contribs,7002957452,23/11/2022,5800
Buckinghamshire Council,Adults and Health,CHALFONT LODGE NURSING HOME,1000164,Nursing care-permanent -other,Agency (third party payments) & Contribs,7002957452,23/11/2022,5786.72
Buckinghamshire Council,Adults and Health,CHALFONT LODGE NURSING HOME,1000164,Nurs-Perm EMI Other - Exp,Agency (third party payments) & Contribs,7002957452,23/11/2022,2900
Buckinghamshire Council,Adults and Health,CHALFONT LODGE NURSING HOME,1000164,Nurs-Perm EMI Other - Exp,Agency (third party payments) & Contribs,7002957452,23/11/2022,5800
Buckinghamshire Council,Adults and Health,CHALFONT LODGE NURSING HOME,1000164,Nursing care-permanent -other,Agency (third party payments) & Contribs,7002957452,23/11/2022,6557.14
Buckinghamshire Council,Adults and Health,CHALFONT LODGE NURSING HOME,1000164,Nursing care-permanent -other,Controllable Customer & Client Receipts,7002957452,23/11/2022,-1203.92
Buckinghamshire Council,Adults and Health,CHALFONT LODGE NURSING HOME,1000164,Nursing care-permanent -other,Controllable Customer & Client Receipts,7002957452,23/11/2022,-1166.64
Buckinghamshire Council,Adults and Health,CHALFONT LODGE NURSING HOME,1000164,Res care-permanent - other,Controllable Customer & Client Receipts,7002957452,23/11/2022,-770.88
Buckinghamshire Council,Adults and Health,CHALFONT LODGE NURSING HOME,1000164,Res care-permanent - other,Controllable Customer & Client Receipts,7002957452,23/11/2022,-900.4
Buckinghamshire Council,Adults and Health,CHALFONT LODGE NURSING HOME,1000164,Nursing care-permanent -other,Controllable Customer & Client Receipts,7002957452,23/11/2022,-691.04
Buckinghamshire Council,Adults and Health,CHALFONT LODGE NURSING HOME,1000164,Nursing care-permanent -other,Controllable Customer & Client Receipts,7002957452,23/11/2022,-1103.52
Buckinghamshire Council,Adults and Health,CHALFONT LODGE NURSING HOME,1000164,Nursing care-permanent -other,Controllable Customer & Client Receipts,7002957452,23/11/2022,-511.8
Buckinghamshire Council,Adults and Health,CHALFONT LODGE NURSING HOME,1000164,Nursing care-permanent -other,Controllable Customer & Client Receipts,7002957452,23/11/2022,-438.8
Buckinghamshire Council,Adults and Health,CHALFONT LODGE NURSING HOME,1000164,Res care-permanent - other,Controllable Customer & Client Receipts,7002957452,23/11/2022,-392.68
Buckinghamshire Council,Adults and Health,CHALFONT LODGE NURSING HOME,1000164,Nursing care-permanent -other,Controllable Customer & Client Receipts,7002957452,23/11/2022,-1062.68
Buckinghamshire Council,Adults and Health,CHALFONT LODGE NURSING HOME,1000164,Nursing care-permanent -other,Controllable Customer & Client Receipts,7002957452,23/11/2022,-940.16
Buckinghamshire Council,Adults and Health,CHALFONT LODGE NURSING HOME,1000164,Nursing care-permanent -other,Controllable Customer & Client Receipts,7002957452,23/11/2022,-627.8
Buckinghamshire Council,Adults and Health,CHALFONT LODGE NURSING HOME,1000164,Nursing care-permanent -other,Controllable Customer & Client Receipts,7002957452,23/11/2022,-250
Buckinghamshire Council,Adults and Health,CHALFONT LODGE NURSING HOME,1000164,Nursing care-permanent -other,Controllable Customer & Client Receipts,7002957452,23/11/2022,-730.4
Buckinghamshire Council,Adults and Health,CHALFONT LODGE NURSING HOME,1000164,Nursing care-permanent -other,Controllable Customer & Client Receipts,7002957452,23/11/2022,-666
Buckinghamshire Council,Adults and Health,CHALFONT LODGE NURSING HOME,1000164,Nursing care-permanent -other,Controllable Customer & Client Receipts,7002957452,23/11/2022,-126.77
Buckinghamshire Council,Adults and Health,CHALFONT LODGE NURSING HOME,1000164,Nursing care-permanent -other,Controllable Customer & Client Receipts,7002957452,23/11/2022,-197.2
Buckinghamshire Council,Adults and Health,CHALFONT LODGE NURSING HOME,1000164,Nursing care-permanent -other,Controllable Customer & Client Receipts,7002957452,23/11/2022,-748.42
Buckinghamshire Council,Adults and Health,CHALFONT LODGE NURSING HOME,1000164,Nursing care-permanent -other,Controllable Customer & Client Receipts,7002957452,23/11/2022,-1496.66
Buckinghamshire Council,Adults and Health,CHALFONT LODGE NURSING HOME,1000164,Res care-permanent - other,Controllable Customer & Client Receipts,7002957452,23/11/2022,224.21
Buckinghamshire Council,Adults and Health,CHALFONT LODGE NURSING HOME,1000164,Res care-permanent - other,Controllable Customer & Client Receipts,7002957452,23/11/2022,627.8
Buckinghamshire Council,Adults and Health,CHALFONT LODGE NURSING HOME,1000164,Res care-permanent - other,Controllable Customer & Client Receipts,7002957452,23/11/2022,627.8
Buckinghamshire Council,Adults and Health,CHALFONT LODGE NURSING HOME,1000164,Res care-permanent - other,Controllable Customer & Client Receipts,7002957452,23/11/2022,627.8
Buckinghamshire Council,Adults and Health,CHALFONT LODGE NURSING HOME,1000164,Res care-permanent - other,Controllable Customer & Client Receipts,7002957452,23/11/2022,627.8
Buckinghamshire Council,Adults and Health,CHALFONT LODGE NURSING HOME,1000164,Nursing care-permanent -other,Controllable Customer & Client Receipts,7002957452,23/11/2022,-806.76
Buckinghamshire Council,Adults and Health,CHALFONT LODGE NURSING HOME,1000164,Nursing care-permanent -other,Controllable Customer & Client Receipts,7002957452,23/11/2022,-3299.92
Buckinghamshire Council,Adults and Health,REDACTED,1000165,Nursing care-permanent -other,Agency (third party payments) & Contribs,7002957453,23/11/2022,-3614.29
Buckinghamshire Council,Adults and Health,REDACTED,1000165,Nurs-Perm EMI Other - Exp,Agency (third party payments) & Contribs,7002957453,23/11/2022,4000
Buckinghamshire Council,Adults and Health,REDACTED,1000165,Nursing care-permanent -other,Agency (third party payments) & Contribs,7002957453,23/11/2022,5883.36
Buckinghamshire Council,Adults and Health,REDACTED,1000165,Nurs-Perm EMI Other - Exp,Agency (third party payments) & Contribs,7002957453,23/11/2022,4000
Buckinghamshire Council,Adults and Health,REDACTED,1000165,Nurs-Perm EMI Other - Exp,Agency (third party payments) & Contribs,7002957453,23/11/2022,4400
Buckinghamshire Council,Adults and Health,REDACTED,1000165,Nurs-Perm EMI Other - Exp,Agency (third party payments) & Contribs,7002957453,23/11/2022,4600
Buckinghamshire Council,Adults and Health,REDACTED,1000165,Nursing care-permanent -other,Agency (third party payments) & Contribs,7002957453,23/11/2022,3429.16
Buckinghamshire Council,Adults and Health,REDACTED,1000165,Nursing care-permanent -other,Agency (third party payments) & Contribs,7002957453,23/11/2022,3429.16
Buckinghamshire Council,Adults and Health,REDACTED,1000165,Res-Perm EMI-Other - Exp,Agency (third party payments) & Contribs,7002957453,23/11/2022,3643.48
Buckinghamshire Council,Adults and Health,REDACTED,1000165,Res care-permanent - other,Agency (third party payments) & Contribs,7002957453,23/11/2022,3708
Buckinghamshire Council,Adults and Health,REDACTED,1000165,Res care-permanent - other,Agency (third party payments) & Contribs,7002957453,23/11/2022,3214.84
Buckinghamshire Council,Adults and Health,REDACTED,1000165,Nursing care-permanent -other,Agency (third party payments) & Contribs,7002957453,23/11/2022,3429.16
Buckinghamshire Council,Adults and Health,REDACTED,1000165,Nurs-Perm EMI Other - Exp,Agency (third party payments) & Contribs,7002957453,23/11/2022,3643.48
Buckinghamshire Council,Adults and Health,REDACTED,1000165,Nursing care-permanent -other,Agency (third party payments) & Contribs,7002957453,23/11/2022,-2506.71
Buckinghamshire Council,Adults and Health,REDACTED,1000165,Nursing care-permanent -other,Agency (third party payments) & Contribs,7002957453,23/11/2022,3614.29
Buckinghamshire Council,Adults and Health,REDACTED,1000165,Nursing care-permanent -other,Agency (third party payments) & Contribs,7002957453,23/11/2022,2300
Buckinghamshire Council,Adults and Health,REDACTED,1000165,Nursing care-permanent -other,Agency (third party payments) & Contribs,7002957453,23/11/2022,2464.29
Buckinghamshire Council,Adults and Health,REDACTED,1000165,Nursing care-permanent -other,Agency (third party payments) & Contribs,7002957453,23/11/2022,-164.29
Buckinghamshire Council,Adults and Health,REDACTED,1000165,Nursing care-permanent -other,Controllable Customer & Client Receipts,7002957453,23/11/2022,-627.8
Buckinghamshire Council,Adults and Health,REDACTED,1000165,Nursing care-permanent -other,Controllable Customer & Client Receipts,7002957453,23/11/2022,-438.8
Buckinghamshire Council,Adults and Health,REDACTED,1000165,Res care-permanent - other,Controllable Customer & Client Receipts,7002957453,23/11/2022,-939.84
Buckinghamshire Council,Adults and Health,REDACTED,1000165,Res care-permanent - other,Controllable Customer & Client Receipts,7002957453,23/11/2022,-625.68
Buckinghamshire Council,Adults and Health,REDACTED,1000165,Res care-permanent - other,Controllable Customer & Client Receipts,7002957453,23/11/2022,-627.8
Buckinghamshire Council,Adults and Health,REDACTED,1000165,Nursing care-permanent -other,Controllable Customer & Client Receipts,7002957453,23/11/2022,-895.52
Buckinghamshire Council,Adults and Health,REDACTED,1000165,Nursing care-permanent -other,Controllable Customer & Client Receipts,7002957453,23/11/2022,-883.28
Buckinghamshire Council,Adults and Health,REDACTED,1000165,Nursing care-permanent -other,Controllable Customer & Client Receipts,7002957453,23/11/2022,-1120.64
Buckinghamshire Council,Adults and Health,REDACTED,1000165,Nursing care-permanent -other,Controllable Customer & Client Receipts,7002957453,23/11/2022,-436.36
Buckinghamshire Council,Adults and Health,REDACTED,1000165,Nursing care-permanent -other,Controllable Customer & Client Receipts,7002957453,23/11/2022,-627.8
Buckinghamshire Council,Adults and Health,REDACTED,1000165,Nursing care-permanent -other,Controllable Customer & Client Receipts,7002957453,23/11/2022,-105.43
Buckinghamshire Council,Adults and Health,REDACTED,1000165,Nursing care-permanent -other,Controllable Customer & Client Receipts,7002957453,23/11/2022,-421.71
Buckinghamshire Council,Adults and Health,REDACTED,1000165,Nursing care-permanent -other,Controllable Customer & Client Receipts,7002957453,23/11/2022,32.92
Buckinghamshire Council,Adults and Health,REDACTED,1000165,Nursing care-permanent -other,Controllable Customer & Client Receipts,7002957453,23/11/2022,421.71
Buckinghamshire Council,Adults and Health,REDACTED,1000165,Nursing care-permanent -other,Controllable Customer & Client Receipts,7002957453,23/11/2022,105.43
Buckinghamshire Council,Adults and Health,CHERRY TREE NURSING HOME,1000166,Nurs-Perm EMI Other - Exp,Agency (third party payments) & Contribs,7002957454,23/11/2022,4600
Buckinghamshire Council,Adults and Health,CHERRY TREE NURSING HOME,1000166,Nursing care-permanent -other,Agency (third party payments) & Contribs,7002957454,23/11/2022,4944
Buckinghamshire Council,Adults and Health,CHERRY TREE NURSING HOME,1000166,Nursing care-permanent -other,Agency (third party payments) & Contribs,7002957454,23/11/2022,4600
Buckinghamshire Council,Adults and Health,CHERRY TREE NURSING HOME,1000166,Nursing care-permanent -other,Agency (third party payments) & Contribs,7002957454,23/11/2022,4600
Buckinghamshire Council,Adults and Health,CHERRY TREE NURSING HOME,1000166,Nursing care-permanent -other,Agency (third party payments) & Contribs,7002957454,23/11/2022,4600
Buckinghamshire Council,Adults and Health,CHERRY TREE NURSING HOME,1000166,Nursing care-permanent -other,Agency (third party payments) & Contribs,7002957454,23/11/2022,4600
Buckinghamshire Council,Adults and Health,CHERRY TREE NURSING HOME,1000166,Nursing care-permanent -other,Agency (third party payments) & Contribs,7002957454,23/11/2022,4600
Buckinghamshire Council,Adults and Health,CHERRY TREE NURSING HOME,1000166,Nursing care-permanent -other,Agency (third party payments) & Contribs,7002957454,23/11/2022,4600
Buckinghamshire Council,Adults and Health,CHERRY TREE NURSING HOME,1000166,Nursing care-permanent -other,Agency (third party payments) & Contribs,7002957454,23/11/2022,4600
Buckinghamshire Council,Adults and Health,CHERRY TREE NURSING HOME,1000166,Nurs-Perm EMI Other - Exp,Agency (third party payments) & Contribs,7002957454,23/11/2022,4600
Buckinghamshire Council,Adults and Health,CHERRY TREE NURSING HOME,1000166,Nursing care-permanent -other,Agency (third party payments) & Contribs,7002957454,23/11/2022,4944
Buckinghamshire Council,Adults and Health,CHERRY TREE NURSING HOME,1000166,Nursing care-permanent -other,Agency (third party payments) & Contribs,7002957454,23/11/2022,5356
Buckinghamshire Council,Adults and Health,CHERRY TREE NURSING HOME,1000166,Nursing care-permanent -other,Agency (third party payments) & Contribs,7002957454,23/11/2022,4944
Buckinghamshire Council,Adults and Health,CHERRY TREE NURSING HOME,1000166,Nurs-Perm EMI Other - Exp,Agency (third party payments) & Contribs,7002957454,23/11/2022,-1657.14
Buckinghamshire Council,Adults and Health,CHERRY TREE NURSING HOME,1000166,Nursing care-permanent -other,Controllable Customer & Client Receipts,7002957454,23/11/2022,-972.64
Buckinghamshire Council,Adults and Health,CHERRY TREE NURSING HOME,1000166,Nursing care-permanent -other,Controllable Customer & Client Receipts,7002957454,23/11/2022,-238.48
Buckinghamshire Council,Adults and Health,CHERRY TREE NURSING HOME,1000166,Nursing care-permanent -other,Controllable Customer & Client Receipts,7002957454,23/11/2022,-638.36
Buckinghamshire Council,Adults and Health,CHERRY TREE NURSING HOME,1000166,Nursing care-permanent -other,Controllable Customer & Client Receipts,7002957454,23/11/2022,-676.08
Buckinghamshire Council,Adults and Health,CHERRY TREE NURSING HOME,1000166,Nursing care-permanent -other,Controllable Customer & Client Receipts,7002957454,23/11/2022,-684.96
Buckinghamshire Council,Adults and Health,CHERRY TREE NURSING HOME,1000166,Nursing care-permanent -other,Controllable Customer & Client Receipts,7002957454,23/11/2022,-4600
Buckinghamshire Council,Adults and Health,CHERRY TREE NURSING HOME,1000166,Nursing care-permanent -other,Controllable Customer & Client Receipts,7002957454,23/11/2022,-1428.56
Buckinghamshire Council,Adults and Health,CHERRY TREE NURSING HOME,1000166,Nursing care-permanent -other,Controllable Customer & Client Receipts,7002957454,23/11/2022,-564.92
Buckinghamshire Council,Adults and Health,CHERRY TREE NURSING HOME,1000166,Nursing care-permanent -other,Controllable Customer & Client Receipts,7002957454,23/11/2022,-687.8
Buckinghamshire Council,Adults and Health,DENHAM MANOR NURSING HOME,1000169,Nursing care-permanent -other,Agency (third party payments) & Contribs,7002957455,23/11/2022,3210.56
Buckinghamshire Council,Adults and Health,DENHAM MANOR NURSING HOME,1000169,Nurs-Perm EMI Other - Exp,Agency (third party payments) & Contribs,7002957455,23/11/2022,4480.08
Buckinghamshire Council,Adults and Health,DENHAM MANOR NURSING HOME,1000169,Nurs-Perm EMI Other - Exp,Agency (third party payments) & Contribs,7002957455,23/11/2022,3429.16
Buckinghamshire Council,Adults and Health,DENHAM MANOR NURSING HOME,1000169,Nursing care-permanent -other,Agency (third party payments) & Contribs,7002957455,23/11/2022,4109.28
Buckinghamshire Council,Adults and Health,DENHAM MANOR NURSING HOME,1000169,Nursing care-permanent -other,Agency (third party payments) & Contribs,7002957455,23/11/2022,3210.56
Buckinghamshire Council,Adults and Health,DENHAM MANOR NURSING HOME,1000169,Nursing care-permanent -other,Agency (third party payments) & Contribs,7002957455,23/11/2022,3258.72
Buckinghamshire Council,Adults and Health,DENHAM MANOR NURSING HOME,1000169,Nursing care-permanent -other,Agency (third party payments) & Contribs,7002957455,23/11/2022,3210.56
Buckinghamshire Council,Adults and Health,DENHAM MANOR NURSING HOME,1000169,Nursing care-permanent -other,Agency (third party payments) & Contribs,7002957455,23/11/2022,3258.72
Buckinghamshire Council,Adults and Health,DENHAM MANOR NURSING HOME,1000169,Nursing care-permanent -other,Agency (third party payments) & Contribs,7002957455,23/11/2022,4449.6
Buckinghamshire Council,Adults and Health,DENHAM MANOR NURSING HOME,1000169,Nursing care-permanent -other,Controllable Customer & Client Receipts,7002957455,23/11/2022,-562.8
Buckinghamshire Council,Adults and Health,DENHAM MANOR NURSING HOME,1000169,Nursing care-permanent -other,Controllable Customer & Client Receipts,7002957455,23/11/2022,-627.8
Buckinghamshire Council,Adults and Health,DENHAM MANOR NURSING HOME,1000169,Nursing care-permanent -other,Controllable Customer & Client Receipts,7002957455,23/11/2022,-864.92
Buckinghamshire Council,Adults and Health,DENHAM MANOR NURSING HOME,1000169,Nursing care-permanent -other,Controllable Customer & Client Receipts,7002957455,23/11/2022,-494
Buckinghamshire Council,Adults and Health,DENHAM MANOR NURSING HOME,1000169,Nursing care-permanent -other,Controllable Customer & Client Receipts,7002957455,23/11/2022,-504.64
Buckinghamshire Council,Adults and Health,DENHAM MANOR NURSING HOME,1000169,Nursing care-permanent -other,Controllable Customer & Client Receipts,7002957455,23/11/2022,-701.52
Buckinghamshire Council,Adults and Health,DENHAM MANOR NURSING HOME,1000169,Nursing care-permanent -other,Controllable Customer & Client Receipts,7002957455,23/11/2022,-745.08
Buckinghamshire Council,Adults and Health,DENHAM MANOR NURSING HOME,1000169,Nursing care-permanent -other,Controllable Customer & Client Receipts,7002957455,23/11/2022,-499.8
Buckinghamshire Council,Adults and Health,DENHAM MANOR NURSING HOME,1000169,Nursing care-permanent -other,Controllable Customer & Client Receipts,7002957455,23/11/2022,-629.68
Buckinghamshire Council,Adults and Health,Ambient Support Limited,1000171,Extra Care,Transfer Payments (Grants & Assistance),7002957444,23/11/2022,1013.12
Buckinghamshire Council,Adults and Health,Ambient Support Limited,1000171,Extra Care,Transfer Payments (Grants & Assistance),7002957444,23/11/2022,1013.12
Buckinghamshire Council,Adults and Health,Ambient Support Limited,1000171,Extra Care,Transfer Payments (Grants & Assistance),7002957444,23/11/2022,10131.2
Buckinghamshire Council,Adults and Health,Ambient Support Limited,1000171,Extra Care,Transfer Payments (Grants & Assistance),7002957444,23/11/2022,402.84
Buckinghamshire Council,Adults and Health,Ambient Support Limited,1000171,Extra Care,Transfer Payments (Grants & Assistance),7002957444,23/11/2022,204.92
Buckinghamshire Council,Adults and Health,Ambient Support Limited,1000171,Extra Care,Transfer Payments (Grants & Assistance),7002957445,23/11/2022,1013.12
Buckinghamshire Council,Adults and Health,Ambient Support Limited,1000171,Extra Care,Transfer Payments (Grants & Assistance),7002957445,23/11/2022,1013.12
Buckinghamshire Council,Adults and Health,Ambient Support Limited,1000171,Extra Care,Transfer Payments (Grants & Assistance),7002957445,23/11/2022,1013.12
Buckinghamshire Council,Adults and Health,Ambient Support Limited,1000171,Extra Care,Transfer Payments (Grants & Assistance),7002957445,23/11/2022,1013.12
Buckinghamshire Council,Adults and Health,Ambient Support Limited,1000171,Extra Care,Transfer Payments (Grants & Assistance),7002957445,23/11/2022,1013.12
Buckinghamshire Council,Adults and Health,Ambient Support Limited,1000171,Extra Care,Transfer Payments (Grants & Assistance),7002957445,23/11/2022,1013.12
Buckinghamshire Council,Adults and Health,Ambient Support Limited,1000171,Extra Care,Transfer Payments (Grants & Assistance),7002957445,23/11/2022,1013.12
Buckinghamshire Council,Adults and Health,Ambient Support Limited,1000171,Extra Care,Transfer Payments (Grants & Assistance),7002957445,23/11/2022,1013.12
Buckinghamshire Council,Adults and Health,Ambient Support Limited,1000171,Extra Care,Transfer Payments (Grants & Assistance),7002957445,23/11/2022,1013.12
Buckinghamshire Council,Adults and Health,Ambient Support Limited,1000171,Extra Care,Transfer Payments (Grants & Assistance),7002957445,23/11/2022,3039.36
Buckinghamshire Council,Adults and Health,Ambient Support Limited,1000171,Extra Care,Transfer Payments (Grants & Assistance),7002957445,23/11/2022,373
Buckinghamshire Council,Adults and Health,Ambient Support Limited,1000171,Extra Care,Transfer Payments (Grants & Assistance),7002957445,23/11/2022,104.44
Buckinghamshire Council,Adults and Health,Ambient Support Limited,1000171,Extra Care,Transfer Payments (Grants & Assistance),7002957445,23/11/2022,613.64
Buckinghamshire Council,Adults and Health,Ambient Support Limited,1000171,Extra Care,Transfer Payments (Grants & Assistance),7002957445,23/11/2022,533.6
Buckinghamshire Council,Adults and Health,Ambient Support Limited,1000171,Extra Care,Transfer Payments (Grants & Assistance),7002957445,23/11/2022,696.27
Buckinghamshire Council,Adults and Health,Ambient Support Limited,1000171,Extra Care,Transfer Payments (Grants & Assistance),7002957445,23/11/2022,417.76
Buckinghamshire Council,Adults and Health,Ambient Support Limited,1000171,Extra Care,Transfer Payments (Grants & Assistance),7002957445,23/11/2022,134.28
Buckinghamshire Council,Adults and Health,Ambient Support Limited,1000171,Extra Care,Transfer Payments (Grants & Assistance),7002957445,23/11/2022,292.72
Buckinghamshire Council,Adults and Health,Ambient Support Limited,1000171,Extra Care,Transfer Payments (Grants & Assistance),7002957446,23/11/2022,822.8
Buckinghamshire Council,Adults and Health,Ambient Support Limited,1000171,Extra Care,Transfer Payments (Grants & Assistance),7002957446,23/11/2022,822.8
Buckinghamshire Council,Adults and Health,Ambient Support Limited,1000171,Extra Care,Transfer Payments (Grants & Assistance),7002957446,23/11/2022,822.8
Buckinghamshire Council,Adults and Health,Ambient Support Limited,1000171,Extra Care,Transfer Payments (Grants & Assistance),7002957446,23/11/2022,822.8
Buckinghamshire Council,Adults and Health,Ambient Support Limited,1000171,Extra Care,Transfer Payments (Grants & Assistance),7002957446,23/11/2022,822.8
Buckinghamshire Council,Adults and Health,Ambient Support Limited,1000171,Extra Care,Transfer Payments (Grants & Assistance),7002957446,23/11/2022,822.8
Buckinghamshire Council,Adults and Health,Ambient Support Limited,1000171,Extra Care,Transfer Payments (Grants & Assistance),7002957446,23/11/2022,822.8
Buckinghamshire Council,Adults and Health,Ambient Support Limited,1000171,Extra Care,Transfer Payments (Grants & Assistance),7002957446,23/11/2022,3291.2
Buckinghamshire Council,Adults and Health,Ambient Support Limited,1000171,Extra Care,Transfer Payments (Grants & Assistance),7002957446,23/11/2022,447.6
Buckinghamshire Council,Adults and Health,Ambient Support Limited,1000171,Extra Care,Transfer Payments (Grants & Assistance),7002957446,23/11/2022,328.24
Buckinghamshire Council,Adults and Health,Ambient Support Limited,1000171,Extra Care,Transfer Payments (Grants & Assistance),7002957446,23/11/2022,746
Buckinghamshire Council,Adults and Health,Ambient Support Limited,1000171,Extra Care,Transfer Payments (Grants & Assistance),7002957446,23/11/2022,278.12
Buckinghamshire Council,Adults and Health,Ambient Support Limited,1000171,Extra Care,Transfer Payments (Grants & Assistance),7002957446,23/11/2022,209.16
Buckinghamshire Council,Adults and Health,Ambient Support Limited,1000171,Extra Care,Transfer Payments (Grants & Assistance),7002957446,23/11/2022,649
Buckinghamshire Council,Adults and Health,Ambient Support Limited,1000171,Extra Care,Transfer Payments (Grants & Assistance),7002957446,23/11/2022,88.16
Buckinghamshire Council,Adults and Health,Ambient Support Limited,1000171,Extra Care,Transfer Payments (Grants & Assistance),7002957446,23/11/2022,822.8
Buckinghamshire Council,Adults and Health,Ambient Support Limited,1000171,Extra Care,Transfer Payments (Grants & Assistance),7002957446,23/11/2022,-88.16
Buckinghamshire Council,Adults and Health,Ambient Support Limited,1000171,Extra Care,Transfer Payments (Grants & Assistance),7002957446,23/11/2022,328.24
Buckinghamshire Council,Adults and Health,Ambient Support Limited,1000171,Res-Perm EMI-Other - Exp,Agency (third party payments) & Contribs,7002957456,23/11/2022,-3244
Buckinghamshire Council,Adults and Health,Ambient Support Limited,1000171,Res-Perm EMI-Other - Exp,Agency (third party payments) & Contribs,7002957456,23/11/2022,-3244
Buckinghamshire Council,Adults and Health,Ambient Support Limited,1000171,Res-Perm EMI-Other - Exp,Agency (third party payments) & Contribs,7002957456,23/11/2022,-463.43
Buckinghamshire Council,Adults and Health,Ambient Support Limited,1000171,Res-Perm EMI-Other - Exp,Agency (third party payments) & Contribs,7002957456,23/11/2022,-2780.57
Buckinghamshire Council,Adults and Health,Ambient Support Limited,1000171,Res-Perm EMI-Other - Exp,Agency (third party payments) & Contribs,7002957456,23/11/2022,-3244
Buckinghamshire Council,Adults and Health,Ambient Support Limited,1000171,Res-Perm EMI-Other - Exp,Agency (third party payments) & Contribs,7002957456,23/11/2022,-3244
Buckinghamshire Council,Adults and Health,Ambient Support Limited,1000171,Res-Perm EMI-Other - Exp,Agency (third party payments) & Contribs,7002957456,23/11/2022,-3244
Buckinghamshire Council,Adults and Health,Ambient Support Limited,1000171,Res-Perm EMI-Other - Exp,Agency (third party payments) & Contribs,7002957456,23/11/2022,-2664.71
Buckinghamshire Council,Adults and Health,Ambient Support Limited,1000171,Res-Perm EMI-Other - Exp,Agency (third party payments) & Contribs,7002957456,23/11/2022,-3244
Buckinghamshire Council,Adults and Health,Ambient Support Limited,1000171,Res-Perm EMI-Other - Exp,Agency (third party payments) & Contribs,7002957456,23/11/2022,-3244
Buckinghamshire Council,Adults and Health,Ambient Support Limited,1000171,Res-Perm EMI-Other - Exp,Agency (third party payments) & Contribs,7002957456,23/11/2022,-3244
Buckinghamshire Council,Adults and Health,Ambient Support Limited,1000171,Res-Perm EMI-Other - Exp,Agency (third party payments) & Contribs,7002957456,23/11/2022,-3244
Buckinghamshire Council,Adults and Health,Ambient Support Limited,1000171,Res-Perm EMI-Other - Exp,Agency (third party payments) & Contribs,7002957456,23/11/2022,-3244
Buckinghamshire Council,Adults and Health,Ambient Support Limited,1000171,Res-Perm EMI-Other - Exp,Agency (third party payments) & Contribs,7002957456,23/11/2022,-811
Buckinghamshire Council,Adults and Health,Ambient Support Limited,1000171,Res-Perm EMI-Other - Exp,Agency (third party payments) & Contribs,7002957456,23/11/2022,-2433
Buckinghamshire Council,Adults and Health,Ambient Support Limited,1000171,Res-Perm EMI-Other - Exp,Agency (third party payments) & Contribs,7002957456,23/11/2022,811
Buckinghamshire Council,Adults and Health,Ambient Support Limited,1000171,Res-Perm EMI-Other - Exp,Agency (third party payments) & Contribs,7002957456,23/11/2022,830.27
Buckinghamshire Council,Adults and Health,Ambient Support Limited,1000171,Res-Perm EMI-Other - Exp,Agency (third party payments) & Contribs,7002957456,23/11/2022,830.27
Buckinghamshire Council,Adults and Health,Ambient Support Limited,1000171,Res-Perm EMI-Other - Exp,Agency (third party payments) & Contribs,7002957456,23/11/2022,1660.54
Buckinghamshire Council,Adults and Health,Ambient Support Limited,1000171,Res-Perm EMI-Other - Exp,Agency (third party payments) & Contribs,7002957456,23/11/2022,2433
Buckinghamshire Council,Adults and Health,Ambient Support Limited,1000171,Res-Perm EMI-Other - Exp,Agency (third party payments) & Contribs,7002957456,23/11/2022,2664.71
Buckinghamshire Council,Adults and Health,Ambient Support Limited,1000171,Res-Perm EMI-Other - Exp,Agency (third party payments) & Contribs,7002957456,23/11/2022,2728.03
Buckinghamshire Council,Adults and Health,Ambient Support Limited,1000171,Res-Perm EMI-Other - Exp,Agency (third party payments) & Contribs,7002957456,23/11/2022,-463.43
Buckinghamshire Council,Adults and Health,Ambient Support Limited,1000171,Res-Perm EMI-Other - Exp,Agency (third party payments) & Contribs,7002957456,23/11/2022,3244
Buckinghamshire Council,Adults and Health,Ambient Support Limited,1000171,Res-Perm EMI-Other - Exp,Agency (third party payments) & Contribs,7002957456,23/11/2022,3244
Buckinghamshire Council,Adults and Health,Ambient Support Limited,1000171,Res-Perm EMI-Other - Exp,Agency (third party payments) & Contribs,7002957456,23/11/2022,3244
Buckinghamshire Council,Adults and Health,Ambient Support Limited,1000171,Res-Perm EMI-Other - Exp,Agency (third party payments) & Contribs,7002957456,23/11/2022,3244
Buckinghamshire Council,Adults and Health,Ambient Support Limited,1000171,Res-Perm EMI-Other - Exp,Agency (third party payments) & Contribs,7002957456,23/11/2022,3244
Buckinghamshire Council,Adults and Health,Ambient Support Limited,1000171,Res-Perm EMI-Other - Exp,Agency (third party payments) & Contribs,7002957456,23/11/2022,3244
Buckinghamshire Council,Adults and Health,Ambient Support Limited,1000171,Res-Perm EMI-Other - Exp,Agency (third party payments) & Contribs,7002957456,23/11/2022,3244
Buckinghamshire Council,Adults and Health,Ambient Support Limited,1000171,Res-Perm EMI-Other - Exp,Agency (third party payments) & Contribs,7002957456,23/11/2022,3244
Buckinghamshire Council,Adults and Health,Ambient Support Limited,1000171,Res-Perm EMI-Other - Exp,Agency (third party payments) & Contribs,7002957456,23/11/2022,3321.08
Buckinghamshire Council,Adults and Health,Ambient Support Limited,1000171,Res-Perm EMI-Other - Exp,Agency (third party payments) & Contribs,7002957456,23/11/2022,3321.08
Buckinghamshire Council,Adults and Health,Ambient Support Limited,1000171,Res-Perm EMI-Other - Exp,Agency (third party payments) & Contribs,7002957456,23/11/2022,3321.08
Buckinghamshire Council,Adults and Health,Ambient Support Limited,1000171,Res-Perm EMI-Other - Exp,Agency (third party payments) & Contribs,7002957456,23/11/2022,3321.08
Buckinghamshire Council,Adults and Health,Ambient Support Limited,1000171,Res-Perm EMI-Other - Exp,Agency (third party payments) & Contribs,7002957456,23/11/2022,3321.08
Buckinghamshire Council,Adults and Health,Ambient Support Limited,1000171,Res-Perm EMI-Other - Exp,Agency (third party payments) & Contribs,7002957456,23/11/2022,3321.08
Buckinghamshire Council,Adults and Health,Ambient Support Limited,1000171,Res-Perm EMI-Other - Exp,Agency (third party payments) & Contribs,7002957456,23/11/2022,3321.08
Buckinghamshire Council,Adults and Health,Ambient Support Limited,1000171,Res-Perm EMI-Other - Exp,Agency (third party payments) & Contribs,7002957456,23/11/2022,3321.08
Buckinghamshire Council,Adults and Health,Ambient Support Limited,1000171,Res-Perm EMI-Other - Exp,Agency (third party payments) & Contribs,7002957456,23/11/2022,3321.08
Buckinghamshire Council,Adults and Health,Ambient Support Limited,1000171,Res-Perm EMI-Other - Exp,Agency (third party payments) & Contribs,7002957456,23/11/2022,3321.08
Buckinghamshire Council,Adults and Health,Ambient Support Limited,1000171,Res-Perm EMI-Other - Exp,Agency (third party payments) & Contribs,7002957456,23/11/2022,3321.08
Buckinghamshire Council,Adults and Health,Ambient Support Limited,1000171,Res-Perm EMI-Other - Exp,Agency (third party payments) & Contribs,7002957456,23/11/2022,3321.08
Buckinghamshire Council,Adults and Health,Ambient Support Limited,1000171,Res-Perm EMI-Other - Exp,Agency (third party payments) & Contribs,7002957456,23/11/2022,3321.08
Buckinghamshire Council,Adults and Health,Ambient Support Limited,1000171,Res-Perm EMI-Other - Exp,Agency (third party payments) & Contribs,7002957456,23/11/2022,3321.08
Buckinghamshire Council,Adults and Health,Ambient Support Limited,1000171,Res-Perm EMI-Other - Exp,Agency (third party payments) & Contribs,7002957456,23/11/2022,3321.08
Buckinghamshire Council,Adults and Health,Ambient Support Limited,1000171,Res-Perm EMI-Other - Exp,Agency (third party payments) & Contribs,7002957456,23/11/2022,3321.08
Buckinghamshire Council,Adults and Health,Ambient Support Limited,1000171,Res-Perm EMI-Other - Exp,Agency (third party payments) & Contribs,7002957456,23/11/2022,3321.08
Buckinghamshire Council,Adults and Health,Ambient Support Limited,1000171,Res-Perm EMI-Other - Exp,Agency (third party payments) & Contribs,7002957456,23/11/2022,3321.08
Buckinghamshire Council,Adults and Health,Ambient Support Limited,1000171,Res-Perm EMI-Other - Exp,Agency (third party payments) & Contribs,7002957456,23/11/2022,3321.08
Buckinghamshire Council,Adults and Health,Ambient Support Limited,1000171,Res-Perm EMI-Other - Exp,Agency (third party payments) & Contribs,7002957456,23/11/2022,3321.08
Buckinghamshire Council,Adults and Health,Ambient Support Limited,1000171,Res-Perm EMI-Other - Exp,Agency (third party payments) & Contribs,7002957456,23/11/2022,3321.08
Buckinghamshire Council,Adults and Health,Ambient Support Limited,1000171,Res-Perm EMI-Other - Exp,Agency (third party payments) & Contribs,7002957456,23/11/2022,3321.08
Buckinghamshire Council,Adults and Health,Ambient Support Limited,1000171,Res-Perm EMI-Other - Exp,Agency (third party payments) & Contribs,7002957456,23/11/2022,3321.08
Buckinghamshire Council,Adults and Health,Ambient Support Limited,1000171,Res-Perm EMI-Other - Exp,Agency (third party payments) & Contribs,7002957456,23/11/2022,3321.08
Buckinghamshire Council,Adults and Health,Ambient Support Limited,1000171,Res-Perm EMI-Other - Exp,Agency (third party payments) & Contribs,7002957456,23/11/2022,3321.08
Buckinghamshire Council,Adults and Health,Ambient Support Limited,1000171,Res-Perm EMI-Other - Exp,Agency (third party payments) & Contribs,7002957456,23/11/2022,3321.08
Buckinghamshire Council,Adults and Health,Ambient Support Limited,1000171,Res-Perm EMI-Other - Exp,Agency (third party payments) & Contribs,7002957456,23/11/2022,3321.08
Buckinghamshire Council,Adults and Health,Ambient Support Limited,1000171,Res-Perm EMI-Other - Exp,Agency (third party payments) & Contribs,7002957456,23/11/2022,3321.08
Buckinghamshire Council,Adults and Health,Ambient Support Limited,1000171,Res-Perm EMI-Other - Exp,Agency (third party payments) & Contribs,7002957456,23/11/2022,3321.08
Buckinghamshire Council,Adults and Health,Ambient Support Limited,1000171,Res-Perm EMI-Other - Exp,Agency (third party payments) & Contribs,7002957456,23/11/2022,3321.08
Buckinghamshire Council,Adults and Health,Ambient Support Limited,1000171,Res-Perm EMI-Other - Exp,Agency (third party payments) & Contribs,7002957456,23/11/2022,3321.08
Buckinghamshire Council,Adults and Health,Ambient Support Limited,1000171,Res-Perm EMI-Other - Exp,Agency (third party payments) & Contribs,7002957456,23/11/2022,3321.08
Buckinghamshire Council,Adults and Health,Ambient Support Limited,1000171,Residential  Care-Permanent Block - Othe,Agency (third party payments) & Contribs,7002957456,23/11/2022,1660.54
Buckinghamshire Council,Adults and Health,Ambient Support Limited,1000171,Res care-permanent - other,Agency (third party payments) & Contribs,7002957456,23/11/2022,1477
Buckinghamshire Council,Adults and Health,Ambient Support Limited,1000171,Res care-permanent - other,Agency (third party payments) & Contribs,7002957456,23/11/2022,1477
Buckinghamshire Council,Adults and Health,Ambient Support Limited,1000171,Res care-permanent - other,Agency (third party payments) & Contribs,7002957456,23/11/2022,1477
Buckinghamshire Council,Adults and Health,Ambient Support Limited,1000171,Res care-permanent - other,Agency (third party payments) & Contribs,7002957456,23/11/2022,1477
Buckinghamshire Council,Adults and Health,Ambient Support Limited,1000171,Res care-permanent - other,Agency (third party payments) & Contribs,7002957456,23/11/2022,1477
Buckinghamshire Council,Adults and Health,Ambient Support Limited,1000171,Res care-permanent - other,Agency (third party payments) & Contribs,7002957456,23/11/2022,1477
Buckinghamshire Council,Adults and Health,Ambient Support Limited,1000171,Res care-permanent - other,Agency (third party payments) & Contribs,7002957456,23/11/2022,1477
Buckinghamshire Council,Adults and Health,Ambient Support Limited,1000171,Res care-permanent - other,Agency (third party payments) & Contribs,7002957456,23/11/2022,1477
Buckinghamshire Council,Adults and Health,Ambient Support Limited,1000171,Res care-permanent - other,Agency (third party payments) & Contribs,7002957456,23/11/2022,1477
Buckinghamshire Council,Adults and Health,Ambient Support Limited,1000171,Residential  Care-Permanent Block - Othe,Agency (third party payments) & Contribs,7002957456,23/11/2022,10022.5
Buckinghamshire Council,Adults and Health,Ambient Support Limited,1000171,Res care-permanent - other,Agency (third party payments) & Contribs,7002957456,23/11/2022,316.5
Buckinghamshire Council,Adults and Health,Ambient Support Limited,1000171,Res care-permanent - other,Agency (third party payments) & Contribs,7002957456,23/11/2022,-1477
Buckinghamshire Council,Adults and Health,Ambient Support Limited,1000171,Res care-permanent - other,Agency (third party payments) & Contribs,7002957456,23/11/2022,-1477
Buckinghamshire Council,Adults and Health,Ambient Support Limited,1000171,Res care-permanent - other,Agency (third party payments) & Contribs,7002957456,23/11/2022,-1477
Buckinghamshire Council,Adults and Health,Ambient Support Limited,1000171,Res care-permanent - other,Agency (third party payments) & Contribs,7002957456,23/11/2022,-1477
Buckinghamshire Council,Adults and Health,Ambient Support Limited,1000171,Res care-permanent - other,Agency (third party payments) & Contribs,7002957456,23/11/2022,-1477
Buckinghamshire Council,Adults and Health,Ambient Support Limited,1000171,Res care-permanent - other,Agency (third party payments) & Contribs,7002957456,23/11/2022,-1477
Buckinghamshire Council,Adults and Health,Ambient Support Limited,1000171,Res care-permanent - other,Agency (third party payments) & Contribs,7002957456,23/11/2022,-1477
Buckinghamshire Council,Adults and Health,Ambient Support Limited,1000171,Res care-permanent - other,Agency (third party payments) & Contribs,7002957456,23/11/2022,-1477
Buckinghamshire Council,Adults and Health,Ambient Support Limited,1000171,Res care-permanent - other,Agency (third party payments) & Contribs,7002957456,23/11/2022,422
Buckinghamshire Council,Adults and Health,Ambient Support Limited,1000171,Res care-permanent - other,Agency (third party payments) & Contribs,7002957456,23/11/2022,2532
Buckinghamshire Council,Adults and Health,Ambient Support Limited,1000171,Res care-permanent - other,Agency (third party payments) & Contribs,7002957456,23/11/2022,422
Buckinghamshire Council,Adults and Health,Ambient Support Limited,1000171,Res care-permanent - other,Agency (third party payments) & Contribs,7002957456,23/11/2022,2532
Buckinghamshire Council,Adults and Health,Ambient Support Limited,1000171,Res care-permanent - other,Agency (third party payments) & Contribs,7002957456,23/11/2022,422
Buckinghamshire Council,Adults and Health,Ambient Support Limited,1000171,Res care-permanent - other,Agency (third party payments) & Contribs,7002957456,23/11/2022,2532
Buckinghamshire Council,Adults and Health,Ambient Support Limited,1000171,Res care-permanent - other,Agency (third party payments) & Contribs,7002957456,23/11/2022,422
Buckinghamshire Council,Adults and Health,Ambient Support Limited,1000171,Res care-permanent - other,Agency (third party payments) & Contribs,7002957456,23/11/2022,2532
Buckinghamshire Council,Adults and Health,Ambient Support Limited,1000171,Res care-permanent - other,Agency (third party payments) & Contribs,7002957456,23/11/2022,422
Buckinghamshire Council,Adults and Health,Ambient Support Limited,1000171,Res care-permanent - other,Agency (third party payments) & Contribs,7002957456,23/11/2022,2532
Buckinghamshire Council,Adults and Health,Ambient Support Limited,1000171,Res care-permanent - other,Agency (third party payments) & Contribs,7002957456,23/11/2022,2110
Buckinghamshire Council,Adults and Health,Ambient Support Limited,1000171,Res care-permanent - other,Agency (third party payments) & Contribs,7002957456,23/11/2022,422
Buckinghamshire Council,Adults and Health,Ambient Support Limited,1000171,Res care-permanent - other,Agency (third party payments) & Contribs,7002957456,23/11/2022,422
Buckinghamshire Council,Adults and Health,Ambient Support Limited,1000171,Res care-permanent - other,Agency (third party payments) & Contribs,7002957456,23/11/2022,2532
Buckinghamshire Council,Adults and Health,Ambient Support Limited,1000171,Res care-permanent - other,Agency (third party payments) & Contribs,7002957456,23/11/2022,422
Buckinghamshire Council,Adults and Health,Ambient Support Limited,1000171,Res care-permanent - other,Agency (third party payments) & Contribs,7002957456,23/11/2022,2532
Buckinghamshire Council,Adults and Health,Ambient Support Limited,1000171,Res care-permanent - other,Agency (third party payments) & Contribs,7002957456,23/11/2022,422
Buckinghamshire Council,Adults and Health,Ambient Support Limited,1000171,Res care-permanent - other,Agency (third party payments) & Contribs,7002957456,23/11/2022,2532
Buckinghamshire Council,Adults and Health,Ambient Support Limited,1000171,Res care-permanent - other,Agency (third party payments) & Contribs,7002957456,23/11/2022,422
Buckinghamshire Council,Adults and Health,Ambient Support Limited,1000171,Res care-permanent - other,Agency (third party payments) & Contribs,7002957456,23/11/2022,2532
Buckinghamshire Council,Adults and Health,Ambient Support Limited,1000171,Residential  Care-Permanent Block - Othe,Agency (third party payments) & Contribs,7002957456,23/11/2022,15614
Buckinghamshire Council,Adults and Health,Ambient Support Limited,1000171,Residential  Care-Permanent Block - Othe,Agency (third party payments) & Contribs,7002957456,23/11/2022,2532
Buckinghamshire Council,Adults and Health,Ambient Support Limited,1000171,Res-Perm EMI-Other - Exp,Agency (third party payments) & Contribs,7002957456,23/11/2022,1660.54
Buckinghamshire Council,Adults and Health,Ambient Support Limited,1000171,Residential  Care-Permanent Block - Othe,Agency (third party payments) & Contribs,7002957456,23/11/2022,-11816
Buckinghamshire Council,Adults and Health,Ambient Support Limited,1000171,Res care-permanent - other,Controllable Customer & Client Receipts,7002957456,23/11/2022,-645.56
Buckinghamshire Council,Adults and Health,Ambient Support Limited,1000171,Res care-permanent - other,Controllable Customer & Client Receipts,7002957456,23/11/2022,-1060.28
Buckinghamshire Council,Adults and Health,Ambient Support Limited,1000171,Res care-permanent - other,Controllable Customer & Client Receipts,7002957456,23/11/2022,-1075.2
Buckinghamshire Council,Adults and Health,Ambient Support Limited,1000171,Res care-permanent - other,Controllable Customer & Client Receipts,7002957456,23/11/2022,-822.92
Buckinghamshire Council,Adults and Health,Ambient Support Limited,1000171,Res care-permanent - other,Controllable Customer & Client Receipts,7002957456,23/11/2022,-554.2
Buckinghamshire Council,Adults and Health,Ambient Support Limited,1000171,Res care-permanent - other,Controllable Customer & Client Receipts,7002957456,23/11/2022,-1520.04
Buckinghamshire Council,Adults and Health,Ambient Support Limited,1000171,Res care-permanent - other,Controllable Customer & Client Receipts,7002957456,23/11/2022,-627.8
Buckinghamshire Council,Adults and Health,Ambient Support Limited,1000171,Res care-permanent - other,Controllable Customer & Client Receipts,7002957456,23/11/2022,-731.12
Buckinghamshire Council,Adults and Health,Ambient Support Limited,1000171,Res care-permanent - other,Controllable Customer & Client Receipts,7002957456,23/11/2022,-887.24
Buckinghamshire Council,Adults and Health,Ambient Support Limited,1000171,Res care-permanent - other,Controllable Customer & Client Receipts,7002957456,23/11/2022,-228.28
Buckinghamshire Council,Adults and Health,Ambient Support Limited,1000171,Res care-permanent - other,Controllable Customer & Client Receipts,7002957456,23/11/2022,-627.8
Buckinghamshire Council,Adults and Health,Ambient Support Limited,1000171,Res care-permanent - other,Controllable Customer & Client Receipts,7002957456,23/11/2022,-1420.44
Buckinghamshire Council,Adults and Health,Ambient Support Limited,1000171,Res care-permanent - other,Controllable Customer & Client Receipts,7002957456,23/11/2022,-786.36
Buckinghamshire Council,Adults and Health,Ambient Support Limited,1000171,Res care-permanent - other,Controllable Customer & Client Receipts,7002957456,23/11/2022,-1009.28
Buckinghamshire Council,Adults and Health,Ambient Support Limited,1000171,Res care-permanent - other,Controllable Customer & Client Receipts,7002957456,23/11/2022,-707.44
Buckinghamshire Council,Adults and Health,Ambient Support Limited,1000171,Res care-permanent - other,Controllable Customer & Client Receipts,7002957456,23/11/2022,-627.8
Buckinghamshire Council,Adults and Health,Ambient Support Limited,1000171,Res care-permanent - other,Controllable Customer & Client Receipts,7002957456,23/11/2022,-1703.88
Buckinghamshire Council,Adults and Health,Ambient Support Limited,1000171,Res care-permanent - other,Controllable Customer & Client Receipts,7002957456,23/11/2022,-767.64
Buckinghamshire Council,Adults and Health,Ambient Support Limited,1000171,Res care-permanent - other,Controllable Customer & Client Receipts,7002957456,23/11/2022,-659.8
Buckinghamshire Council,Adults and Health,Ambient Support Limited,1000171,Res care-permanent - other,Controllable Customer & Client Receipts,7002957456,23/11/2022,-863.2
Buckinghamshire Council,Adults and Health,Ambient Support Limited,1000171,Res care-permanent - other,Controllable Customer & Client Receipts,7002957456,23/11/2022,-317.36
Buckinghamshire Council,Adults and Health,Ambient Support Limited,1000171,Res care-permanent - other,Controllable Customer & Client Receipts,7002957456,23/11/2022,-241.08
Buckinghamshire Council,Adults and Health,Ambient Support Limited,1000171,Res care-permanent - other,Controllable Customer & Client Receipts,7002957456,23/11/2022,-522.12
Buckinghamshire Council,Adults and Health,Ambient Support Limited,1000171,Res care-permanent - other,Controllable Customer & Client Receipts,7002957456,23/11/2022,-787.56
Buckinghamshire Council,Adults and Health,Ambient Support Limited,1000171,Res care-permanent - other,Controllable Customer & Client Receipts,7002957456,23/11/2022,-691.48
Buckinghamshire Council,Adults and Health,Ambient Support Limited,1000171,Res care-permanent - other,Controllable Customer & Client Receipts,7002957456,23/11/2022,-638
Buckinghamshire Council,Adults and Health,Ambient Support Limited,1000171,Res care-permanent - other,Controllable Customer & Client Receipts,7002957456,23/11/2022,-642.76
Buckinghamshire Council,Adults and Health,Ambient Support Limited,1000171,Res care-permanent - other,Controllable Customer & Client Receipts,7002957456,23/11/2022,-722.12
Buckinghamshire Council,Adults and Health,Ambient Support Limited,1000171,Res care-permanent - other,Controllable Customer & Client Receipts,7002957456,23/11/2022,-902.44
Buckinghamshire Council,Adults and Health,Ambient Support Limited,1000171,Res care-permanent - other,Controllable Customer & Client Receipts,7002957456,23/11/2022,-627.8
Buckinghamshire Council,Adults and Health,Ambient Support Limited,1000171,Res care-permanent - other,Controllable Customer & Client Receipts,7002957456,23/11/2022,-772.16
Buckinghamshire Council,Adults and Health,Ambient Support Limited,1000171,Res care-permanent - other,Controllable Customer & Client Receipts,7002957456,23/11/2022,1439.6
Buckinghamshire Council,Adults and Health,Ambient Support Limited,1000171,Res care-permanent - other,Controllable Customer & Client Receipts,7002957456,23/11/2022,1439.6
Buckinghamshire Council,Adults and Health,Ambient Support Limited,1000171,Res care-permanent - other,Controllable Customer & Client Receipts,7002957456,23/11/2022,205.66
Buckinghamshire Council,Adults and Health,Ambient Support Limited,1000171,Res care-permanent - other,Controllable Customer & Client Receipts,7002957456,23/11/2022,1233.94
Buckinghamshire Council,Adults and Health,Ambient Support Limited,1000171,Res care-permanent - other,Controllable Customer & Client Receipts,7002957456,23/11/2022,1439.6
Buckinghamshire Council,Adults and Health,Ambient Support Limited,1000171,Res care-permanent - other,Controllable Customer & Client Receipts,7002957456,23/11/2022,1439.6
Buckinghamshire Council,Adults and Health,Ambient Support Limited,1000171,Res care-permanent - other,Controllable Customer & Client Receipts,7002957456,23/11/2022,1439.6
Buckinghamshire Council,Adults and Health,Ambient Support Limited,1000171,Res care-permanent - other,Controllable Customer & Client Receipts,7002957456,23/11/2022,-1182.53
Buckinghamshire Council,Adults and Health,Ambient Support Limited,1000171,Res care-permanent - other,Controllable Customer & Client Receipts,7002957456,23/11/2022,205.66
Buckinghamshire Council,Adults and Health,Ambient Support Limited,1000171,Res care-permanent - other,Controllable Customer & Client Receipts,7002957456,23/11/2022,-214.44
Buckinghamshire Council,Adults and Health,Ambient Support Limited,1000171,Res care-permanent - other,Controllable Customer & Client Receipts,7002957456,23/11/2022,-1439.6
Buckinghamshire Council,Adults and Health,Ambient Support Limited,1000171,Res care-permanent - other,Controllable Customer & Client Receipts,7002957456,23/11/2022,-1439.6
Buckinghamshire Council,Adults and Health,Ambient Support Limited,1000171,Res care-permanent - other,Controllable Customer & Client Receipts,7002957456,23/11/2022,-1439.6
Buckinghamshire Council,Adults and Health,Ambient Support Limited,1000171,Res care-permanent - other,Controllable Customer & Client Receipts,7002957456,23/11/2022,-1439.6
Buckinghamshire Council,Adults and Health,Ambient Support Limited,1000171,Res care-permanent - other,Controllable Customer & Client Receipts,7002957456,23/11/2022,-1439.6
Buckinghamshire Council,Adults and Health,Ambient Support Limited,1000171,Res care-permanent - other,Controllable Customer & Client Receipts,7002957456,23/11/2022,-1439.6
Buckinghamshire Council,Adults and Health,Ambient Support Limited,1000171,Res care-permanent - other,Controllable Customer & Client Receipts,7002957456,23/11/2022,-1439.6
Buckinghamshire Council,Adults and Health,Ambient Support Limited,1000171,Res care-permanent - other,Controllable Customer & Client Receipts,7002957456,23/11/2022,-1439.6
Buckinghamshire Council,Adults and Health,Ambient Support Limited,1000171,Res care-permanent - other,Controllable Customer & Client Receipts,7002957456,23/11/2022,-264.28
Buckinghamshire Council,Adults and Health,Ambient Support Limited,1000171,Res care-permanent - other,Controllable Customer & Client Receipts,7002957456,23/11/2022,-264.28
Buckinghamshire Council,Adults and Health,Ambient Support Limited,1000171,Res care-permanent - other,Controllable Customer & Client Receipts,7002957456,23/11/2022,-264.28
Buckinghamshire Council,Adults and Health,Ambient Support Limited,1000171,Res care-permanent - other,Controllable Customer & Client Receipts,7002957456,23/11/2022,-264.28
Buckinghamshire Council,Adults and Health,Ambient Support Limited,1000171,Res care-permanent - other,Controllable Customer & Client Receipts,7002957456,23/11/2022,-264.28
Buckinghamshire Council,Adults and Health,Ambient Support Limited,1000171,Res care-permanent - other,Controllable Customer & Client Receipts,7002957456,23/11/2022,-1703.88
Buckinghamshire Council,Adults and Health,Ambient Support Limited,1000171,Res care-permanent - other,Controllable Customer & Client Receipts,7002957456,23/11/2022,-1703.88
Buckinghamshire Council,Adults and Health,Ambient Support Limited,1000171,Res care-permanent - other,Controllable Customer & Client Receipts,7002957456,23/11/2022,77.12
Buckinghamshire Council,Adults and Health,Ambient Support Limited,1000171,Res care-permanent - other,Controllable Customer & Client Receipts,7002957456,23/11/2022,77.12
Buckinghamshire Council,Adults and Health,Ambient Support Limited,1000171,Res care-permanent - other,Controllable Customer & Client Receipts,7002957456,23/11/2022,-422.88
Buckinghamshire Council,Adults and Health,Ambient Support Limited,1000171,Res care-permanent - other,Controllable Customer & Client Receipts,7002957456,23/11/2022,-141.57
Buckinghamshire Council,Adults and Health,Ambient Support Limited,1000171,Res care-permanent - other,Controllable Customer & Client Receipts,7002957456,23/11/2022,-1266.39
Buckinghamshire Council,Adults and Health,Ambient Support Limited,1000171,Res care-permanent - other,Controllable Customer & Client Receipts,7002957456,23/11/2022,-120.82
Buckinghamshire Council,Adults and Health,Ambient Support Limited,1000171,Res care-permanent - other,Controllable Customer & Client Receipts,7002957456,23/11/2022,-850.23
Buckinghamshire Council,Adults and Health,Ambient Support Limited,1000171,Res care-permanent - other,Controllable Customer & Client Receipts,7002957456,23/11/2022,-470.12
Buckinghamshire Council,Adults and Health,Ambient Support Limited,1000171,Res-Perm EMI-Other - Exp,Agency (third party payments) & Contribs,7002957457,23/11/2022,-3321.08
Buckinghamshire Council,Adults and Health,Ambient Support Limited,1000171,Res-Perm EMI-Other - Exp,Agency (third party payments) & Contribs,7002957457,23/11/2022,948.88
Buckinghamshire Council,Adults and Health,Ambient Support Limited,1000171,Residential  Care-Permanent Block - Othe,Agency (third party payments) & Contribs,7002957457,23/11/2022,4151.35
Buckinghamshire Council,Adults and Health,Ambient Support Limited,1000171,Residential  Care-Permanent Block - Othe,Agency (third party payments) & Contribs,7002957457,23/11/2022,23632
Buckinghamshire Council,Adults and Health,Ambient Support Limited,1000171,Residential  Care-Permanent Block - Othe,Agency (third party payments) & Contribs,7002957457,23/11/2022,3321.08
Buckinghamshire Council,Adults and Health,Ambient Support Limited,1000171,Res-Perm EMI-Other - Exp,Agency (third party payments) & Contribs,7002957457,23/11/2022,3321.08
Buckinghamshire Council,Adults and Health,Ambient Support Limited,1000171,Res-Perm EMI-Other - Exp,Agency (third party payments) & Contribs,7002957457,23/11/2022,3321.08
Buckinghamshire Council,Adults and Health,Ambient Support Limited,1000171,Res-Perm EMI-Other - Exp,Agency (third party payments) & Contribs,7002957457,23/11/2022,3321.08
Buckinghamshire Council,Adults and Health,Ambient Support Limited,1000171,Res-Perm EMI-Other - Exp,Agency (third party payments) & Contribs,7002957457,23/11/2022,3321.08
Buckinghamshire Council,Adults and Health,Ambient Support Limited,1000171,Res-Perm EMI-Other - Exp,Agency (third party payments) & Contribs,7002957457,23/11/2022,3321.08
Buckinghamshire Council,Adults and Health,Ambient Support Limited,1000171,Res-Perm EMI-Other - Exp,Agency (third party payments) & Contribs,7002957457,23/11/2022,3321.08
Buckinghamshire Council,Adults and Health,Ambient Support Limited,1000171,Res-Perm EMI-Other - Exp,Agency (third party payments) & Contribs,7002957457,23/11/2022,3321.08
Buckinghamshire Council,Adults and Health,Ambient Support Limited,1000171,Res care-permanent - other,Agency (third party payments) & Contribs,7002957457,23/11/2022,2954
Buckinghamshire Council,Adults and Health,Ambient Support Limited,1000171,Res-Perm EMI-Other - Exp,Agency (third party payments) & Contribs,7002957457,23/11/2022,3321.08
Buckinghamshire Council,Adults and Health,Ambient Support Limited,1000171,Res-Perm EMI-Other - Exp,Agency (third party payments) & Contribs,7002957457,23/11/2022,3321.08
Buckinghamshire Council,Adults and Health,Ambient Support Limited,1000171,Res-Perm EMI-Other - Exp,Agency (third party payments) & Contribs,7002957457,23/11/2022,3321.08
Buckinghamshire Council,Adults and Health,Ambient Support Limited,1000171,Res care-permanent - other,Agency (third party payments) & Contribs,7002957457,23/11/2022,2954
Buckinghamshire Council,Adults and Health,Ambient Support Limited,1000171,Res care-permanent - other,Agency (third party payments) & Contribs,7002957457,23/11/2022,2954
Buckinghamshire Council,Adults and Health,Ambient Support Limited,1000171,Res care-permanent - other,Agency (third party payments) & Contribs,7002957457,23/11/2022,2954
Buckinghamshire Council,Adults and Health,Ambient Support Limited,1000171,Res care-permanent - other,Agency (third party payments) & Contribs,7002957457,23/11/2022,2954
Buckinghamshire Council,Adults and Health,Ambient Support Limited,1000171,Res care-permanent - other,Agency (third party payments) & Contribs,7002957457,23/11/2022,2954
Buckinghamshire Council,Adults and Health,Ambient Support Limited,1000171,Res care-permanent - other,Agency (third party payments) & Contribs,7002957457,23/11/2022,2954
Buckinghamshire Council,Adults and Health,Ambient Support Limited,1000171,Res-Perm EMI-Other - Exp,Agency (third party payments) & Contribs,7002957457,23/11/2022,3321.08
Buckinghamshire Council,Adults and Health,Ambient Support Limited,1000171,Res-Perm EMI-Other - Exp,Agency (third party payments) & Contribs,7002957457,23/11/2022,3321.08
Buckinghamshire Council,Adults and Health,Ambient Support Limited,1000171,Res-Perm EMI-Other - Exp,Agency (third party payments) & Contribs,7002957457,23/11/2022,3321.08
Buckinghamshire Council,Adults and Health,Ambient Support Limited,1000171,Res-Perm EMI-Other - Exp,Agency (third party payments) & Contribs,7002957457,23/11/2022,3321.08
Buckinghamshire Council,Adults and Health,Ambient Support Limited,1000171,Res-Perm EMI-Other - Exp,Agency (third party payments) & Contribs,7002957457,23/11/2022,3321.08
Buckinghamshire Council,Adults and Health,Ambient Support Limited,1000171,Res-Perm EMI-Other - Exp,Agency (third party payments) & Contribs,7002957457,23/11/2022,3321.08
Buckinghamshire Council,Adults and Health,Ambient Support Limited,1000171,Res-Perm EMI-Other - Exp,Agency (third party payments) & Contribs,7002957457,23/11/2022,3321.08
Buckinghamshire Council,Adults and Health,Ambient Support Limited,1000171,Res-Perm EMI-Other - Exp,Agency (third party payments) & Contribs,7002957457,23/11/2022,3321.08
Buckinghamshire Council,Adults and Health,Ambient Support Limited,1000171,Res-Perm EMI-Other - Exp,Agency (third party payments) & Contribs,7002957457,23/11/2022,3321.08
Buckinghamshire Council,Adults and Health,Ambient Support Limited,1000171,Res-Perm EMI-Other - Exp,Agency (third party payments) & Contribs,7002957457,23/11/2022,3321.08
Buckinghamshire Council,Adults and Health,Ambient Support Limited,1000171,Res-Perm EMI-Other - Exp,Agency (third party payments) & Contribs,7002957457,23/11/2022,3321.08
Buckinghamshire Council,Adults and Health,Ambient Support Limited,1000171,Res care-permanent - other,Agency (third party payments) & Contribs,7002957457,23/11/2022,2954
Buckinghamshire Council,Adults and Health,Ambient Support Limited,1000171,Res care-permanent - other,Agency (third party payments) & Contribs,7002957457,23/11/2022,2954
Buckinghamshire Council,Adults and Health,Ambient Support Limited,1000171,Res care-permanent - other,Agency (third party payments) & Contribs,7002957457,23/11/2022,2954
Buckinghamshire Council,Adults and Health,Ambient Support Limited,1000171,Res care-permanent - other,Agency (third party payments) & Contribs,7002957457,23/11/2022,2954
Buckinghamshire Council,Adults and Health,Ambient Support Limited,1000171,Res care-permanent - other,Agency (third party payments) & Contribs,7002957457,23/11/2022,2954
Buckinghamshire Council,Adults and Health,Ambient Support Limited,1000171,Res-Perm EMI-Other - Exp,Agency (third party payments) & Contribs,7002957457,23/11/2022,3321.08
Buckinghamshire Council,Adults and Health,Ambient Support Limited,1000171,Res-Perm EMI-Other - Exp,Agency (third party payments) & Contribs,7002957457,23/11/2022,4882.2
Buckinghamshire Council,Adults and Health,Ambient Support Limited,1000171,Res-Perm EMI-Other - Exp,Agency (third party payments) & Contribs,7002957457,23/11/2022,4832.76
Buckinghamshire Council,Adults and Health,Ambient Support Limited,1000171,Res care-permanent - other,Agency (third party payments) & Contribs,7002957457,23/11/2022,3700
Buckinghamshire Council,Adults and Health,Ambient Support Limited,1000171,Res-Perm EMI-Other - Exp,Agency (third party payments) & Contribs,7002957457,23/11/2022,-3321.08
Buckinghamshire Council,Adults and Health,Ambient Support Limited,1000171,Res-Perm EMI-Other - Exp,Agency (third party payments) & Contribs,7002957457,23/11/2022,1541.93
Buckinghamshire Council,Adults and Health,Ambient Support Limited,1000171,Res care-permanent - other,Agency (third party payments) & Contribs,7002957457,23/11/2022,422
Buckinghamshire Council,Adults and Health,Ambient Support Limited,1000171,Res care-permanent - other,Agency (third party payments) & Contribs,7002957457,23/11/2022,2954
Buckinghamshire Council,Adults and Health,Ambient Support Limited,1000171,Residential  Care-Permanent Block - Othe,Agency (third party payments) & Contribs,7002957457,23/11/2022,-422
Buckinghamshire Council,Adults and Health,Ambient Support Limited,1000171,Res-Perm EMI-Other - Exp,Agency (third party payments) & Contribs,7002957457,23/11/2022,3321.08
Buckinghamshire Council,Adults and Health,Ambient Support Limited,1000171,Res care-permanent - other,Controllable Customer & Client Receipts,7002957457,23/11/2022,448.43
Buckinghamshire Council,Adults and Health,Ambient Support Limited,1000171,Res care-permanent - other,Controllable Customer & Client Receipts,7002957457,23/11/2022,-48.49
Buckinghamshire Council,Adults and Health,Ambient Support Limited,1000171,Res care-permanent - other,Controllable Customer & Client Receipts,7002957457,23/11/2022,-652.56
Buckinghamshire Council,Adults and Health,Ambient Support Limited,1000171,Res care-permanent - other,Controllable Customer & Client Receipts,7002957457,23/11/2022,-3321.08
Buckinghamshire Council,Adults and Health,Ambient Support Limited,1000171,Res care-permanent - other,Controllable Customer & Client Receipts,7002957457,23/11/2022,-627.8
Buckinghamshire Council,Adults and Health,Ambient Support Limited,1000171,Res care-permanent - other,Controllable Customer & Client Receipts,7002957457,23/11/2022,-976.6
Buckinghamshire Council,Adults and Health,Ambient Support Limited,1000171,Res care-permanent - other,Controllable Customer & Client Receipts,7002957457,23/11/2022,-725.36
Buckinghamshire Council,Adults and Health,Ambient Support Limited,1000171,Res care-permanent - other,Controllable Customer & Client Receipts,7002957457,23/11/2022,-627.8
Buckinghamshire Council,Adults and Health,Ambient Support Limited,1000171,Res care-permanent - other,Controllable Customer & Client Receipts,7002957457,23/11/2022,-627.8
Buckinghamshire Council,Adults and Health,Ambient Support Limited,1000171,Res care-permanent - other,Controllable Customer & Client Receipts,7002957457,23/11/2022,-1604.24
Buckinghamshire Council,Adults and Health,Ambient Support Limited,1000171,Res care-permanent - other,Controllable Customer & Client Receipts,7002957457,23/11/2022,-249.95
Buckinghamshire Council,Adults and Health,Ambient Support Limited,1000171,Res care-permanent - other,Controllable Customer & Client Receipts,7002957457,23/11/2022,-29.04
Buckinghamshire Council,Adults and Health,Ambient Support Limited,1000171,Res care-permanent - other,Controllable Customer & Client Receipts,7002957457,23/11/2022,-1673.12
Buckinghamshire Council,Adults and Health,Ambient Support Limited,1000171,Res care-permanent - other,Controllable Customer & Client Receipts,7002957457,23/11/2022,-777.04
Buckinghamshire Council,Adults and Health,Ambient Support Limited,1000171,Res care-permanent - other,Controllable Customer & Client Receipts,7002957457,23/11/2022,-1749.86
Buckinghamshire Council,Adults and Health,Ambient Support Limited,1000171,Res care-permanent - other,Controllable Customer & Client Receipts,7002957457,23/11/2022,-1167.4
Buckinghamshire Council,Adults and Health,Ambient Support Limited,1000171,Res care-permanent - other,Controllable Customer & Client Receipts,7002957457,23/11/2022,-610.96
Buckinghamshire Council,Adults and Health,Ambient Support Limited,1000171,Res care-permanent - other,Controllable Customer & Client Receipts,7002957457,23/11/2022,-859.12
Buckinghamshire Council,Adults and Health,Ambient Support Limited,1000171,Res care-permanent - other,Controllable Customer & Client Receipts,7002957457,23/11/2022,-627.8
Buckinghamshire Council,Adults and Health,Ambient Support Limited,1000171,Res care-permanent - other,Controllable Customer & Client Receipts,7002957457,23/11/2022,-65
Buckinghamshire Council,Adults and Health,Ambient Support Limited,1000171,Res care-permanent - other,Controllable Customer & Client Receipts,7002957457,23/11/2022,-688
Buckinghamshire Council,Adults and Health,Ambient Support Limited,1000171,Res care-permanent - other,Controllable Customer & Client Receipts,7002957457,23/11/2022,-787.2
Buckinghamshire Council,Adults and Health,Ambient Support Limited,1000171,Res care-permanent - other,Controllable Customer & Client Receipts,7002957457,23/11/2022,-611.04
Buckinghamshire Council,Adults and Health,Ambient Support Limited,1000171,Res care-permanent - other,Controllable Customer & Client Receipts,7002957457,23/11/2022,-627.8
Buckinghamshire Council,Adults and Health,Ambient Support Limited,1000171,Res care-permanent - other,Controllable Customer & Client Receipts,7002957457,23/11/2022,-646.68
Buckinghamshire Council,Adults and Health,Ambient Support Limited,1000171,Res care-permanent - other,Controllable Customer & Client Receipts,7002957457,23/11/2022,-975.36
Buckinghamshire Council,Adults and Health,Ambient Support Limited,1000171,Res care-permanent - other,Controllable Customer & Client Receipts,7002957457,23/11/2022,-627.8
Buckinghamshire Council,Adults and Health,Ambient Support Limited,1000171,Res care-permanent - other,Controllable Customer & Client Receipts,7002957457,23/11/2022,-620.64
Buckinghamshire Council,Adults and Health,Ambient Support Limited,1000171,Res care-permanent - other,Controllable Customer & Client Receipts,7002957457,23/11/2022,-1183.8
Buckinghamshire Council,Adults and Health,Ambient Support Limited,1000171,Res care-permanent - other,Controllable Customer & Client Receipts,7002957457,23/11/2022,-984.64
Buckinghamshire Council,Adults and Health,Ambient Support Limited,1000171,Res care-permanent - other,Controllable Customer & Client Receipts,7002957457,23/11/2022,-627.8
Buckinghamshire Council,Adults and Health,Ambient Support Limited,1000171,Res care-permanent - other,Controllable Customer & Client Receipts,7002957457,23/11/2022,-1007.04
Buckinghamshire Council,Adults and Health,Ambient Support Limited,1000171,Res care-permanent - other,Controllable Customer & Client Receipts,7002957457,23/11/2022,-1532.04
Buckinghamshire Council,Adults and Health,Ambient Support Limited,1000171,Res care-permanent - other,Controllable Customer & Client Receipts,7002957457,23/11/2022,-689
Buckinghamshire Council,Adults and Health,Ambient Support Limited,1000171,Res care-permanent - other,Controllable Customer & Client Receipts,7002957457,23/11/2022,-1169.32
Buckinghamshire Council,Adults and Health,Ambient Support Limited,1000171,Res care-permanent - other,Controllable Customer & Client Receipts,7002957457,23/11/2022,-222.35
Buckinghamshire Council,Adults and Health,Ambient Support Limited,1000171,Res care-permanent - other,Controllable Customer & Client Receipts,7002957457,23/11/2022,-149.78
Buckinghamshire Council,Adults and Health,Ambient Support Limited,1000171,Res care-permanent - other,Controllable Customer & Client Receipts,7002957457,23/11/2022,-599.12
Buckinghamshire Council,Adults and Health,Ambient Support Limited,1000171,Res care-permanent - other,Controllable Customer & Client Receipts,7002957457,23/11/2022,-599.12
Buckinghamshire Council,Adults and Health,Ambient Support Limited,1000171,Res care-permanent - other,Controllable Customer & Client Receipts,7002957457,23/11/2022,452.94
Buckinghamshire Council,Adults and Health,Ambient Support Limited,1000171,Res care-permanent - other,Controllable Customer & Client Receipts,7002957457,23/11/2022,-414.91
Buckinghamshire Council,Adults and Health,Ambient Support Limited,1000171,Res care-permanent - other,Controllable Customer & Client Receipts,7002957457,23/11/2022,-79.49
Buckinghamshire Council,Adults and Health,Ambient Support Limited,1000171,Res care-permanent - other,Controllable Customer & Client Receipts,7002957457,23/11/2022,-653.88
Buckinghamshire Council,Adults and Health,Ambient Support Limited,1000171,Res care-permanent - other,Controllable Customer & Client Receipts,7002957457,23/11/2022,-470.32
Buckinghamshire Council,Adults and Health,Ambient Support Limited,1000171,Nursing care-permanent -other,Agency (third party payments) & Contribs,7002957458,23/11/2022,2972.48
Buckinghamshire Council,Adults and Health,Ambient Support Limited,1000171,Nursing care-permanent -other,Agency (third party payments) & Contribs,7002957458,23/11/2022,2972.48
Buckinghamshire Council,Adults and Health,Ambient Support Limited,1000171,Nursing care-permanent -other,Agency (third party payments) & Contribs,7002957458,23/11/2022,2972.48
Buckinghamshire Council,Adults and Health,Ambient Support Limited,1000171,Nursing care-permanent -other,Agency (third party payments) & Contribs,7002957458,23/11/2022,2972.48
Buckinghamshire Council,Adults and Health,Ambient Support Limited,1000171,Nursing care-permanent -other,Agency (third party payments) & Contribs,7002957458,23/11/2022,2972.48
Buckinghamshire Council,Adults and Health,Ambient Support Limited,1000171,Nursing care-permanent -other,Agency (third party payments) & Contribs,7002957458,23/11/2022,2972.48
Buckinghamshire Council,Adults and Health,Ambient Support Limited,1000171,Nursing care-permanent -other,Agency (third party payments) & Contribs,7002957458,23/11/2022,2972.48
Buckinghamshire Council,Adults and Health,Ambient Support Limited,1000171,Nursing care-permanent -other,Agency (third party payments) & Contribs,7002957458,23/11/2022,2972.48
Buckinghamshire Council,Adults and Health,Ambient Support Limited,1000171,Nursing care-permanent -other,Agency (third party payments) & Contribs,7002957458,23/11/2022,2972.48
Buckinghamshire Council,Adults and Health,Ambient Support Limited,1000171,Nursing care-permanent -other,Agency (third party payments) & Contribs,7002957458,23/11/2022,2972.48
Buckinghamshire Council,Adults and Health,Ambient Support Limited,1000171,Nursing care-permanent -other,Agency (third party payments) & Contribs,7002957458,23/11/2022,2972.48
Buckinghamshire Council,Adults and Health,Ambient Support Limited,1000171,Nursing care-permanent -other,Agency (third party payments) & Contribs,7002957458,23/11/2022,2972.48
Buckinghamshire Council,Adults and Health,Ambient Support Limited,1000171,Nursing care-permanent -other,Agency (third party payments) & Contribs,7002957458,23/11/2022,2972.48
Buckinghamshire Council,Adults and Health,Ambient Support Limited,1000171,Nursing care-permanent -other,Agency (third party payments) & Contribs,7002957458,23/11/2022,2972.48
Buckinghamshire Council,Adults and Health,Ambient Support Limited,1000171,Nursing care-permanent -other,Agency (third party payments) & Contribs,7002957458,23/11/2022,2972.48
Buckinghamshire Council,Adults and Health,Ambient Support Limited,1000171,Nursing care-permanent -other,Agency (third party payments) & Contribs,7002957458,23/11/2022,2972.48
Buckinghamshire Council,Adults and Health,Ambient Support Limited,1000171,Res care-permanent - other,Agency (third party payments) & Contribs,7002957458,23/11/2022,2954
Buckinghamshire Council,Adults and Health,Ambient Support Limited,1000171,Res care-permanent - other,Agency (third party payments) & Contribs,7002957458,23/11/2022,2954
Buckinghamshire Council,Adults and Health,Ambient Support Limited,1000171,Res care-permanent - other,Agency (third party payments) & Contribs,7002957458,23/11/2022,2954
Buckinghamshire Council,Adults and Health,Ambient Support Limited,1000171,Res care-permanent - other,Agency (third party payments) & Contribs,7002957458,23/11/2022,2954
Buckinghamshire Council,Adults and Health,Ambient Support Limited,1000171,Res care-permanent - other,Agency (third party payments) & Contribs,7002957458,23/11/2022,2954
Buckinghamshire Council,Adults and Health,Ambient Support Limited,1000171,Nursing care-permanent -other,Agency (third party payments) & Contribs,7002957458,23/11/2022,2972.48
Buckinghamshire Council,Adults and Health,Ambient Support Limited,1000171,Nursing care-permanent -other,Agency (third party payments) & Contribs,7002957458,23/11/2022,2972.48
Buckinghamshire Council,Adults and Health,Ambient Support Limited,1000171,Nursing care-permanent -other,Agency (third party payments) & Contribs,7002957458,23/11/2022,2972.48
Buckinghamshire Council,Adults and Health,Ambient Support Limited,1000171,Res care-permanent - other,Agency (third party payments) & Contribs,7002957458,23/11/2022,2954
Buckinghamshire Council,Adults and Health,Ambient Support Limited,1000171,Nursing care-permanent -other,Agency (third party payments) & Contribs,7002957458,23/11/2022,2972.48
Buckinghamshire Council,Adults and Health,Ambient Support Limited,1000171,Res care-permanent - other,Agency (third party payments) & Contribs,7002957458,23/11/2022,2954
Buckinghamshire Council,Adults and Health,Ambient Support Limited,1000171,Nursing care-permanent block- other,Agency (third party payments) & Contribs,7002957458,23/11/2022,29724.8
Buckinghamshire Council,Adults and Health,Ambient Support Limited,1000171,Residential  Care-Permanent Block - Othe,Agency (third party payments) & Contribs,7002957458,23/11/2022,17091
Buckinghamshire Council,Adults and Health,Ambient Support Limited,1000171,Res-Perm EMI-Other - Exp,Agency (third party payments) & Contribs,7002957458,23/11/2022,3601.04
Buckinghamshire Council,Adults and Health,Ambient Support Limited,1000171,Res-Perm EMI-Other - Exp,Agency (third party payments) & Contribs,7002957458,23/11/2022,3244
Buckinghamshire Council,Adults and Health,Ambient Support Limited,1000171,Res-Perm EMI-Other - Exp,Agency (third party payments) & Contribs,7002957458,23/11/2022,3800
Buckinghamshire Council,Adults and Health,Ambient Support Limited,1000171,Res-Perm EMI-Other - Exp,Agency (third party payments) & Contribs,7002957458,23/11/2022,3321.08
Buckinghamshire Council,Adults and Health,Ambient Support Limited,1000171,Nursing care-permanent -other,Agency (third party payments) & Contribs,7002957458,23/11/2022,318.48
Buckinghamshire Council,Adults and Health,Ambient Support Limited,1000171,Nursing care-permanent -other,Agency (third party payments) & Contribs,7002957458,23/11/2022,2972.48
Buckinghamshire Council,Adults and Health,Ambient Support Limited,1000171,Res care-permanent - other,Agency (third party payments) & Contribs,7002957458,23/11/2022,2637.5
Buckinghamshire Council,Adults and Health,Ambient Support Limited,1000171,Nursing care-permanent block- other,Agency (third party payments) & Contribs,7002957458,23/11/2022,1698.56
Buckinghamshire Council,Adults and Health,Ambient Support Limited,1000171,Res care-permanent - other,Agency (third party payments) & Contribs,7002957458,23/11/2022,738.5
Buckinghamshire Council,Adults and Health,Ambient Support Limited,1000171,Nursing care-permanent -other,Agency (third party payments) & Contribs,7002957458,23/11/2022,-1167.76
Buckinghamshire Council,Adults and Health,Ambient Support Limited,1000171,Nursing care-permanent -other,Agency (third party payments) & Contribs,7002957458,23/11/2022,-636.96
Buckinghamshire Council,Adults and Health,Ambient Support Limited,1000171,Res care-permanent - other,Agency (third party payments) & Contribs,7002957458,23/11/2022,-1055
Buckinghamshire Council,Adults and Health,Ambient Support Limited,1000171,Res care-permanent - other,Agency (third party payments) & Contribs,7002957458,23/11/2022,2954
Buckinghamshire Council,Adults and Health,Ambient Support Limited,1000171,Residential  Care-Permanent Block - Othe,Agency (third party payments) & Contribs,7002957458,23/11/2022,527.5
Buckinghamshire Council,Adults and Health,Ambient Support Limited,1000171,Nursing care-permanent -other,Agency (third party payments) & Contribs,7002957458,23/11/2022,-212.32
Buckinghamshire Council,Adults and Health,Ambient Support Limited,1000171,Res care-permanent - other,Agency (third party payments) & Contribs,7002957458,23/11/2022,-211
Buckinghamshire Council,Adults and Health,Ambient Support Limited,1000171,Res care-permanent - other,Agency (third party payments) & Contribs,7002957458,23/11/2022,1899
Buckinghamshire Council,Adults and Health,Ambient Support Limited,1000171,Res care-permanent - other,Agency (third party payments) & Contribs,7002957458,23/11/2022,2004.5
Buckinghamshire Council,Adults and Health,Ambient Support Limited,1000171,Nursing care-permanent -other,Controllable Customer & Client Receipts,7002957458,23/11/2022,-1249.68
Buckinghamshire Council,Adults and Health,Ambient Support Limited,1000171,Nursing care-permanent -other,Controllable Customer & Client Receipts,7002957458,23/11/2022,-438.8
Buckinghamshire Council,Adults and Health,Ambient Support Limited,1000171,Res care-permanent - other,Controllable Customer & Client Receipts,7002957458,23/11/2022,-1019.8
Buckinghamshire Council,Adults and Health,Ambient Support Limited,1000171,Res care-permanent - other,Controllable Customer & Client Receipts,7002957458,23/11/2022,-1467.08
Buckinghamshire Council,Adults and Health,Ambient Support Limited,1000171,Res care-permanent - other,Controllable Customer & Client Receipts,7002957458,23/11/2022,-1267.16
Buckinghamshire Council,Adults and Health,Ambient Support Limited,1000171,Res care-permanent - other,Controllable Customer & Client Receipts,7002957458,23/11/2022,-1601.4
Buckinghamshire Council,Adults and Health,Ambient Support Limited,1000171,Res care-permanent - other,Controllable Customer & Client Receipts,7002957458,23/11/2022,-2480.56
Buckinghamshire Council,Adults and Health,Ambient Support Limited,1000171,Res care-permanent - other,Controllable Customer & Client Receipts,7002957458,23/11/2022,-829
Buckinghamshire Council,Adults and Health,Ambient Support Limited,1000171,Res care-permanent - other,Controllable Customer & Client Receipts,7002957458,23/11/2022,-876.84
Buckinghamshire Council,Adults and Health,Ambient Support Limited,1000171,Res care-permanent - other,Controllable Customer & Client Receipts,7002957458,23/11/2022,-782.48
Buckinghamshire Council,Adults and Health,Ambient Support Limited,1000171,Res care-permanent - other,Controllable Customer & Client Receipts,7002957458,23/11/2022,-382.4
Buckinghamshire Council,Adults and Health,Ambient Support Limited,1000171,Nursing care-permanent -other,Controllable Customer & Client Receipts,7002957458,23/11/2022,-496.44
Buckinghamshire Council,Adults and Health,Ambient Support Limited,1000171,Nursing care-permanent -other,Controllable Customer & Client Receipts,7002957458,23/11/2022,-802.88
Buckinghamshire Council,Adults and Health,Ambient Support Limited,1000171,Nursing care-permanent -other,Controllable Customer & Client Receipts,7002957458,23/11/2022,-535.64
Buckinghamshire Council,Adults and Health,Ambient Support Limited,1000171,Nursing care-permanent -other,Controllable Customer & Client Receipts,7002957458,23/11/2022,-861.56
Buckinghamshire Council,Adults and Health,Ambient Support Limited,1000171,Nursing care-permanent -other,Controllable Customer & Client Receipts,7002957458,23/11/2022,-852.24
Buckinghamshire Council,Adults and Health,Ambient Support Limited,1000171,Nursing care-permanent -other,Controllable Customer & Client Receipts,7002957458,23/11/2022,-1052.32
Buckinghamshire Council,Adults and Health,Ambient Support Limited,1000171,Nursing care-permanent -other,Controllable Customer & Client Receipts,7002957458,23/11/2022,-919.04
Buckinghamshire Council,Adults and Health,Ambient Support Limited,1000171,Nursing care-permanent -other,Controllable Customer & Client Receipts,7002957458,23/11/2022,-1222.6
Buckinghamshire Council,Adults and Health,Ambient Support Limited,1000171,Nursing care-permanent -other,Controllable Customer & Client Receipts,7002957458,23/11/2022,-1541.6
Buckinghamshire Council,Adults and Health,Ambient Support Limited,1000171,Nursing care-permanent -other,Controllable Customer & Client Receipts,7002957458,23/11/2022,-858.88
Buckinghamshire Council,Adults and Health,Ambient Support Limited,1000171,Nursing care-permanent -other,Controllable Customer & Client Receipts,7002957458,23/11/2022,-627.8
Buckinghamshire Council,Adults and Health,Ambient Support Limited,1000171,Nursing care-permanent -other,Controllable Customer & Client Receipts,7002957458,23/11/2022,-1188.8
Buckinghamshire Council,Adults and Health,Ambient Support Limited,1000171,Nursing care-permanent -other,Controllable Customer & Client Receipts,7002957458,23/11/2022,-1051.72
Buckinghamshire Council,Adults and Health,Ambient Support Limited,1000171,Nursing care-permanent -other,Controllable Customer & Client Receipts,7002957458,23/11/2022,-897.12
Buckinghamshire Council,Adults and Health,Ambient Support Limited,1000171,Nursing care-permanent -other,Controllable Customer & Client Receipts,7002957458,23/11/2022,-877
Buckinghamshire Council,Adults and Health,Ambient Support Limited,1000171,Res care-permanent - other,Controllable Customer & Client Receipts,7002957458,23/11/2022,-627.8
Buckinghamshire Council,Adults and Health,Ambient Support Limited,1000171,Nursing care-permanent -other,Controllable Customer & Client Receipts,7002957458,23/11/2022,-813.28
Buckinghamshire Council,Adults and Health,Ambient Support Limited,1000171,Res care-permanent - other,Controllable Customer & Client Receipts,7002957458,23/11/2022,632.55
Buckinghamshire Council,Adults and Health,Ambient Support Limited,1000171,Nursing care-permanent -other,Controllable Customer & Client Receipts,7002957458,23/11/2022,466.7
Buckinghamshire Council,Adults and Health,Ambient Support Limited,1000171,Res care-permanent - other,Controllable Customer & Client Receipts,7002957458,23/11/2022,-163.32
Buckinghamshire Council,Adults and Health,Ambient Support Limited,1000171,Nursing care-permanent -other,Controllable Customer & Client Receipts,7002957458,23/11/2022,-67.4
Buckinghamshire Council,Adults and Health,Ambient Support Limited,1000171,Nursing care-permanent -other,Controllable Customer & Client Receipts,7002957458,23/11/2022,-629.04
Buckinghamshire Council,Adults and Health,Ambient Support Limited,1000171,Res care-permanent - other,Controllable Customer & Client Receipts,7002957458,23/11/2022,91.5
Buckinghamshire Council,Adults and Health,Ambient Support Limited,1000171,Nursing care-permanent -other,Controllable Customer & Client Receipts,7002957458,23/11/2022,137.58
Buckinghamshire Council,Adults and Health,Ambient Support Limited,1000171,Res-Perm EMI-Other - Exp,Agency (third party payments) & Contribs,7002957459,23/11/2022,3321.08
Buckinghamshire Council,Adults and Health,Ambient Support Limited,1000171,Res-Perm EMI-Other - Exp,Agency (third party payments) & Contribs,7002957459,23/11/2022,3321.08
Buckinghamshire Council,Adults and Health,Ambient Support Limited,1000171,Res-Perm EMI-Other - Exp,Agency (third party payments) & Contribs,7002957459,23/11/2022,3321.08
Buckinghamshire Council,Adults and Health,Ambient Support Limited,1000171,Res care-permanent - other,Agency (third party payments) & Contribs,7002957459,23/11/2022,2954
Buckinghamshire Council,Adults and Health,Ambient Support Limited,1000171,Res care-permanent - other,Agency (third party payments) & Contribs,7002957459,23/11/2022,2954
Buckinghamshire Council,Adults and Health,Ambient Support Limited,1000171,Res care-permanent - other,Agency (third party payments) & Contribs,7002957459,23/11/2022,2954
Buckinghamshire Council,Adults and Health,Ambient Support Limited,1000171,Res care-permanent - other,Agency (third party payments) & Contribs,7002957459,23/11/2022,2954
Buckinghamshire Council,Adults and Health,Ambient Support Limited,1000171,Res care-permanent - other,Agency (third party payments) & Contribs,7002957459,23/11/2022,2954
Buckinghamshire Council,Adults and Health,Ambient Support Limited,1000171,Res-Perm EMI-Other - Exp,Agency (third party payments) & Contribs,7002957459,23/11/2022,3321.08
Buckinghamshire Council,Adults and Health,Ambient Support Limited,1000171,Res care-permanent - other,Agency (third party payments) & Contribs,7002957459,23/11/2022,2954
Buckinghamshire Council,Adults and Health,Ambient Support Limited,1000171,Res-Perm EMI-Other - Exp,Agency (third party payments) & Contribs,7002957459,23/11/2022,3321.08
Buckinghamshire Council,Adults and Health,Ambient Support Limited,1000171,Res-Perm EMI-Other - Exp,Agency (third party payments) & Contribs,7002957459,23/11/2022,3321.08
Buckinghamshire Council,Adults and Health,Ambient Support Limited,1000171,Residential  Care-Permanent Block - Othe,Agency (third party payments) & Contribs,7002957459,23/11/2022,11816
Buckinghamshire Council,Adults and Health,Ambient Support Limited,1000171,Residential  Care-Permanent Block - Othe,Agency (third party payments) & Contribs,7002957459,23/11/2022,6642.16
Buckinghamshire Council,Adults and Health,Ambient Support Limited,1000171,Res-Perm EMI-Other - Exp,Agency (third party payments) & Contribs,7002957459,23/11/2022,4832.76
Buckinghamshire Council,Adults and Health,Ambient Support Limited,1000171,Res care-permanent - other,Controllable Customer & Client Receipts,7002957459,23/11/2022,-883.88
Buckinghamshire Council,Adults and Health,Ambient Support Limited,1000171,Res care-permanent - other,Controllable Customer & Client Receipts,7002957459,23/11/2022,-944.12
Buckinghamshire Council,Adults and Health,Ambient Support Limited,1000171,Res care-permanent - other,Controllable Customer & Client Receipts,7002957459,23/11/2022,-19
Buckinghamshire Council,Adults and Health,Ambient Support Limited,1000171,Res care-permanent - other,Controllable Customer & Client Receipts,7002957459,23/11/2022,-626.64
Buckinghamshire Council,Adults and Health,Ambient Support Limited,1000171,Res care-permanent - other,Controllable Customer & Client Receipts,7002957459,23/11/2022,-627.8
Buckinghamshire Council,Adults and Health,Ambient Support Limited,1000171,Res care-permanent - other,Controllable Customer & Client Receipts,7002957459,23/11/2022,-1327.64
Buckinghamshire Council,Adults and Health,Ambient Support Limited,1000171,Res care-permanent - other,Controllable Customer & Client Receipts,7002957459,23/11/2022,-1187.6
Buckinghamshire Council,Adults and Health,Ambient Support Limited,1000171,Res care-permanent - other,Controllable Customer & Client Receipts,7002957459,23/11/2022,-843.28
Buckinghamshire Council,Adults and Health,Ambient Support Limited,1000171,Res care-permanent - other,Controllable Customer & Client Receipts,7002957459,23/11/2022,-1115.48
Buckinghamshire Council,Adults and Health,Ambient Support Limited,1000171,Res care-permanent - other,Controllable Customer & Client Receipts,7002957459,23/11/2022,-754.4
Buckinghamshire Council,Adults and Health,Ambient Support Limited,1000171,Res care-permanent - other,Controllable Customer & Client Receipts,7002957459,23/11/2022,-627.8
Buckinghamshire Council,Adults and Health,Ambient Support Limited,1000171,Res care-permanent - other,Controllable Customer & Client Receipts,7002957459,23/11/2022,-627.8
Buckinghamshire Council,Adults and Health,Ambient Support Limited,1000171,Res care-permanent - other,Controllable Customer & Client Receipts,7002957459,23/11/2022,-1871.08
Buckinghamshire Council,Adults and Health,Maria Residential Home,1000177,Res care-permanent - other,Agency (third party payments) & Contribs,7002957460,23/11/2022,-733.34
Buckinghamshire Council,Adults and Health,Maria Residential Home,1000177,Res care-permanent - other,Agency (third party payments) & Contribs,7002957460,23/11/2022,-733.34
Buckinghamshire Council,Adults and Health,Maria Residential Home,1000177,Res care-permanent - other,Agency (third party payments) & Contribs,7002957460,23/11/2022,-523.81
Buckinghamshire Council,Adults and Health,Maria Residential Home,1000177,Res-Perm EMI-Other - Exp,Agency (third party payments) & Contribs,7002957460,23/11/2022,4400
Buckinghamshire Council,Adults and Health,Maria Residential Home,1000177,Res-Perm EMI-Other - Exp,Agency (third party payments) & Contribs,7002957460,23/11/2022,3429.16
Buckinghamshire Council,Adults and Health,Maria Residential Home,1000177,Res care-permanent - other,Agency (third party payments) & Contribs,7002957460,23/11/2022,342.86
Buckinghamshire Council,Adults and Health,Maria Residential Home,1000177,Res care-permanent - other,Agency (third party payments) & Contribs,7002957460,23/11/2022,2057.14
Buckinghamshire Council,Adults and Health,Maria Residential Home,1000177,Res care-permanent - other,Agency (third party payments) & Contribs,7002957460,23/11/2022,3035.71
Buckinghamshire Council,Adults and Health,Maria Residential Home,1000177,Res-Perm EMI-Other - Exp,Agency (third party payments) & Contribs,7002957460,23/11/2022,2400
Buckinghamshire Council,Adults and Health,Maria Residential Home,1000177,Res care-permanent - other,Controllable Customer & Client Receipts,7002957460,23/11/2022,-1204.08
Buckinghamshire Council,Adults and Health,Maria Residential Home,1000177,Res care-permanent - other,Controllable Customer & Client Receipts,7002957460,23/11/2022,-1196.72
Buckinghamshire Council,Adults and Health,Maria Residential Home,1000177,Res care-permanent - other,Controllable Customer & Client Receipts,7002957460,23/11/2022,104.64
Buckinghamshire Council,Adults and Health,Maria Residential Home,1000177,Res care-permanent - other,Controllable Customer & Client Receipts,7002957460,23/11/2022,104.64
Buckinghamshire Council,Adults and Health,Maria Residential Home,1000177,Res care-permanent - other,Controllable Customer & Client Receipts,7002957460,23/11/2022,78.48
Buckinghamshire Council,Adults and Health,Maria Residential Home,1000177,Res care-permanent - other,Controllable Customer & Client Receipts,7002957460,23/11/2022,-42.98
Buckinghamshire Council,Adults and Health,Maria Residential Home,1000177,Res care-permanent - other,Controllable Customer & Client Receipts,7002957460,23/11/2022,-599.87
Buckinghamshire Council,Adults and Health,Maria Residential Home,1000177,Res care-permanent - other,Controllable Customer & Client Receipts,7002957460,23/11/2022,-427.11
Buckinghamshire Council,Adults and Health,Maria Residential Home,1000177,Res care-permanent - other,Controllable Customer & Client Receipts,7002957460,23/11/2022,-598.85
Buckinghamshire Council,Adults and Health,Maria Residential Home,1000177,Res care-permanent - other,Controllable Customer & Client Receipts,7002957460,23/11/2022,-67.96
Buckinghamshire Council,Adults and Health,Maria Residential Home,1000177,Res care-permanent - other,Controllable Customer & Client Receipts,7002957460,23/11/2022,-219.21
Buckinghamshire Council,Adults and Health,The Abbeyfield Society,1000182,Res-Perm EMI-Other - Exp,Agency (third party payments) & Contribs,7002957461,23/11/2022,5200
Buckinghamshire Council,Adults and Health,The Abbeyfield Society,1000182,Res care-permanent - other,Agency (third party payments) & Contribs,7002957461,23/11/2022,3643.48
Buckinghamshire Council,Adults and Health,The Abbeyfield Society,1000182,Nursing care-permanent -other,Agency (third party payments) & Contribs,7002957461,23/11/2022,2521.44
Buckinghamshire Council,Adults and Health,The Abbeyfield Society,1000182,Res care-permanent - other,Controllable Customer & Client Receipts,7002957461,23/11/2022,-583.44
Buckinghamshire Council,Adults and Health,The Abbeyfield Society,1000182,Nursing care-permanent -other,Controllable Customer & Client Receipts,7002957461,23/11/2022,-675.24
Buckinghamshire Council,Adults and Health,The Abbeyfield Society,1000182,Res care-permanent - other,Controllable Customer & Client Receipts,7002957461,23/11/2022,-313.9
Buckinghamshire Council,Adults and Health,The Abbeyfield Society,1000182,Res care-permanent - other,Controllable Customer & Client Receipts,7002957461,23/11/2022,-627.8
Buckinghamshire Council,Adults and Health,THE KNOLLS RESIDENTIAL HOME,1000185,Nurs-Perm EMI Other - Exp,Agency (third party payments) & Contribs,7002957462,23/11/2022,4520
Buckinghamshire Council,Adults and Health,THE KNOLLS RESIDENTIAL HOME,1000185,Res-Perm EMI-Other - Exp,Agency (third party payments) & Contribs,7002957462,23/11/2022,4470.2
Buckinghamshire Council,Adults and Health,THE KNOLLS RESIDENTIAL HOME,1000185,Res-Perm EMI-Other - Exp,Agency (third party payments) & Contribs,7002957462,23/11/2022,-2755.57
Buckinghamshire Council,Adults and Health,THE KNOLLS RESIDENTIAL HOME,1000185,Res-Perm EMI-Other - Exp,Agency (third party payments) & Contribs,7002957462,23/11/2022,194.37
Buckinghamshire Council,Adults and Health,THE KNOLLS RESIDENTIAL HOME,1000185,Nursing care-permanent -other,Controllable Customer & Client Receipts,7002957462,23/11/2022,-1401.64
Buckinghamshire Council,Adults and Health,THE KNOLLS RESIDENTIAL HOME,1000185,Res care-permanent - other,Controllable Customer & Client Receipts,7002957462,23/11/2022,-645.72
Buckinghamshire Council,Adults and Health,THE OLD SCHOOL HOUSE RESIDENTIAL HO,1000187,Nurs-Perm EMI Other - Exp,Agency (third party payments) & Contribs,7002957463,23/11/2022,4202.4
Buckinghamshire Council,Adults and Health,THE OLD SCHOOL HOUSE RESIDENTIAL HO,1000187,Res-Perm EMI-Other - Exp,Agency (third party payments) & Contribs,7002957463,23/11/2022,4060.68
Buckinghamshire Council,Adults and Health,THE OLD SCHOOL HOUSE RESIDENTIAL HO,1000187,Res care-permanent - other,Controllable Customer & Client Receipts,7002957463,23/11/2022,-773.4
Buckinghamshire Council,Adults and Health,THE OLD SCHOOL HOUSE RESIDENTIAL HO,1000187,Nursing care-permanent -other,Controllable Customer & Client Receipts,7002957463,23/11/2022,-1042.96
Buckinghamshire Council,Adults and Health,THE WILLOW RESIDENTIAL CARE HOME,1000188,Res care-permanent - other,Agency (third party payments) & Contribs,7002957464,23/11/2022,5150
Buckinghamshire Council,Adults and Health,THE WILLOW RESIDENTIAL CARE HOME,1000188,Res care-permanent - other,Controllable Customer & Client Receipts,7002957464,23/11/2022,-743.52
Buckinghamshire Council,Adults and Health,TITHE FARM REST HOME,1000190,Nurs-Perm EMI Other - Exp,Agency (third party payments) & Contribs,7002957465,23/11/2022,4800
Buckinghamshire Council,Adults and Health,TITHE FARM REST HOME,1000190,Res-Perm EMI-Other - Exp,Agency (third party payments) & Contribs,7002957465,23/11/2022,3067.76
Buckinghamshire Council,Adults and Health,TITHE FARM REST HOME,1000190,Nursing care-permanent -other,Agency (third party payments) & Contribs,7002957465,23/11/2022,4532
Buckinghamshire Council,Adults and Health,TITHE FARM REST HOME,1000190,Nursing care-permanent -other,Agency (third party payments) & Contribs,7002957465,23/11/2022,3782.16
Buckinghamshire Council,Adults and Health,TITHE FARM REST HOME,1000190,Res-Perm EMI-Other - Exp,Agency (third party payments) & Contribs,7002957465,23/11/2022,4738
Buckinghamshire Council,Adults and Health,TITHE FARM REST HOME,1000190,Res care-permanent - other,Agency (third party payments) & Contribs,7002957465,23/11/2022,200
Buckinghamshire Council,Adults and Health,TITHE FARM REST HOME,1000190,Res care-permanent - other,Controllable Customer & Client Receipts,7002957465,23/11/2022,-696.8
Buckinghamshire Council,Adults and Health,TITHE FARM REST HOME,1000190,Nursing care-permanent -other,Controllable Customer & Client Receipts,7002957465,23/11/2022,-699.44
Buckinghamshire Council,Adults and Health,TITHE FARM REST HOME,1000190,Res care-permanent - other,Controllable Customer & Client Receipts,7002957465,23/11/2022,-1179.6
Buckinghamshire Council,Adults and Health,TITHE FARM REST HOME,1000190,Nursing care-permanent -other,Controllable Customer & Client Receipts,7002957465,23/11/2022,-1476.68
Buckinghamshire Council,Adults and Health,TITHE FARM REST HOME,1000190,Nursing care-permanent -other,Controllable Customer & Client Receipts,7002957465,23/11/2022,-562.24
Buckinghamshire Council,Adults and Health,TITHE FARM REST HOME,1000190,Res care-permanent - other,Controllable Customer & Client Receipts,7002957465,23/11/2022,-200
Buckinghamshire Council,Adults and Health,The Kingwood Trust,1000202,Supported Living - Other,Agency (third party payments) & Contribs,7002957782,23/11/2022,9138.4
Buckinghamshire Council,Adults and Health,The Kingwood Trust,1000202,Supported Living - Additional Care,Agency (third party payments) & Contribs,7002957782,23/11/2022,8950.6
Buckinghamshire Council,Adults and Health,The Kingwood Trust,1000202,Domiciliary care - perm - other,Agency (third party payments) & Contribs,7002959389,25/11/2022,15782.68
Buckinghamshire Council,Adults and Health,The Kingwood Trust,1000202,Domiciliary care - perm - other,Agency (third party payments) & Contribs,7002959389,25/11/2022,614.68
Buckinghamshire Council,"Planning, Growth & Sustainability",PERSONNEL HYGIENE SERVICES LTD,1000221,Cleaning Materials,Controllable Premises,4101017370,09/11/2022,11440.85
Buckinghamshire Council,Adults and Health,PERSONNEL HYGIENE SERVICES LTD,1000221,"Trade Refuse Disposal, Cesspools & Pests",Controllable Premises,4101016100,02/11/2022,771.04
Buckinghamshire Council,Communities,CAROUSEL BUSES LTD,1000240,Subsidised Bus Services - Core,Agency (third party payments) & Contribs,4101017600,09/11/2022,25193.85
Buckinghamshire Council,Communities,CAROUSEL BUSES LTD,1000240,Subsidised Bus Services - Accessibility,Transfer Payments (Grants & Assistance),4101017601,09/11/2022,17774.03
Buckinghamshire Council,Communities,CAROUSEL BUSES LTD,1000240,Travel Choice Scheme,Transfer Payments (Grants & Assistance),4101018626,16/11/2022,515.41
Buckinghamshire Council,Communities,CAROUSEL BUSES LTD,1000240,Subsidised Bus Services - Core,Agency (third party payments) & Contribs,4101019071,18/11/2022,9091.42
Buckinghamshire Council,Communities,CAROUSEL BUSES LTD,1000240,Subsidised Bus Services - Accessibility,Transfer Payments (Grants & Assistance),4101019072,18/11/2022,7050.04
Buckinghamshire Council,Communities,Z & S TRANSPORT LTD,1000253,Subsidised Bus Services - Accessibility,Transfer Payments (Grants & Assistance),4101018195,11/11/2022,4433.58
Buckinghamshire Council,Communities,Z & S TRANSPORT LTD,1000253,Contracts (Mainstream),Transport,4101016974,09/11/2022,2719.2
Buckinghamshire Council,Communities,Z & S TRANSPORT LTD,1000253,Subsidised Bus Services - Accessibility,Transfer Payments (Grants & Assistance),4101017614,09/11/2022,18111.11
Buckinghamshire Council,Communities,Z & S TRANSPORT LTD,1000253,Contracts (Mainstream),Transport,4101016971,04/11/2022,3352.65
Buckinghamshire Council,Communities,Z & S TRANSPORT LTD,1000253,Contracts (Mainstream),Transport,4101016972,04/11/2022,7107
Buckinghamshire Council,Communities,Z & S TRANSPORT LTD,1000253,Contracts (Mainstream),Transport,4101016973,04/11/2022,8240
Buckinghamshire Council,Communities,Z & S TRANSPORT LTD,1000253,Contracts (Mainstream),Transport,4101016975,04/11/2022,6334.5
Buckinghamshire Council,Communities,Z & S TRANSPORT LTD,1000253,Contracts (Mainstream),Transport,4101016976,04/11/2022,8240
Buckinghamshire Council,Communities,Z & S TRANSPORT LTD,1000253,Contracts (Mainstream),Transport,4101016245,02/11/2022,2170
Buckinghamshire Council,Children's Services,HOLIDAY INN AYLESBURY,1000261,"Rents, Wayleaves & Hire of Premises",Controllable Premises,4101017265,09/11/2022,916.67
Buckinghamshire Council,Adults and Health,HOLIDAY INN AYLESBURY,1000261,Other Com Care exp (eg pet sitting),Agency (third party payments) & Contribs,4101018552,16/11/2022,3164.58
Buckinghamshire Council,Children's Services,HOLIDAY INN AYLESBURY,1000261,"Courses, Conference and Seminar Fees",Supplies and Services,4101016421,02/11/2022,729.17
Buckinghamshire Council,Communities,MOTTS COACHES (AYLESBURY) LTD,1000265,Contracts (Mainstream),Transport,4101018047,16/11/2022,1100
Buckinghamshire Council,Communities,MOTTS COACHES (AYLESBURY) LTD,1000265,Contracts (Mainstream),Transport,4101016858,04/11/2022,1100
Buckinghamshire Council,Communities,MOTTS COACHES (AYLESBURY) LTD,1000265,Contracts (Mainstream),Transport,4101018680,18/11/2022,3048.8
Buckinghamshire Council,Communities,MOTTS COACHES (AYLESBURY) LTD,1000265,Contracts (Mainstream),Transport,4101018681,18/11/2022,2472
Buckinghamshire Council,Communities,MOTTS COACHES (AYLESBURY) LTD,1000265,Contracts (Mainstream),Transport,4101018682,18/11/2022,3321.75
Buckinghamshire Council,Communities,MOTTS COACHES (AYLESBURY) LTD,1000265,Contracts (Mainstream),Transport,4101018704,18/11/2022,3811
Buckinghamshire Council,Communities,MOTTS COACHES (AYLESBURY) LTD,1000265,Contracts (Mainstream),Transport,4101018723,18/11/2022,3321.75
Buckinghamshire Council,Communities,MOTTS COACHES (AYLESBURY) LTD,1000265,Contracts (Mainstream),Transport,4101018724,18/11/2022,5253
Buckinghamshire Council,Communities,MOTTS COACHES (AYLESBURY) LTD,1000265,Contracts (Mainstream),Transport,4101019243,23/11/2022,1297.8
Buckinghamshire Council,Communities,MOTTS COACHES (AYLESBURY) LTD,1000265,Contracts (Mainstream),Transport,4101019244,23/11/2022,648.9
Buckinghamshire Council,Communities,MOTTS COACHES (AYLESBURY) LTD,1000265,Contracts (Mainstream),Transport,4101019245,23/11/2022,1297.8
Buckinghamshire Council,Communities,MOTTS COACHES (AYLESBURY) LTD,1000265,Contracts (Mainstream),Transport,4101020549,30/11/2022,648.9
Buckinghamshire Council,"Planning, Growth & Sustainability",BEACONSFIELD TOWN COUNCIL,1000274,To Other LA & Public Bodies,Transfer Payments (Grants & Assistance),4500119944,02/11/2022,20218.75
Buckinghamshire Council,Communities,BEACONSFIELD TOWN COUNCIL,1000274,CCTV,Agency (third party payments) & Contribs,4101017273,09/11/2022,7500
Buckinghamshire Council,Communities,BEACONSFIELD TOWN COUNCIL,1000274,CCTV,Agency (third party payments) & Contribs,4101017274,09/11/2022,7500
Buckinghamshire Council,Communities,REDACTED,1000298,Subsidised Bus Services - Accessibility,Transfer Payments (Grants & Assistance),4101017604,09/11/2022,9716.7
Buckinghamshire Council,Communities,REDACTED,1000298,Contracts (Mainstream),Transport,4101016811,04/11/2022,7759.61
Buckinghamshire Council,Communities,REDACTED,1000298,Contracts (Mainstream),Transport,4101016812,04/11/2022,6592.82
Buckinghamshire Council,Communities,REDACTED,1000298,Contracts (Mainstream),Transport,4101016813,04/11/2022,4103.52
Buckinghamshire Council,Communities,REDACTED,1000298,Contracts (Mainstream),Transport,4101016814,04/11/2022,5488.17
Buckinghamshire Council,Communities,REDACTED,1000298,Contracts (Mainstream),Transport,4101016815,04/11/2022,7828
Buckinghamshire Council,Communities,REDACTED,1000298,Subsidised Bus Services - Accessibility,Transfer Payments (Grants & Assistance),4101018189,11/11/2022,965.48
Buckinghamshire Council,Communities,REDACTED,1000298,Contracts (Mainstream),Transport,4101020638,30/11/2022,2611.05
Buckinghamshire Council,Communities,HeyfordianTravel Limited,1000307,Contracts (Mainstream),Transport,4101019113,23/11/2022,4384
Buckinghamshire Council,Communities,HeyfordianTravel Limited,1000307,Contracts (Mainstream),Transport,4101019114,23/11/2022,2235
Buckinghamshire Council,Communities,HeyfordianTravel Limited,1000307,Contracts (Mainstream),Transport,4101019115,23/11/2022,4110
Buckinghamshire Council,Communities,HeyfordianTravel Limited,1000307,Contracts (Mainstream),Transport,4101019116,23/11/2022,4500
Buckinghamshire Council,"Planning, Growth & Sustainability",Newsquest Media Group,1000331,Advertising,Supplies and Services,4101015929,18/11/2022,893.44
Buckinghamshire Council,"Planning, Growth & Sustainability",Newsquest Media Group,1000331,Advertising,Supplies and Services,4101015946,11/11/2022,1758.87
Buckinghamshire Council,"Planning, Growth & Sustainability",Newsquest Media Group,1000331,Advertising,Supplies and Services,4101015985,11/11/2022,837.56
Buckinghamshire Council,"Planning, Growth & Sustainability",SCIENTIA SERVICES LTD,1000362,Security & Safety Supplies & Equipment,Supplies and Services,4101016595,04/11/2022,8460.5
Buckinghamshire Council,Communities,CHUBB ELECTRONIC SECURITY LTD,1000380,Security Contracts,Supplies and Services,4101014844,02/11/2022,1204.45
Buckinghamshire Council,Communities,CHUBB ELECTRONIC SECURITY LTD,1000380,Security Contracts,Supplies and Services,4101020462,30/11/2022,732.34
Buckinghamshire Council,Adults and Health,HOMES TOGETHER LTD,1000436,Res care-permanent - other,Agency (third party payments) & Contribs,7002957466,23/11/2022,6961.2
Buckinghamshire Council,Adults and Health,HOMES TOGETHER LTD,1000436,Res care-permanent - other,Controllable Customer & Client Receipts,7002957466,23/11/2022,-438.8
Buckinghamshire Council,Planning Growth & Sustainability,Trade Windows,1000438,Construction Other,Capital - Expenditure -Controllable,7002923115,18/11/2022,3250
Buckinghamshire Council,Communities,A 1 TAXI SERVICE,1000441,Contracts (Mainstream),Transport,4101019100,23/11/2022,1668.6
Buckinghamshire Council,Communities,A 1 TAXI SERVICE,1000441,Contracts (Mainstream),Transport,4101016068,02/11/2022,1339
Buckinghamshire Council,Communities,A 1 TAXI SERVICE,1000441,Contracts (Mainstream),Transport,4101016069,02/11/2022,1195.83
Buckinghamshire Council,Communities,A 1 TAXI SERVICE,1000441,Contracts (Mainstream),Transport,4101016070,02/11/2022,1479.49
Buckinghamshire Council,Communities,A 1 TAXI SERVICE,1000441,Contracts (Mainstream),Transport,4101016251,02/11/2022,1390.5
Buckinghamshire Council,Communities,A 1 TAXI SERVICE,1000441,Contracts (Mainstream),Transport,4101016412,02/11/2022,2224.8
Buckinghamshire Council,Communities,A 1 TAXI SERVICE,1000441,Contracts (Mainstream),Transport,4101016413,02/11/2022,1371.96
Buckinghamshire Council,Communities,A 1 TAXI SERVICE,1000441,Contracts (Mainstream),Transport,4101016954,09/11/2022,1232.91
Buckinghamshire Council,Communities,A 1 TAXI SERVICE,1000441,Contracts (Mainstream),Transport,4101016955,09/11/2022,1483.2
Buckinghamshire Council,Communities,A 1 TAXI SERVICE,1000441,Contracts (Mainstream),Transport,4101016956,09/11/2022,1062.96
Buckinghamshire Council,Communities,A 1 TAXI SERVICE,1000441,Contracts (Mainstream),Transport,4101020209,30/11/2022,1143.3
Buckinghamshire Council,Communities,A 1 TAXI SERVICE,1000441,Contracts (Mainstream),Transport,4101020308,30/11/2022,1004.25
Buckinghamshire Council,Communities,A 1 TAXI SERVICE,1000441,Contracts (Mainstream),Transport,4101020412,30/11/2022,1205.1
Buckinghamshire Council,Children's Services,Colin Clarke Constuction Ltd,1000443,Construction - Building Work,Capital - Expenditure -Controllable,7002947058,04/11/2022,19200
Buckinghamshire Council,Children's Services,C J ASSOCIATES TRAINING LTD,1000459,Payments - Other Bodies,Transfer Payments (Grants & Assistance),4101016034,02/11/2022,625
Buckinghamshire Council,Adults and Health,Arrow Transport & Solutions Ltd,1000465,Transport - Day Care - external,Transport,4101016807,04/11/2022,2921
Buckinghamshire Council,Children's Services,Arrow Transport & Solutions Ltd,1000465,Sec 20/31: Transport,Transfer Payments (Grants & Assistance),4101017114,09/11/2022,1695
Buckinghamshire Council,Adults and Health,Arrow Transport & Solutions Ltd,1000465,Transport - Other Care - external,Transport,4101018246,16/11/2022,615
Buckinghamshire Council,Communities,Arrow Transport & Solutions Ltd,1000465,Contracts (Mainstream),Transport,4101019599,23/11/2022,2242
Buckinghamshire Council,Communities,Arrow Transport & Solutions Ltd,1000465,Contracts (Mainstream),Transport,4101019600,23/11/2022,2160.3
Buckinghamshire Council,Communities,Arrow Transport & Solutions Ltd,1000465,Contracts (Mainstream),Transport,4101019601,23/11/2022,1679.6
Buckinghamshire Council,Communities,Arrow Transport & Solutions Ltd,1000465,Contracts (Mainstream),Transport,4101019602,23/11/2022,1508.98
Buckinghamshire Council,Communities,Arrow Transport & Solutions Ltd,1000465,Contracts (Mainstream),Transport,4101019603,23/11/2022,1501
Buckinghamshire Council,Communities,Arrow Transport & Solutions Ltd,1000465,Contracts (Mainstream),Transport,4101019604,23/11/2022,1319.55
Buckinghamshire Council,Communities,Arrow Transport & Solutions Ltd,1000465,Contracts (Mainstream),Transport,4101019609,23/11/2022,2976.29
Buckinghamshire Council,Communities,Arrow Transport & Solutions Ltd,1000465,Contracts (Mainstream),Transport,4101019610,23/11/2022,2976.29
Buckinghamshire Council,Children's Services,Arrow Transport & Solutions Ltd,1000465,Sec 20/31: Transport,Transfer Payments (Grants & Assistance),4101019621,23/11/2022,875
Buckinghamshire Council,Adults and Health,Arrow Transport & Solutions Ltd,1000465,Transport - Day Care - external,Transport,4101017384,18/11/2022,1553
Buckinghamshire Council,Adults and Health,Arrow Transport & Solutions Ltd,1000465,Transport - Day Care - external,Transport,4101018362,18/11/2022,2526
Buckinghamshire Council,Communities,Arrow Transport & Solutions Ltd,1000465,Contracts (Mainstream),Transport,4101018965,18/11/2022,3605
Buckinghamshire Council,Communities,Arrow Transport & Solutions Ltd,1000465,Contracts (Mainstream),Transport,4101018966,18/11/2022,813.7
Buckinghamshire Council,Adults and Health,Neales Taxis Ltd,1000473,Transport - Day Care - external,Transport,4101017819,11/11/2022,611.6
Buckinghamshire Council,Adults and Health,Neales Taxis Ltd,1000473,Transport - Day Care - external,Transport,4101017819,11/11/2022,0.04
Buckinghamshire Council,Adults and Health,Neales Taxis Ltd,1000473,Transport - Day Care - external,Transport,4101017820,11/11/2022,4133.36
Buckinghamshire Council,Adults and Health,Neales Taxis Ltd,1000473,Transport - Day Care - external,Transport,4101017822,11/11/2022,948.75
Buckinghamshire Council,Adults and Health,Neales Taxis Ltd,1000473,Transport - Day Care - external,Transport,4101017822,11/11/2022,0.03
Buckinghamshire Council,Adults and Health,Neales Taxis Ltd,1000473,Transport - Day Care - external,Transport,4101017823,11/11/2022,1053
Buckinghamshire Council,Adults and Health,Neales Taxis Ltd,1000473,Transport - Day Care - external,Transport,4101017824,11/11/2022,1178.7
Buckinghamshire Council,Adults and Health,Neales Taxis Ltd,1000473,Transport - Day Care - external,Transport,4101017865,11/11/2022,1042.92
Buckinghamshire Council,Adults and Health,Neales Taxis Ltd,1000473,Transport - Day Care - external,Transport,4101017866,11/11/2022,1012.57
Buckinghamshire Council,Adults and Health,Neales Taxis Ltd,1000473,Transport - Day Care - external,Transport,4101017867,11/11/2022,1401.66
Buckinghamshire Council,Adults and Health,Neales Taxis Ltd,1000473,Transport - Day Care - external,Transport,4101017868,11/11/2022,1253.3
Buckinghamshire Council,Adults and Health,Neales Taxis Ltd,1000473,Transport - Day Care - external,Transport,4101017868,11/11/2022,0.04
Buckinghamshire Council,Adults and Health,Neales Taxis Ltd,1000473,Transport - Day Care - external,Transport,4101017869,11/11/2022,1430
Buckinghamshire Council,Adults and Health,Neales Taxis Ltd,1000473,Transport - Day Care - external,Transport,4101017870,11/11/2022,878.22
Buckinghamshire Council,Adults and Health,Neales Taxis Ltd,1000473,Transport - Day Care - external,Transport,4101017871,11/11/2022,814.1
Buckinghamshire Council,Adults and Health,Neales Taxis Ltd,1000473,Transport - Day Care - external,Transport,4101017871,11/11/2022,0.03
Buckinghamshire Council,Adults and Health,Neales Taxis Ltd,1000473,Transport - Day Care - external,Transport,4101017872,11/11/2022,1273.22
Buckinghamshire Council,Communities,Neales Taxis Ltd,1000473,Contracts (Mainstream),Transport,4101017907,11/11/2022,1057.5
Buckinghamshire Council,Communities,Neales Taxis Ltd,1000473,Contracts (Mainstream),Transport,4101017907,11/11/2022,0.04
Buckinghamshire Council,Communities,Neales Taxis Ltd,1000473,Contracts (Mainstream),Transport,4101017908,11/11/2022,1853.8
Buckinghamshire Council,Communities,Neales Taxis Ltd,1000473,Contracts (Mainstream),Transport,4101017908,11/11/2022,0.04
Buckinghamshire Council,Communities,Neales Taxis Ltd,1000473,Contracts (Mainstream),Transport,4101017909,11/11/2022,1591.8
Buckinghamshire Council,Communities,Neales Taxis Ltd,1000473,Contracts (Mainstream),Transport,4101017910,11/11/2022,803.4
Buckinghamshire Council,Communities,Neales Taxis Ltd,1000473,Contracts (Mainstream),Transport,4101017911,11/11/2022,761.75
Buckinghamshire Council,Communities,Neales Taxis Ltd,1000473,Contracts (Mainstream),Transport,4101017912,11/11/2022,1590.06
Buckinghamshire Council,Communities,Neales Taxis Ltd,1000473,Contracts (Mainstream),Transport,4101017913,11/11/2022,1666.35
Buckinghamshire Council,Communities,Neales Taxis Ltd,1000473,Contracts (Mainstream),Transport,4101017913,11/11/2022,0.03
Buckinghamshire Council,Adults and Health,Neales Taxis Ltd,1000473,Transport - Day Care - external,Transport,4101017914,11/11/2022,782.05
Buckinghamshire Council,Adults and Health,Neales Taxis Ltd,1000473,Transport - Day Care - external,Transport,4101017914,11/11/2022,0.04
Buckinghamshire Council,Adults and Health,Neales Taxis Ltd,1000473,Transport - Day Care - external,Transport,4101017915,11/11/2022,936
Buckinghamshire Council,Communities,Neales Taxis Ltd,1000473,Contracts (Mainstream),Transport,4101017927,11/11/2022,777.95
Buckinghamshire Council,Communities,Neales Taxis Ltd,1000473,Contracts (Mainstream),Transport,4101017929,11/11/2022,1980.35
Buckinghamshire Council,Communities,Neales Taxis Ltd,1000473,Contracts (Mainstream),Transport,4101017929,11/11/2022,0.03
Buckinghamshire Council,Communities,Neales Taxis Ltd,1000473,Contracts (Mainstream),Transport,4101017931,11/11/2022,830.55
Buckinghamshire Council,Communities,Neales Taxis Ltd,1000473,Contracts (Mainstream),Transport,4101017931,11/11/2022,0.04
Buckinghamshire Council,Adults and Health,Neales Taxis Ltd,1000473,Transport - Day Care - external,Transport,4101017946,11/11/2022,1208.65
Buckinghamshire Council,Adults and Health,Neales Taxis Ltd,1000473,Transport - Day Care - external,Transport,4101017946,11/11/2022,0.03
Buckinghamshire Council,Adults and Health,Neales Taxis Ltd,1000473,Transport - Day Care - external,Transport,4101017948,11/11/2022,1307.25
Buckinghamshire Council,Adults and Health,Neales Taxis Ltd,1000473,Transport - Day Care - external,Transport,4101017948,11/11/2022,0.03
Buckinghamshire Council,Communities,Neales Taxis Ltd,1000473,Contracts (Mainstream),Transport,4101017972,11/11/2022,2410.55
Buckinghamshire Council,Communities,Neales Taxis Ltd,1000473,Contracts (Mainstream),Transport,4101017973,11/11/2022,2630.55
Buckinghamshire Council,Communities,Neales Taxis Ltd,1000473,Contracts (Mainstream),Transport,4101017974,11/11/2022,547.52
Buckinghamshire Council,Communities,Neales Taxis Ltd,1000473,Contracts (Mainstream),Transport,4101017975,11/11/2022,1009.4
Buckinghamshire Council,Communities,Neales Taxis Ltd,1000473,Contracts (Mainstream),Transport,4101017976,11/11/2022,2163
Buckinghamshire Council,Communities,Neales Taxis Ltd,1000473,Contracts (Mainstream),Transport,4101017977,11/11/2022,1426.57
Buckinghamshire Council,Communities,Neales Taxis Ltd,1000473,Contracts (Mainstream),Transport,4101017978,11/11/2022,646.7
Buckinghamshire Council,Communities,Neales Taxis Ltd,1000473,Contracts (Mainstream),Transport,4101017978,11/11/2022,0.03
Buckinghamshire Council,Communities,Neales Taxis Ltd,1000473,Contracts (Mainstream),Transport,4101017979,11/11/2022,696.15
Buckinghamshire Council,Communities,Neales Taxis Ltd,1000473,Contracts (Mainstream),Transport,4101017979,11/11/2022,0.04
Buckinghamshire Council,Communities,Neales Taxis Ltd,1000473,Contracts (Mainstream),Transport,4101017981,11/11/2022,1526.15
Buckinghamshire Council,Communities,Neales Taxis Ltd,1000473,Contracts (Mainstream),Transport,4101017981,11/11/2022,0.04
Buckinghamshire Council,Communities,Neales Taxis Ltd,1000473,Contracts (Mainstream),Transport,4101017982,11/11/2022,1190.2
Buckinghamshire Council,Communities,Neales Taxis Ltd,1000473,Contracts (Mainstream),Transport,4101017982,11/11/2022,0.03
Buckinghamshire Council,Adults and Health,Neales Taxis Ltd,1000473,Transport - Day Care - external,Transport,4101018013,11/11/2022,767.76
Buckinghamshire Council,Adults and Health,Neales Taxis Ltd,1000473,Transport - Day Care - external,Transport,4101018014,11/11/2022,3375.71
Buckinghamshire Council,Communities,Neales Taxis Ltd,1000473,Contracts (Mainstream),Transport,4101018015,11/11/2022,965.9
Buckinghamshire Council,Communities,Neales Taxis Ltd,1000473,Contracts (Mainstream),Transport,4101018015,11/11/2022,0.04
Buckinghamshire Council,Adults and Health,Neales Taxis Ltd,1000473,Transport - Day Care - external,Transport,4101018016,11/11/2022,934.65
Buckinghamshire Council,Adults and Health,Neales Taxis Ltd,1000473,Transport - Day Care - external,Transport,4101018016,11/11/2022,0.03
Buckinghamshire Council,Communities,Neales Taxis Ltd,1000473,Contracts (Mainstream),Transport,4101018050,11/11/2022,1565.6
Buckinghamshire Council,Communities,Neales Taxis Ltd,1000473,Contracts (Mainstream),Transport,4101018051,11/11/2022,1081.5
Buckinghamshire Council,Communities,Neales Taxis Ltd,1000473,Contracts (Mainstream),Transport,4101018052,11/11/2022,1348.37
Buckinghamshire Council,Communities,Neales Taxis Ltd,1000473,Contracts (Mainstream),Transport,4101018053,11/11/2022,1267.15
Buckinghamshire Council,Communities,Neales Taxis Ltd,1000473,Contracts (Mainstream),Transport,4101018054,11/11/2022,1349.9
Buckinghamshire Council,Communities,Neales Taxis Ltd,1000473,Contracts (Mainstream),Transport,4101018054,11/11/2022,0.03
Buckinghamshire Council,Communities,Neales Taxis Ltd,1000473,Contracts (Mainstream),Transport,4101018055,11/11/2022,2122.36
Buckinghamshire Council,Communities,Neales Taxis Ltd,1000473,Contracts (Mainstream),Transport,4101018104,11/11/2022,890.15
Buckinghamshire Council,Children's Services,Neales Taxis Ltd,1000473,Transport - Day Care - external,Transport,4101018105,11/11/2022,865.75
Buckinghamshire Council,Children's Services,Neales Taxis Ltd,1000473,Transport - Day Care - external,Transport,4101018105,11/11/2022,0.05
Buckinghamshire Council,Communities,Neales Taxis Ltd,1000473,Contracts (Mainstream),Transport,4101018157,11/11/2022,1100
Buckinghamshire Council,Communities,Neales Taxis Ltd,1000473,Contracts (Mainstream),Transport,4101018158,11/11/2022,520.56
Buckinghamshire Council,Children's Services,Neales Taxis Ltd,1000473,Transport - Day Care - external,Transport,4101018160,11/11/2022,1709.05
Buckinghamshire Council,Communities,Neales Taxis Ltd,1000473,Contracts (Mainstream),Transport,4101018191,11/11/2022,1738.9
Buckinghamshire Council,Communities,Neales Taxis Ltd,1000473,Contracts (Mainstream),Transport,4101018196,11/11/2022,980
Buckinghamshire Council,Communities,Neales Taxis Ltd,1000473,Contracts (Mainstream),Transport,4101018197,11/11/2022,539.4
Buckinghamshire Council,Communities,Neales Taxis Ltd,1000473,Contracts (Mainstream),Transport,4101018198,11/11/2022,1320
Buckinghamshire Council,Communities,Neales Taxis Ltd,1000473,Contracts (Mainstream),Transport,4101018199,11/11/2022,1320
Buckinghamshire Council,Communities,Neales Taxis Ltd,1000473,Contracts (Mainstream),Transport,4101018200,11/11/2022,757.9
Buckinghamshire Council,Adults and Health,Neales Taxis Ltd,1000473,Transport - Day Care - external,Transport,4101018201,11/11/2022,1916.5
Buckinghamshire Council,Communities,Neales Taxis Ltd,1000473,Contracts (Mainstream),Transport,4101019314,23/11/2022,4994.47
Buckinghamshire Council,Communities,Neales Taxis Ltd,1000473,Contracts (Mainstream),Transport,4101019335,23/11/2022,2111.6
Buckinghamshire Council,Children's Services,Neales Taxis Ltd,1000473,Transport - Day Care - external,Transport,4101018159,16/11/2022,3034.3
Buckinghamshire Council,Adults and Health,Neales Taxis Ltd,1000473,Transport - Day Care - external,Transport,4101018218,16/11/2022,3473.36
Buckinghamshire Council,Adults and Health,Neales Taxis Ltd,1000473,Transport - Day Care - external,Transport,4101018219,16/11/2022,3545.1
Buckinghamshire Council,Adults and Health,Neales Taxis Ltd,1000473,Transport - Day Care - external,Transport,4101018220,16/11/2022,1040.22
Buckinghamshire Council,Adults and Health,Neales Taxis Ltd,1000473,Transport - Day Care - external,Transport,4101018221,16/11/2022,1581.8
Buckinghamshire Council,Adults and Health,Neales Taxis Ltd,1000473,Transport - Day Care - external,Transport,4101018221,16/11/2022,0.04
Buckinghamshire Council,Adults and Health,Neales Taxis Ltd,1000473,Transport - Day Care - external,Transport,4101018385,16/11/2022,2757.6
Buckinghamshire Council,Adults and Health,Neales Taxis Ltd,1000473,Transport - Day Care - external,Transport,4101018404,16/11/2022,3910
Buckinghamshire Council,Communities,Neales Taxis Ltd,1000473,Contracts (Mainstream),Transport,4101018582,16/11/2022,3012.75
Buckinghamshire Council,Adults and Health,Neales Taxis Ltd,1000473,Transport - Day Care - external,Transport,4101013371,09/11/2022,1423.67
Buckinghamshire Council,Communities,Neales Taxis Ltd,1000473,Contracts (Mainstream),Transport,4101017554,09/11/2022,3337.2
Buckinghamshire Council,Communities,Neales Taxis Ltd,1000473,Contracts (Mainstream),Transport,4101016606,04/11/2022,1443.7
Buckinghamshire Council,Communities,Neales Taxis Ltd,1000473,Contracts (Mainstream),Transport,4101020458,30/11/2022,3457.24
Buckinghamshire Council,Children's Services,Neales Taxis Ltd,1000473,Transport - Day Care - external,Transport,4101020459,30/11/2022,1174.57
Buckinghamshire Council,Communities,Neales Taxis Ltd,1000473,Contracts (Mainstream),Transport,4101020460,30/11/2022,1635.76
Buckinghamshire Council,Communities,Neales Taxis Ltd,1000473,Contracts (Mainstream),Transport,4101020491,30/11/2022,2781
Buckinghamshire Council,Communities,Neales Taxis Ltd,1000473,Contracts (Mainstream),Transport,4101020492,30/11/2022,1312.78
Buckinghamshire Council,Communities,Neales Taxis Ltd,1000473,Contracts (Mainstream),Transport,4101020493,30/11/2022,3708
Buckinghamshire Council,Communities,Neales Taxis Ltd,1000473,Contracts (Mainstream),Transport,4101020515,30/11/2022,2317.5
Buckinghamshire Council,Communities,Neales Taxis Ltd,1000473,Contracts (Mainstream),Transport,4101020516,30/11/2022,3165.55
Buckinghamshire Council,Communities,Neales Taxis Ltd,1000473,Contracts (Mainstream),Transport,4101020517,30/11/2022,5407.5
Buckinghamshire Council,Communities,Neales Taxis Ltd,1000473,Contracts (Mainstream),Transport,4101020518,30/11/2022,5762.85
Buckinghamshire Council,Communities,Neales Taxis Ltd,1000473,Contracts (Mainstream),Transport,4101020519,30/11/2022,852.6
Buckinghamshire Council,Communities,Neales Taxis Ltd,1000473,Contracts (Mainstream),Transport,4101020520,30/11/2022,2135.2
Buckinghamshire Council,Communities,Neales Taxis Ltd,1000473,Contracts (Mainstream),Transport,4101020522,30/11/2022,1663.7
Buckinghamshire Council,Communities,Neales Taxis Ltd,1000473,Contracts (Mainstream),Transport,4101020559,30/11/2022,5407.5
Buckinghamshire Council,Communities,ABBA CARS,1000476,Contracts (Mainstream),Transport,4101016036,02/11/2022,3798.65
Buckinghamshire Council,Communities,ABBA CARS,1000476,Contracts (Mainstream),Transport,4101016036,02/11/2022,0.03
Buckinghamshire Council,Communities,ABBA CARS,1000476,Contracts (Mainstream),Transport,4101016041,02/11/2022,2270.52
Buckinghamshire Council,Adults and Health,ABBA CARS,1000476,Transport - Day Care - external,Transport,4101016128,02/11/2022,3276
Buckinghamshire Council,Adults and Health,ABBA CARS,1000476,Transport - Day Care - external,Transport,4101016177,02/11/2022,1106.6
Buckinghamshire Council,Adults and Health,ABBA CARS,1000476,Transport - Day Care - external,Transport,4101016177,02/11/2022,0.04
Buckinghamshire Council,Adults and Health,ABBA CARS,1000476,Transport - Day Care - external,Transport,4101016178,02/11/2022,3288
Buckinghamshire Council,Communities,ABBA CARS,1000476,Contracts (Mainstream),Transport,4101017371,09/11/2022,2990
Buckinghamshire Council,Communities,ABBA CARS,1000476,Contracts (Mainstream),Transport,4101019575,23/11/2022,2531.75
Buckinghamshire Council,Communities,ABBA CARS,1000476,Contracts (Mainstream),Transport,4101019576,23/11/2022,2484
Buckinghamshire Council,Communities,ABBA CARS,1000476,Contracts (Mainstream),Transport,4101019577,23/11/2022,2340
Buckinghamshire Council,Children's Services,ABBA CARS,1000476,Transport - Day Care - external,Transport,4101019717,25/11/2022,1869.45
Buckinghamshire Council,Children's Services,ABBA CARS,1000476,Transport - Day Care - external,Transport,4101019717,25/11/2022,0.03
Buckinghamshire Council,Communities,ABBA CARS,1000476,Contracts (Mainstream),Transport,4101019726,25/11/2022,2132.16
Buckinghamshire Council,Adults and Health,ABBA CARS,1000476,Transport - Day Care - external,Transport,4101019727,25/11/2022,3276
Buckinghamshire Council,Communities,ABBA CARS,1000476,Contracts (Mainstream),Transport,4101019728,25/11/2022,2018.2
Buckinghamshire Council,Communities,ABBA CARS,1000476,Contracts (Mainstream),Transport,4101019728,25/11/2022,0.04
Buckinghamshire Council,Communities,ABBA CARS,1000476,Contracts (Mainstream),Transport,4101019729,25/11/2022,2208
Buckinghamshire Council,Communities,ABBA CARS,1000476,Contracts (Mainstream),Transport,4101019730,25/11/2022,2080
Buckinghamshire Council,Communities,PREMIUM MINIBUSES & CARS LTD,1000478,Contracts (Mainstream),Transport,4101019783,25/11/2022,2013.92
Buckinghamshire Council,Communities,PREMIUM MINIBUSES & CARS LTD,1000478,Contracts (Mainstream),Transport,4101019784,25/11/2022,2015.2
Buckinghamshire Council,Communities,PREMIUM MINIBUSES & CARS LTD,1000478,Contracts (Mainstream),Transport,4101019785,25/11/2022,1760
Buckinghamshire Council,Communities,PREMIUM MINIBUSES & CARS LTD,1000478,Contracts (Mainstream),Transport,4101019786,25/11/2022,2557.28
Buckinghamshire Council,Communities,PREMIUM MINIBUSES & CARS LTD,1000478,Contracts (Mainstream),Transport,4101019787,25/11/2022,1536.8
Buckinghamshire Council,Children's Services,PREMIUM MINIBUSES & CARS LTD,1000478,Transport - Day Care - external,Transport,4101019788,25/11/2022,958.08
Buckinghamshire Council,Communities,PREMIUM MINIBUSES & CARS LTD,1000478,Contracts (Mainstream),Transport,4101019789,25/11/2022,1200
Buckinghamshire Council,Communities,PREMIUM MINIBUSES & CARS LTD,1000478,Contracts (Mainstream),Transport,4101019790,25/11/2022,1438.05
Buckinghamshire Council,Communities,PREMIUM MINIBUSES & CARS LTD,1000478,Contracts (Mainstream),Transport,4101019791,25/11/2022,867.45
Buckinghamshire Council,Communities,PREMIUM MINIBUSES & CARS LTD,1000478,Contracts (Mainstream),Transport,4101019792,25/11/2022,2079.2
Buckinghamshire Council,Communities,PREMIUM MINIBUSES & CARS LTD,1000478,Contracts (Mainstream),Transport,4101019793,25/11/2022,978.46
Buckinghamshire Council,Adults and Health,PREMIUM MINIBUSES & CARS LTD,1000478,Transport - Day Care - external,Transport,4101019794,25/11/2022,2848
Buckinghamshire Council,Communities,PREMIUM MINIBUSES & CARS LTD,1000478,Contracts (Mainstream),Transport,4101019795,25/11/2022,704
Buckinghamshire Council,Adults and Health,PREMIUM MINIBUSES & CARS LTD,1000478,Transport - Day Care - external,Transport,4101019796,25/11/2022,1058.4
Buckinghamshire Council,Communities,PREMIUM MINIBUSES & CARS LTD,1000478,Contracts (Mainstream),Transport,4101019797,25/11/2022,1424
Buckinghamshire Council,Communities,PREMIUM MINIBUSES & CARS LTD,1000478,Contracts (Mainstream),Transport,4101019799,25/11/2022,1580.8
Buckinghamshire Council,Communities,PREMIUM MINIBUSES & CARS LTD,1000478,Contracts (Mainstream),Transport,4101019800,25/11/2022,1335
Buckinghamshire Council,Communities,PREMIUM MINIBUSES & CARS LTD,1000478,Contracts (Mainstream),Transport,4101019837,25/11/2022,1823.68
Buckinghamshire Council,Communities,PREMIUM MINIBUSES & CARS LTD,1000478,Contracts (Mainstream),Transport,4101019838,25/11/2022,900
Buckinghamshire Council,Communities,PREMIUM MINIBUSES & CARS LTD,1000478,Contracts (Mainstream),Transport,4101019839,25/11/2022,1110
Buckinghamshire Council,Adults and Health,PREMIUM MINIBUSES & CARS LTD,1000478,Transport - Day Care - external,Transport,4101019840,25/11/2022,2940
Buckinghamshire Council,Communities,PREMIUM MINIBUSES & CARS LTD,1000478,Contracts (Mainstream),Transport,4101019841,25/11/2022,900
Buckinghamshire Council,Communities,PREMIUM MINIBUSES & CARS LTD,1000478,Contracts (Mainstream),Transport,4101019842,25/11/2022,2288
Buckinghamshire Council,Communities,PREMIUM MINIBUSES & CARS LTD,1000478,Contracts (Mainstream),Transport,4101019843,25/11/2022,1650
Buckinghamshire Council,Communities,PREMIUM MINIBUSES & CARS LTD,1000478,Contracts (Mainstream),Transport,4101019844,25/11/2022,2369.1
Buckinghamshire Council,Communities,PREMIUM MINIBUSES & CARS LTD,1000478,Subsidised Bus Services - Accessibility,Transfer Payments (Grants & Assistance),4101018960,18/11/2022,837.5
Buckinghamshire Council,Communities,PREMIUM MINIBUSES & CARS LTD,1000478,Contracts (Mainstream),Transport,4101019233,23/11/2022,1422
Buckinghamshire Council,Communities,PREMIUM MINIBUSES & CARS LTD,1000478,Contracts (Mainstream),Transport,4101019317,23/11/2022,660
Buckinghamshire Council,Communities,PREMIUM MINIBUSES & CARS LTD,1000478,Contracts (Mainstream),Transport,4101017459,09/11/2022,840
Buckinghamshire Council,Communities,PREMIUM MINIBUSES & CARS LTD,1000478,Contracts (Mainstream),Transport,4101017460,09/11/2022,945
Buckinghamshire Council,Communities,PREMIUM MINIBUSES & CARS LTD,1000478,Contracts (Mainstream),Transport,4101017461,09/11/2022,2520
Buckinghamshire Council,Communities,PREMIUM MINIBUSES & CARS LTD,1000478,Contracts (Mainstream),Transport,4101017463,09/11/2022,566.28
Buckinghamshire Council,Communities,PREMIUM MINIBUSES & CARS LTD,1000478,Contracts (Mainstream),Transport,4101017465,09/11/2022,1598.7
Buckinghamshire Council,Communities,PREMIUM MINIBUSES & CARS LTD,1000478,Contracts (Mainstream),Transport,4101017466,09/11/2022,1691
Buckinghamshire Council,Communities,PREMIUM MINIBUSES & CARS LTD,1000478,Contracts (Mainstream),Transport,4101017467,09/11/2022,2848.67
Buckinghamshire Council,Communities,PREMIUM MINIBUSES & CARS LTD,1000478,Contracts (Mainstream),Transport,4101017468,09/11/2022,2654.68
Buckinghamshire Council,Communities,PREMIUM MINIBUSES & CARS LTD,1000478,Contracts (Mainstream),Transport,4101017469,09/11/2022,1327.91
Buckinghamshire Council,Adults and Health,PREMIUM MINIBUSES & CARS LTD,1000478,Transport - Day Care - external,Transport,4101017470,09/11/2022,2259.6
Buckinghamshire Council,Adults and Health,PREMIUM MINIBUSES & CARS LTD,1000478,Transport - Day Care - external,Transport,4101017471,09/11/2022,1008
Buckinghamshire Council,Communities,PREMIUM MINIBUSES & CARS LTD,1000478,Contracts (Mainstream),Transport,4101016666,04/11/2022,1649.23
Buckinghamshire Council,Communities,PREMIUM MINIBUSES & CARS LTD,1000478,Contracts (Mainstream),Transport,4101016682,04/11/2022,1680
Buckinghamshire Council,Adults and Health,PREMIUM MINIBUSES & CARS LTD,1000478,Transport - Day Care - external,Transport,4101016683,04/11/2022,1152
Buckinghamshire Council,Communities,PREMIUM MINIBUSES & CARS LTD,1000478,Contracts (Mainstream),Transport,4101018282,16/11/2022,1000
Buckinghamshire Council,Communities,PREMIUM MINIBUSES & CARS LTD,1000478,Contracts (Mainstream),Transport,4101018283,16/11/2022,2740.75
Buckinghamshire Council,Communities,PREMIUM MINIBUSES & CARS LTD,1000478,Contracts (Mainstream),Transport,4101018284,16/11/2022,1520
Buckinghamshire Council,Communities,PREMIUM MINIBUSES & CARS LTD,1000478,Contracts (Mainstream),Transport,4101018285,16/11/2022,2227.37
Buckinghamshire Council,Communities,PREMIUM MINIBUSES & CARS LTD,1000478,Contracts (Mainstream),Transport,4101018286,16/11/2022,2090
Buckinghamshire Council,Communities,PREMIUM MINIBUSES & CARS LTD,1000478,Contracts (Mainstream),Transport,4101018287,16/11/2022,2850
Buckinghamshire Council,Communities,PREMIUM MINIBUSES & CARS LTD,1000478,Contracts (Mainstream),Transport,4101018344,16/11/2022,1980
Buckinghamshire Council,Communities,PREMIUM MINIBUSES & CARS LTD,1000478,Contracts (Mainstream),Transport,4101018345,16/11/2022,2376.26
Buckinghamshire Council,Communities,PREMIUM MINIBUSES & CARS LTD,1000478,Contracts (Mainstream),Transport,4101018346,16/11/2022,2039.49
Buckinghamshire Council,Communities,PREMIUM MINIBUSES & CARS LTD,1000478,Contracts (Mainstream),Transport,4101018347,16/11/2022,1427.83
Buckinghamshire Council,Communities,PREMIUM MINIBUSES & CARS LTD,1000478,Contracts (Mainstream),Transport,4101018348,16/11/2022,1292
Buckinghamshire Council,Communities,PREMIUM MINIBUSES & CARS LTD,1000478,Contracts (Mainstream),Transport,4101018349,16/11/2022,2107.49
Buckinghamshire Council,Communities,PREMIUM MINIBUSES & CARS LTD,1000478,Contracts (Mainstream),Transport,4101018350,16/11/2022,1868.13
Buckinghamshire Council,Communities,PREMIUM MINIBUSES & CARS LTD,1000478,Contracts (Mainstream),Transport,4101018351,16/11/2022,2788.02
Buckinghamshire Council,Communities,PREMIUM MINIBUSES & CARS LTD,1000478,Contracts (Mainstream),Transport,4101018352,16/11/2022,2361.81
Buckinghamshire Council,Communities,PREMIUM MINIBUSES & CARS LTD,1000478,Contracts (Mainstream),Transport,4101018353,16/11/2022,1529.66
Buckinghamshire Council,Communities,PREMIUM MINIBUSES & CARS LTD,1000478,Contracts (Mainstream),Transport,4101018354,16/11/2022,2840.19
Buckinghamshire Council,Communities,PREMIUM MINIBUSES & CARS LTD,1000478,Contracts (Mainstream),Transport,4101018355,16/11/2022,2036.6
Buckinghamshire Council,Communities,PREMIUM MINIBUSES & CARS LTD,1000478,Contracts (Mainstream),Transport,4101018356,16/11/2022,1988.83
Buckinghamshire Council,Communities,PREMIUM MINIBUSES & CARS LTD,1000478,Contracts (Mainstream),Transport,4101018357,16/11/2022,2344.3
Buckinghamshire Council,Communities,PREMIUM MINIBUSES & CARS LTD,1000478,Contracts (Mainstream),Transport,4101018358,16/11/2022,1868.98
Buckinghamshire Council,Communities,PREMIUM MINIBUSES & CARS LTD,1000478,Contracts (Mainstream),Transport,4101018359,16/11/2022,1326
Buckinghamshire Council,Communities,PREMIUM MINIBUSES & CARS LTD,1000478,Contracts (Mainstream),Transport,4101018360,16/11/2022,1258
Buckinghamshire Council,Communities,PREMIUM MINIBUSES & CARS LTD,1000478,Contracts (Mainstream),Transport,4101018389,16/11/2022,2267.1
Buckinghamshire Council,Communities,PREMIUM MINIBUSES & CARS LTD,1000478,Contracts (Mainstream),Transport,4101018390,16/11/2022,1728.9
Buckinghamshire Council,Communities,PREMIUM MINIBUSES & CARS LTD,1000478,Contracts (Mainstream),Transport,4101018391,16/11/2022,1689.35
Buckinghamshire Council,Communities,PREMIUM MINIBUSES & CARS LTD,1000478,Contracts (Mainstream),Transport,4101018392,16/11/2022,2265.66
Buckinghamshire Council,Communities,PREMIUM MINIBUSES & CARS LTD,1000478,Contracts (Mainstream),Transport,4101018393,16/11/2022,2876.94
Buckinghamshire Council,Children's Services,PREMIUM MINIBUSES & CARS LTD,1000478,Transport - Day Care - external,Transport,4101016365,02/11/2022,2990
Buckinghamshire Council,Communities,PREMIUM MINIBUSES & CARS LTD,1000478,Contracts (Mainstream),Transport,4101016367,02/11/2022,1956.92
Buckinghamshire Council,Communities,PREMIUM MINIBUSES & CARS LTD,1000478,Contracts (Mainstream),Transport,4101020545,30/11/2022,1516.2
Buckinghamshire Council,Communities,PREMIUM MINIBUSES & CARS LTD,1000478,Contracts (Mainstream),Transport,4101020811,30/11/2022,2470
Buckinghamshire Council,Communities,PREMIUM MINIBUSES & CARS LTD,1000478,Contracts (Mainstream),Transport,4101020812,30/11/2022,1320
Buckinghamshire Council,Communities,PREMIUM MINIBUSES & CARS LTD,1000478,Contracts (Mainstream),Transport,4101020813,30/11/2022,2025
Buckinghamshire Council,Communities,PREMIUM MINIBUSES & CARS LTD,1000478,Contracts (Mainstream),Transport,4101020814,30/11/2022,685.08
Buckinghamshire Council,Communities,CLIVE'S DRIVES LTD,1000480,Other Maintenance Works,Agency (third party payments) & Contribs,4101019375,30/11/2022,520
Buckinghamshire Council,Communities,CLIVE'S DRIVES LTD,1000480,General Repairs & Maintenance,Controllable Premises,7002959164,30/11/2022,620
Buckinghamshire Council,Children's Services,INDUSTRIAL PIPE SERVS(2003)LTD,1000494,Construction - Building Work,Capital - Expenditure -Controllable,7002947043,04/11/2022,1823.75
Buckinghamshire Council,Children's Services,INDUSTRIAL PIPE SERVS(2003)LTD,1000494,Construction - Building Work,Capital - Expenditure -Controllable,7002947044,04/11/2022,2013.69
Buckinghamshire Council,Children's Services,INDUSTRIAL PIPE SERVS(2003)LTD,1000494,Construction - Building Work,Capital - Expenditure -Controllable,7002947045,04/11/2022,10320.1
Buckinghamshire Council,Children's Services,INDUSTRIAL PIPE SERVS(2003)LTD,1000494,Construction - Building Work,Capital - Expenditure -Controllable,7002952151,09/11/2022,53466.95
Buckinghamshire Council,Adults and Health,Bucks Vision,1000512,Payments To Contractors,Supplies and Services,4101016347,09/11/2022,24559.17
Buckinghamshire Council,Adults and Health,Buckinghamshire College Group,1000534,"Courses, Conference and Seminar Fees",Supplies and Services,4101017427,09/11/2022,3229
Buckinghamshire Council,Children's Services,Buckinghamshire College Group,1000534,College Placements,Agency (third party payments) & Contribs,3300483049,11/11/2022,328556
Buckinghamshire Council,Communities,GILBERTS OF CHESHAM,1000556,Contracts (Mainstream),Transport,4101017475,18/11/2022,1313.25
Buckinghamshire Council,Communities,GILBERTS OF CHESHAM,1000556,Contracts (Mainstream),Transport,4101017476,18/11/2022,1278.85
Buckinghamshire Council,Communities,GILBERTS OF CHESHAM,1000556,Contracts (Mainstream),Transport,4101017477,18/11/2022,957.9
Buckinghamshire Council,Communities,GILBERTS OF CHESHAM,1000556,Contracts (Mainstream),Transport,4101017478,18/11/2022,2101.69
Buckinghamshire Council,Communities,GILBERTS OF CHESHAM,1000556,Contracts (Mainstream),Transport,4101017479,18/11/2022,1081.5
Buckinghamshire Council,Communities,GILBERTS OF CHESHAM,1000556,Contracts (Mainstream),Transport,4101017480,18/11/2022,1315.1
Buckinghamshire Council,Communities,GILBERTS OF CHESHAM,1000556,Contracts (Mainstream),Transport,4101017527,18/11/2022,1390.5
Buckinghamshire Council,Children's Services,GILBERTS OF CHESHAM,1000556,Sec 20/31: Transport,Transfer Payments (Grants & Assistance),4101017689,18/11/2022,2700
Buckinghamshire Council,Children's Services,GILBERTS OF CHESHAM,1000556,Sec 20/31: Transport,Transfer Payments (Grants & Assistance),4101017689,18/11/2022,1200
Buckinghamshire Council,Children's Services,GILBERTS OF CHESHAM,1000556,Sec 20/31: Supp for Contact,Transfer Payments (Grants & Assistance),4101017689,18/11/2022,120
Buckinghamshire Council,Communities,GILBERTS OF CHESHAM,1000556,Contracts (Mainstream),Transport,4101017733,18/11/2022,13236.32
Buckinghamshire Council,Communities,GILBERTS OF CHESHAM,1000556,Contracts (Mainstream),Transport,4101017734,18/11/2022,11368.73
Buckinghamshire Council,Communities,GILBERTS OF CHESHAM,1000556,Contracts (Mainstream),Transport,4101017855,18/11/2022,567.38
Buckinghamshire Council,Communities,GILBERTS OF CHESHAM,1000556,Contracts (Mainstream),Transport,4101019319,23/11/2022,1022
Buckinghamshire Council,Communities,GILBERTS OF CHESHAM,1000556,Contracts (Mainstream),Transport,4101017521,09/11/2022,669.5
Buckinghamshire Council,Communities,E E KEEN & SONS,1000567,General Repairs & Maintenance,Controllable Premises,4101015995,04/11/2022,6432
Buckinghamshire Council,"Planning, Growth & Sustainability",E E KEEN & SONS,1000567,Urgent Repairs & Maintenance,Controllable Premises,7002947012,04/11/2022,8986
Buckinghamshire Council,Children's Services,E E KEEN & SONS,1000567,Construction - Building Work,Capital - Expenditure -Controllable,7002949125,09/11/2022,19317
Buckinghamshire Council,Communities,E E KEEN & SONS,1000567,General Repairs & Maintenance,Controllable Premises,7002952066,09/11/2022,1127
Buckinghamshire Council,Children's Services,E E KEEN & SONS,1000567,Construction - Building Work,Capital - Expenditure -Controllable,7002953107,16/11/2022,24445
Buckinghamshire Council,"Planning, Growth & Sustainability",E E KEEN & SONS,1000567,General Repairs & Maintenance,Controllable Premises,7002953108,16/11/2022,4834
Buckinghamshire Council,Communities,E E KEEN & SONS,1000567,General Repairs & Maintenance,Controllable Premises,7002946692,02/11/2022,1625
Buckinghamshire Council,Children's Services,E E KEEN & SONS,1000567,Construction - Building Work,Capital - Expenditure -Controllable,7002946695,02/11/2022,11422.93
Buckinghamshire Council,"Planning, Growth & Sustainability",E E KEEN & SONS,1000567,Urgent Repairs & Maintenance,Controllable Premises,7002955610,23/11/2022,3985
Buckinghamshire Council,Communities,E E KEEN & SONS,1000567,General Repairs & Maintenance,Controllable Premises,7002955666,23/11/2022,1472
Buckinghamshire Council,"Planning, Growth & Sustainability",E E KEEN & SONS,1000567,Buy Back BCC,Controllable Premises,7002955681,23/11/2022,915
Buckinghamshire Council,Children's Services,E E KEEN & SONS,1000567,Construction - Building Work,Capital - Expenditure -Controllable,7002958192,23/11/2022,1000
Buckinghamshire Council,Children's Services,E E KEEN & SONS,1000567,Construction - Building Work,Capital - Expenditure -Controllable,7002952126,11/11/2022,7890
Buckinghamshire Council,Children's Services,E E KEEN & SONS,1000567,Construction - Building Work,Capital - Expenditure -Controllable,7002958200,25/11/2022,44753.47
Buckinghamshire Council,Communities,MASONS MINIBUS/CAR HIRE,1000603,Contracts (Mainstream),Transport,4101017450,09/11/2022,2072.73
Buckinghamshire Council,Communities,MASONS MINIBUS/CAR HIRE,1000603,Contracts (Mainstream),Transport,4101017797,11/11/2022,2000
Buckinghamshire Council,Communities,MASONS MINIBUS/CAR HIRE,1000603,Contracts (Mainstream),Transport,4101017473,18/11/2022,2072.73
Buckinghamshire Council,Communities,MARSHALLS COACHES  LLP,1000607,Contracts (Mainstream),Transport,4101016816,18/11/2022,3361.92
Buckinghamshire Council,Communities,MARSHALLS COACHES  LLP,1000607,Contracts (Mainstream),Transport,4101016853,18/11/2022,2439.04
Buckinghamshire Council,Communities,MARSHALLS COACHES  LLP,1000607,Contracts (Mainstream),Transport,4101016854,18/11/2022,3212.64
Buckinghamshire Council,Communities,MARSHALLS COACHES  LLP,1000607,Contracts (Mainstream),Transport,4101016855,18/11/2022,6839.2
Buckinghamshire Council,Communities,MARSHALLS COACHES  LLP,1000607,Contracts (Mainstream),Transport,4101018780,18/11/2022,2880
Buckinghamshire Council,"Planning, Growth & Sustainability",3D Aluminium Plas Ltd,1000686,Cleaning - Contract Services,Controllable Premises,4101018084,18/11/2022,4860
Buckinghamshire Council,"Planning, Growth & Sustainability",3D Aluminium Plas Ltd,1000686,Urgent Repairs & Maintenance,Controllable Premises,7002954073,18/11/2022,755.19
Buckinghamshire Council,Children's Services,3D Aluminium Plas Ltd,1000686,Construction - Building Work,Capital - Expenditure -Controllable,7002953057,09/11/2022,84389.77
Buckinghamshire Council,Planning Growth & Sustainability,R & D CONTRACTORS,1000762,Grants (Capital Expenditure),Capital - Expenditure -Controllable,3300483243,18/11/2022,12775
Buckinghamshire Council,Planning Growth & Sustainability,R & D CONTRACTORS,1000762,Grants (Capital Expenditure),Capital - Expenditure -Controllable,3300483252,18/11/2022,3810
Buckinghamshire Council,Planning Growth & Sustainability,R & D CONTRACTORS,1000762,Grants (Capital Expenditure),Capital - Expenditure -Controllable,3300482832,11/11/2022,9607.5
Buckinghamshire Council,Planning Growth & Sustainability,R & D CONTRACTORS,1000762,Grants (Capital Expenditure),Capital - Expenditure -Controllable,3300482788,09/11/2022,7915
Buckinghamshire Council,Planning Growth & Sustainability,R & D CONTRACTORS,1000762,Grants (Capital Expenditure),Capital - Expenditure -Controllable,3300481720,02/11/2022,756
Buckinghamshire Council,Adults and Health,ACORN VILLAGES LTD,1000822,Res care-permanent - other,Agency (third party payments) & Contribs,7002957467,23/11/2022,6050.56
Buckinghamshire Council,Deputy Chief Executive,Royal Mail Group Ltd,1000878,General Postage,Supplies and Services,4500120080,23/11/2022,88.5
Buckinghamshire Council,Deputy Chief Executive,Royal Mail Group Ltd,1000878,General Postage,Supplies and Services,4500120080,23/11/2022,805.65
Buckinghamshire Council,Deputy Chief Executive,Royal Mail Group Ltd,1000878,General Postage,Supplies and Services,4500120081,23/11/2022,525.64
Buckinghamshire Council,Deputy Chief Executive,Royal Mail Group Ltd,1000878,General Postage,Supplies and Services,4500120081,23/11/2022,25.84
Buckinghamshire Council,Deputy Chief Executive,Royal Mail Group Ltd,1000878,General Postage,Supplies and Services,4500120081,23/11/2022,395.52
Buckinghamshire Council,Children's Services,THE PERTEMPS GROUP OF COMPANIES,1000901,Permanent Recruitment Costs,Controllable Employees,4101017836,25/11/2022,6707.65
Buckinghamshire Council,"Planning, Growth & Sustainability",THE PERTEMPS GROUP OF COMPANIES,1000901,Agency Worker,Controllable Employees,3300482036,23/11/2022,1738.13
Buckinghamshire Council,"Planning, Growth & Sustainability",THE PERTEMPS GROUP OF COMPANIES,1000901,Agency Worker,Controllable Employees,3300482037,23/11/2022,1172.8
Buckinghamshire Council,"Planning, Growth & Sustainability",THE PERTEMPS GROUP OF COMPANIES,1000901,Agency Worker,Controllable Employees,3300482039,23/11/2022,798.83
Buckinghamshire Council,Adults and Health,THE PERTEMPS GROUP OF COMPANIES,1000901,Agency Worker,Controllable Employees,3300482040,23/11/2022,2080.22
Buckinghamshire Council,Deputy Chief Executive,THE PERTEMPS GROUP OF COMPANIES,1000901,Agency Worker,Controllable Employees,3300482041,23/11/2022,1424.16
Buckinghamshire Council,Children's Services,THE PERTEMPS GROUP OF COMPANIES,1000901,Agency Worker,Controllable Employees,3300482042,23/11/2022,1721.98
Buckinghamshire Council,Adults and Health,THE PERTEMPS GROUP OF COMPANIES,1000901,Social Workers - Agency,Controllable Employees,3300482044,23/11/2022,1855.95
Buckinghamshire Council,Children's Services,THE PERTEMPS GROUP OF COMPANIES,1000901,Agency Worker,Controllable Employees,3300482046,23/11/2022,1537.5
Buckinghamshire Council,Children's Services,THE PERTEMPS GROUP OF COMPANIES,1000901,Agency Worker,Controllable Employees,3300482047,23/11/2022,1862.95
Buckinghamshire Council,Adults and Health,THE PERTEMPS GROUP OF COMPANIES,1000901,Social Workers - Agency,Controllable Employees,3300482048,23/11/2022,546.42
Buckinghamshire Council,"Planning, Growth & Sustainability",THE PERTEMPS GROUP OF COMPANIES,1000901,Agency Worker,Controllable Employees,3300482049,23/11/2022,873.6
Buckinghamshire Council,Deputy Chief Executive,THE PERTEMPS GROUP OF COMPANIES,1000901,Agency Worker,Controllable Employees,3300482050,23/11/2022,2701.37
Buckinghamshire Council,"Planning, Growth & Sustainability",THE PERTEMPS GROUP OF COMPANIES,1000901,Agency Worker,Controllable Employees,3300482051,23/11/2022,900
Buckinghamshire Council,Children's Services,THE PERTEMPS GROUP OF COMPANIES,1000901,Agency Worker,Controllable Employees,3300482052,23/11/2022,1740.85
Buckinghamshire Council,Children's Services,THE PERTEMPS GROUP OF COMPANIES,1000901,Social Workers - Agency,Controllable Employees,3300482053,23/11/2022,1537.35
Buckinghamshire Council,Adults and Health,THE PERTEMPS GROUP OF COMPANIES,1000901,Social Workers - Agency,Controllable Employees,3300482056,23/11/2022,1556.8
Buckinghamshire Council,Children's Services,THE PERTEMPS GROUP OF COMPANIES,1000901,Social Workers - Agency,Controllable Employees,3300482058,23/11/2022,1065
Buckinghamshire Council,"Planning, Growth & Sustainability",THE PERTEMPS GROUP OF COMPANIES,1000901,Agency Worker,Controllable Employees,3300482059,23/11/2022,1670.46
Buckinghamshire Council,Deputy Chief Executive,THE PERTEMPS GROUP OF COMPANIES,1000901,Agency Worker,Controllable Employees,3300482060,23/11/2022,1760.05
Buckinghamshire Council,"Planning, Growth & Sustainability",THE PERTEMPS GROUP OF COMPANIES,1000901,Agency Worker,Controllable Employees,3300482061,23/11/2022,671.17
Buckinghamshire Council,Children's Services,THE PERTEMPS GROUP OF COMPANIES,1000901,Social Workers - Agency,Controllable Employees,3300482062,23/11/2022,1587.3
Buckinghamshire Council,"Planning, Growth & Sustainability",THE PERTEMPS GROUP OF COMPANIES,1000901,Agency Worker,Controllable Employees,3300482063,23/11/2022,1719.9
Buckinghamshire Council,Children's Services,THE PERTEMPS GROUP OF COMPANIES,1000901,Agency Worker,Controllable Employees,3300482064,23/11/2022,1938.06
Buckinghamshire Council,Children's Services,THE PERTEMPS GROUP OF COMPANIES,1000901,Social Workers - Agency,Controllable Employees,3300482065,23/11/2022,1500.35
Buckinghamshire Council,Children's Services,THE PERTEMPS GROUP OF COMPANIES,1000901,Agency Worker,Controllable Employees,3300482066,23/11/2022,1747.88
Buckinghamshire Council,Adults and Health,THE PERTEMPS GROUP OF COMPANIES,1000901,Social Workers - Agency,Controllable Employees,3300482067,23/11/2022,1556.22
Buckinghamshire Council,Children's Services,THE PERTEMPS GROUP OF COMPANIES,1000901,Social Workers - Agency,Controllable Employees,3300482068,23/11/2022,1781.18
Buckinghamshire Council,Adults and Health,THE PERTEMPS GROUP OF COMPANIES,1000901,Agency Worker,Controllable Employees,3300482069,23/11/2022,2300
Buckinghamshire Council,Adults and Health,THE PERTEMPS GROUP OF COMPANIES,1000901,Agency Worker,Controllable Employees,3300482070,23/11/2022,2497.48
Buckinghamshire Council,Children's Services,THE PERTEMPS GROUP OF COMPANIES,1000901,Social Workers - Agency,Controllable Employees,3300482071,23/11/2022,1706.81
Buckinghamshire Council,Children's Services,THE PERTEMPS GROUP OF COMPANIES,1000901,Agency Worker,Controllable Employees,3300482073,23/11/2022,2007.62
Buckinghamshire Council,Adults and Health,THE PERTEMPS GROUP OF COMPANIES,1000901,Agency Worker,Controllable Employees,3300482074,23/11/2022,1660.56
Buckinghamshire Council,Adults and Health,THE PERTEMPS GROUP OF COMPANIES,1000901,Social Workers - Agency,Controllable Employees,3300482075,23/11/2022,1199.1
Buckinghamshire Council,Children's Services,THE PERTEMPS GROUP OF COMPANIES,1000901,Social Workers - Agency,Controllable Employees,3300482076,23/11/2022,1747.88
Buckinghamshire Council,Adults and Health,THE PERTEMPS GROUP OF COMPANIES,1000901,Social Workers - Agency,Controllable Employees,3300482078,23/11/2022,1537.35
Buckinghamshire Council,Children's Services,THE PERTEMPS GROUP OF COMPANIES,1000901,Social Workers - Agency,Controllable Employees,3300482080,23/11/2022,1548.08
Buckinghamshire Council,Resources,THE PERTEMPS GROUP OF COMPANIES,1000901,Agency Worker,Controllable Employees,3300482081,23/11/2022,1764.75
Buckinghamshire Council,Communities,THE PERTEMPS GROUP OF COMPANIES,1000901,Agency Worker,Controllable Employees,3300482082,23/11/2022,724.86
Buckinghamshire Council,Adults and Health,THE PERTEMPS GROUP OF COMPANIES,1000901,Agency Worker,Controllable Employees,3300482083,23/11/2022,2053
Buckinghamshire Council,Resources,THE PERTEMPS GROUP OF COMPANIES,1000901,Agency Worker,Controllable Employees,3300482085,23/11/2022,703.74
Buckinghamshire Council,Resources,THE PERTEMPS GROUP OF COMPANIES,1000901,Agency Worker,Controllable Employees,3300482086,23/11/2022,2727.05
Buckinghamshire Council,Children's Services,THE PERTEMPS GROUP OF COMPANIES,1000901,Social Workers - Agency,Controllable Employees,3300482087,23/11/2022,1747.88
Buckinghamshire Council,Resources,THE PERTEMPS GROUP OF COMPANIES,1000901,Agency Worker,Controllable Employees,3300482088,23/11/2022,626.04
Buckinghamshire Council,Resources,THE PERTEMPS GROUP OF COMPANIES,1000901,Agency Worker,Controllable Employees,3300482091,23/11/2022,590.89
Buckinghamshire Council,Resources,THE PERTEMPS GROUP OF COMPANIES,1000901,Agency Worker,Controllable Employees,3300482093,23/11/2022,626.04
Buckinghamshire Council,Resources,THE PERTEMPS GROUP OF COMPANIES,1000901,Agency Worker,Controllable Employees,3300482094,23/11/2022,626.04
Buckinghamshire Council,Children's Services,THE PERTEMPS GROUP OF COMPANIES,1000901,Social Workers - Agency,Controllable Employees,3300482095,23/11/2022,1747.88
Buckinghamshire Council,Children's Services,THE PERTEMPS GROUP OF COMPANIES,1000901,Social Workers - Agency,Controllable Employees,3300482096,23/11/2022,1652.79
Buckinghamshire Council,Children's Services,THE PERTEMPS GROUP OF COMPANIES,1000901,Social Workers - Agency,Controllable Employees,3300482097,23/11/2022,2036.11
Buckinghamshire Council,Children's Services,THE PERTEMPS GROUP OF COMPANIES,1000901,Social Workers - Agency,Controllable Employees,3300482098,23/11/2022,1555.85
Buckinghamshire Council,Resources,THE PERTEMPS GROUP OF COMPANIES,1000901,Agency Worker,Controllable Employees,3300482099,23/11/2022,757.76
Buckinghamshire Council,Children's Services,THE PERTEMPS GROUP OF COMPANIES,1000901,Social Workers - Agency,Controllable Employees,3300482101,23/11/2022,1438.19
Buckinghamshire Council,"Planning, Growth & Sustainability",THE PERTEMPS GROUP OF COMPANIES,1000901,Agency Worker,Controllable Employees,3300482103,23/11/2022,528.96
Buckinghamshire Council,"Planning, Growth & Sustainability",THE PERTEMPS GROUP OF COMPANIES,1000901,Agency Worker,Controllable Employees,3300482105,23/11/2022,2602.08
Buckinghamshire Council,Children's Services,THE PERTEMPS GROUP OF COMPANIES,1000901,Agency Worker,Controllable Employees,3300482106,23/11/2022,1587.3
Buckinghamshire Council,Children's Services,THE PERTEMPS GROUP OF COMPANIES,1000901,Social Workers - Agency,Controllable Employees,3300482107,23/11/2022,1273.2
Buckinghamshire Council,Children's Services,THE PERTEMPS GROUP OF COMPANIES,1000901,Social Workers - Agency,Controllable Employees,3300482109,23/11/2022,1570.28
Buckinghamshire Council,Resources,THE PERTEMPS GROUP OF COMPANIES,1000901,Agency Worker,Controllable Employees,3300482110,23/11/2022,674.14
Buckinghamshire Council,Resources,THE PERTEMPS GROUP OF COMPANIES,1000901,Agency Worker,Controllable Employees,3300482111,23/11/2022,2411.76
Buckinghamshire Council,Children's Services,THE PERTEMPS GROUP OF COMPANIES,1000901,Agency Worker,Controllable Employees,3300482112,23/11/2022,1371.3
Buckinghamshire Council,Children's Services,THE PERTEMPS GROUP OF COMPANIES,1000901,Social Workers - Agency,Controllable Employees,3300482113,23/11/2022,1543.64
Buckinghamshire Council,Children's Services,THE PERTEMPS GROUP OF COMPANIES,1000901,Agency Worker,Controllable Employees,3300482114,23/11/2022,1417.2
Buckinghamshire Council,"Planning, Growth & Sustainability",THE PERTEMPS GROUP OF COMPANIES,1000901,Agency Worker,Controllable Employees,3300482115,23/11/2022,639.73
Buckinghamshire Council,Deputy Chief Executive,THE PERTEMPS GROUP OF COMPANIES,1000901,Agency Worker,Controllable Employees,3300482116,23/11/2022,1095.94
Buckinghamshire Council,Deputy Chief Executive,THE PERTEMPS GROUP OF COMPANIES,1000901,Agency Worker,Controllable Employees,3300482117,23/11/2022,627.89
Buckinghamshire Council,Children's Services,THE PERTEMPS GROUP OF COMPANIES,1000901,Social Workers - Agency,Controllable Employees,3300482118,23/11/2022,1539.94
Buckinghamshire Council,Resources,THE PERTEMPS GROUP OF COMPANIES,1000901,Agency Worker,Controllable Employees,3300482119,23/11/2022,610.13
Buckinghamshire Council,Adults and Health,THE PERTEMPS GROUP OF COMPANIES,1000901,Agency Worker,Controllable Employees,3300482120,23/11/2022,1430.04
Buckinghamshire Council,Adults and Health,THE PERTEMPS GROUP OF COMPANIES,1000901,Social Workers - Agency,Controllable Employees,3300482121,23/11/2022,866.93
Buckinghamshire Council,Resources,THE PERTEMPS GROUP OF COMPANIES,1000901,Agency Worker,Controllable Employees,3300482122,23/11/2022,2104.35
Buckinghamshire Council,Resources,THE PERTEMPS GROUP OF COMPANIES,1000901,Agency Worker,Controllable Employees,3300482125,23/11/2022,626.04
Buckinghamshire Council,Deputy Chief Executive,THE PERTEMPS GROUP OF COMPANIES,1000901,Agency Worker,Controllable Employees,3300482126,23/11/2022,1330.16
Buckinghamshire Council,Communities,THE PERTEMPS GROUP OF COMPANIES,1000901,Agency Worker,Controllable Employees,3300482127,23/11/2022,626.04
Buckinghamshire Council,Resources,THE PERTEMPS GROUP OF COMPANIES,1000901,Agency Worker,Controllable Employees,3300482128,23/11/2022,1330.64
Buckinghamshire Council,Resources,THE PERTEMPS GROUP OF COMPANIES,1000901,Agency Worker,Controllable Employees,3300482129,23/11/2022,2587.75
Buckinghamshire Council,"Planning, Growth & Sustainability",THE PERTEMPS GROUP OF COMPANIES,1000901,Agency Worker,Controllable Employees,3300482130,23/11/2022,991.15
Buckinghamshire Council,Communities,THE PERTEMPS GROUP OF COMPANIES,1000901,Agency Worker,Controllable Employees,3300482131,23/11/2022,524.35
Buckinghamshire Council,Communities,THE PERTEMPS GROUP OF COMPANIES,1000901,Agency Worker,Controllable Employees,3300482132,23/11/2022,567.72
Buckinghamshire Council,Communities,THE PERTEMPS GROUP OF COMPANIES,1000901,Agency Worker,Controllable Employees,3300482133,23/11/2022,671.55
Buckinghamshire Council,Communities,THE PERTEMPS GROUP OF COMPANIES,1000901,Agency Worker,Controllable Employees,3300482134,23/11/2022,671.55
Buckinghamshire Council,Communities,THE PERTEMPS GROUP OF COMPANIES,1000901,Agency Worker,Controllable Employees,3300482135,23/11/2022,1060.29
Buckinghamshire Council,Children's Services,THE PERTEMPS GROUP OF COMPANIES,1000901,Social Workers - Agency,Controllable Employees,3300482136,23/11/2022,1537.35
Buckinghamshire Council,Adults and Health,THE PERTEMPS GROUP OF COMPANIES,1000901,Social Workers - Agency,Controllable Employees,3300482137,23/11/2022,848.8
Buckinghamshire Council,Deputy Chief Executive,THE PERTEMPS GROUP OF COMPANIES,1000901,Agency Worker,Controllable Employees,3300482138,23/11/2022,575.67
Buckinghamshire Council,Adults and Health,THE PERTEMPS GROUP OF COMPANIES,1000901,Agency Worker,Controllable Employees,3300482139,23/11/2022,3193.45
Buckinghamshire Council,Children's Services,THE PERTEMPS GROUP OF COMPANIES,1000901,Social Workers - Agency,Controllable Employees,3300482141,23/11/2022,1587.3
Buckinghamshire Council,Children's Services,THE PERTEMPS GROUP OF COMPANIES,1000901,Agency Worker,Controllable Employees,3300482143,23/11/2022,1687.2
Buckinghamshire Council,Children's Services,THE PERTEMPS GROUP OF COMPANIES,1000901,Agency Worker,Controllable Employees,3300482144,23/11/2022,1747.88
Buckinghamshire Council,Adults and Health,THE PERTEMPS GROUP OF COMPANIES,1000901,Social Workers - Agency,Controllable Employees,3300482146,23/11/2022,1777.48
Buckinghamshire Council,"Planning, Growth & Sustainability",THE PERTEMPS GROUP OF COMPANIES,1000901,Agency Worker,Controllable Employees,3300482147,23/11/2022,1423.39
Buckinghamshire Council,Children's Services,THE PERTEMPS GROUP OF COMPANIES,1000901,Social Workers - Agency,Controllable Employees,3300482148,23/11/2022,2046.84
Buckinghamshire Council,Children's Services,THE PERTEMPS GROUP OF COMPANIES,1000901,Agency Worker,Controllable Employees,3300482150,23/11/2022,1747.88
Buckinghamshire Council,Children's Services,THE PERTEMPS GROUP OF COMPANIES,1000901,Social Workers - Agency,Controllable Employees,3300482152,23/11/2022,1740.85
Buckinghamshire Council,Resources,THE PERTEMPS GROUP OF COMPANIES,1000901,Agency Worker,Controllable Employees,3300482153,23/11/2022,2518.76
Buckinghamshire Council,Children's Services,THE PERTEMPS GROUP OF COMPANIES,1000901,Agency Worker,Controllable Employees,3300482154,23/11/2022,2958.72
Buckinghamshire Council,Adults and Health,THE PERTEMPS GROUP OF COMPANIES,1000901,Social Workers - Agency,Controllable Employees,3300482155,23/11/2022,1469.27
Buckinghamshire Council,Children's Services,THE PERTEMPS GROUP OF COMPANIES,1000901,Social Workers - Agency,Controllable Employees,3300482157,23/11/2022,1576.57
Buckinghamshire Council,"Planning, Growth & Sustainability",THE PERTEMPS GROUP OF COMPANIES,1000901,Agency Worker,Controllable Employees,3300482159,23/11/2022,1222.43
Buckinghamshire Council,Adults and Health,THE PERTEMPS GROUP OF COMPANIES,1000901,Social Workers - Agency,Controllable Employees,3300482160,23/11/2022,1537.35
Buckinghamshire Council,"Planning, Growth & Sustainability",THE PERTEMPS GROUP OF COMPANIES,1000901,Agency Worker,Controllable Employees,3300482161,23/11/2022,2348.14
Buckinghamshire Council,Communities,THE PERTEMPS GROUP OF COMPANIES,1000901,Agency Worker,Controllable Employees,3300482162,23/11/2022,567.72
Buckinghamshire Council,Communities,THE PERTEMPS GROUP OF COMPANIES,1000901,Agency Worker,Controllable Employees,3300482164,23/11/2022,1370.4
Buckinghamshire Council,Adults and Health,THE PERTEMPS GROUP OF COMPANIES,1000901,Agency Worker,Controllable Employees,3300482165,23/11/2022,2913.64
Buckinghamshire Council,Deputy Chief Executive,THE PERTEMPS GROUP OF COMPANIES,1000901,Agency Worker,Controllable Employees,3300482166,23/11/2022,1619.84
Buckinghamshire Council,Resources,THE PERTEMPS GROUP OF COMPANIES,1000901,Agency Worker,Controllable Employees,3300482168,23/11/2022,610.13
Buckinghamshire Council,Communities,THE PERTEMPS GROUP OF COMPANIES,1000901,Agency Worker,Controllable Employees,3300482170,23/11/2022,747.24
Buckinghamshire Council,Communities,THE PERTEMPS GROUP OF COMPANIES,1000901,Agency Worker,Controllable Employees,3300482171,23/11/2022,671.55
Buckinghamshire Council,Deputy Chief Executive,THE PERTEMPS GROUP OF COMPANIES,1000901,Agency Worker,Controllable Employees,3300482172,23/11/2022,2168.2
Buckinghamshire Council,Adults and Health,THE PERTEMPS GROUP OF COMPANIES,1000901,Social Workers - Agency,Controllable Employees,3300482174,23/11/2022,1457.43
Buckinghamshire Council,Resources,THE PERTEMPS GROUP OF COMPANIES,1000901,Agency Worker,Controllable Employees,3300482175,23/11/2022,624.56
Buckinghamshire Council,Deputy Chief Executive,THE PERTEMPS GROUP OF COMPANIES,1000901,Agency Worker,Controllable Employees,3300482176,23/11/2022,771.82
Buckinghamshire Council,Deputy Chief Executive,THE PERTEMPS GROUP OF COMPANIES,1000901,Agency Worker,Controllable Employees,3300482177,23/11/2022,771.82
Buckinghamshire Council,Resources,THE PERTEMPS GROUP OF COMPANIES,1000901,Agency Worker,Controllable Employees,3300482178,23/11/2022,624.56
Buckinghamshire Council,Communities,THE PERTEMPS GROUP OF COMPANIES,1000901,Agency Worker,Controllable Employees,3300482179,23/11/2022,687.86
Buckinghamshire Council,Children's Services,THE PERTEMPS GROUP OF COMPANIES,1000901,Agency Worker,Controllable Employees,3300482181,23/11/2022,1740.85
Buckinghamshire Council,Resources,THE PERTEMPS GROUP OF COMPANIES,1000901,Agency Worker,Controllable Employees,3300482182,23/11/2022,567.21
Buckinghamshire Council,Resources,THE PERTEMPS GROUP OF COMPANIES,1000901,Agency Worker,Controllable Employees,3300482183,23/11/2022,764.79
Buckinghamshire Council,Children's Services,THE PERTEMPS GROUP OF COMPANIES,1000901,Social Workers - Agency,Controllable Employees,3300482184,23/11/2022,1740.85
Buckinghamshire Council,"Planning, Growth & Sustainability",THE PERTEMPS GROUP OF COMPANIES,1000901,Agency Worker,Controllable Employees,3300482185,23/11/2022,1238.06
Buckinghamshire Council,"Planning, Growth & Sustainability",THE PERTEMPS GROUP OF COMPANIES,1000901,Agency Worker,Controllable Employees,3300482186,23/11/2022,1088.13
Buckinghamshire Council,"Planning, Growth & Sustainability",THE PERTEMPS GROUP OF COMPANIES,1000901,Agency Worker,Controllable Employees,3300482187,23/11/2022,965.3
Buckinghamshire Council,"Planning, Growth & Sustainability",THE PERTEMPS GROUP OF COMPANIES,1000901,Agency Worker,Controllable Employees,3300482188,23/11/2022,1181.25
Buckinghamshire Council,Children's Services,THE PERTEMPS GROUP OF COMPANIES,1000901,Agency Worker,Controllable Employees,3300482189,23/11/2022,1842.97
Buckinghamshire Council,Communities,THE PERTEMPS GROUP OF COMPANIES,1000901,Agency Worker,Controllable Employees,3300482190,23/11/2022,519.15
Buckinghamshire Council,Communities,THE PERTEMPS GROUP OF COMPANIES,1000901,Agency Worker,Controllable Employees,3300482192,23/11/2022,586.5
